{"text_format":"1","workbook":"xlsx","n_sheets":12,"sheets":["KanningarRapport","BotnSyni","SyniKanningarfolk","BotnDjor","UrslitSens","UrslitKemi","DjorlivSyni","UrslitDjoraliv","dropdown","talvur","taxonpath","version"],"not_rendered":{"charts":0,"images":1,"macros":1,"external_links":0,"defined_names":48,"comments":0,"pivot_tables":0},"unopened":[],"bounds":{"document_bytes":16777216,"sheet_cells":100000,"rows_first":2000,"rows_last":500,"rows_between":2000,"halvings":0,"cell_chars":16384,"cell_head_chars":4096},"cells_cut":0,"cells_raw":0,"read":"whole","date_system":"1900"}

{"sheet":"KanningarRapport","index":0,"n_rows":2,"n_cols":15,"rows_kept":2,"cut":false,"hidden":false,"merged":[]}
["rap_id","utgava_navn","alioki_id","utgava_dato","kfelag_id","utgava_slag","alis_utsetuar","alis_tal_vid_kanning","alis_biomassi_vid_kanning","alis_sumvokstur","alis_sumfodur","avgreidsludato","journal_nr","GIStype","rap_vidmerking"]
[{"$f":"C2& \"-\" &TEXT(D2, \"ååmmdd\")","v":"-000100"}]

{"sheet":"BotnSyni","index":1,"n_rows":82,"n_cols":28,"rows_kept":82,"cut":false,"hidden":false,"merged":[]}
["botn_id","stodslag_id","stodnr","synistoku_dato","botnheint_id","grabbavidd_m2","haps_synilongd_cm","plan_lng","plan_lat","lng","lat","dypi","tal_av_royndum","sandur","grus","leirur","mora","steinabotnur","klettur","skeljasandur","steinagrus","silt","evja","okent","alieind","ringur_nr","hfs_ringur","botn_vidmerking"]
[{"$f":"IF(BotnSyni!$B2=\"\",\"\",B2&\"-\"&BotnSyni!$C2)","v":""}]
[{"$f":"IF(BotnSyni!$B3=\"\",\"\",B3&\"-\"&BotnSyni!$C3)","v":""}]
[{"$f":"IF(BotnSyni!$B4=\"\",\"\",B4&\"-\"&BotnSyni!$C4)","v":""}]
[{"$f":"IF(BotnSyni!$B5=\"\",\"\",B5&\"-\"&BotnSyni!$C5)","v":""}]
[{"$f":"IF(BotnSyni!$B6=\"\",\"\",B6&\"-\"&BotnSyni!$C6)","v":""}]
[{"$f":"IF(BotnSyni!$B7=\"\",\"\",B7&\"-\"&BotnSyni!$C7)","v":""}]
[{"$f":"IF(BotnSyni!$B8=\"\",\"\",B8&\"-\"&BotnSyni!$C8)","v":""}]
[{"$f":"IF(BotnSyni!$B9=\"\",\"\",B9&\"-\"&BotnSyni!$C9)","v":""}]
[{"$f":"IF(BotnSyni!$B10=\"\",\"\",B10&\"-\"&BotnSyni!$C10)","v":""}]
[{"$f":"IF(BotnSyni!$B11=\"\",\"\",B11&\"-\"&BotnSyni!$C11)","v":""}]
[{"$f":"IF(BotnSyni!$B12=\"\",\"\",B12&\"-\"&BotnSyni!$C12)","v":""}]
[{"$f":"IF(BotnSyni!$B13=\"\",\"\",B13&\"-\"&BotnSyni!$C13)","v":""}]
[{"$f":"IF(BotnSyni!$B14=\"\",\"\",B14&\"-\"&BotnSyni!$C14)","v":""}]
[{"$f":"IF(BotnSyni!$B15=\"\",\"\",B15&\"-\"&BotnSyni!$C15)","v":""}]
[{"$f":"IF(BotnSyni!$B16=\"\",\"\",B16&\"-\"&BotnSyni!$C16)","v":""}]
[{"$f":"IF(BotnSyni!$B17=\"\",\"\",B17&\"-\"&BotnSyni!$C17)","v":""}]
[{"$f":"IF(BotnSyni!$B18=\"\",\"\",B18&\"-\"&BotnSyni!$C18)","v":""}]
[{"$f":"IF(BotnSyni!$B19=\"\",\"\",B19&\"-\"&BotnSyni!$C19)","v":""}]
[{"$f":"IF(BotnSyni!$B20=\"\",\"\",B20&\"-\"&BotnSyni!$C20)","v":""}]
[{"$f":"IF(BotnSyni!$B21=\"\",\"\",B21&\"-\"&BotnSyni!$C21)","v":""}]
[{"$f":"IF(BotnSyni!$B22=\"\",\"\",B22&\"-\"&BotnSyni!$C22)","v":""}]
[{"$f":"IF(BotnSyni!$B23=\"\",\"\",B23&\"-\"&BotnSyni!$C23)","v":""}]
[{"$f":"IF(BotnSyni!$B24=\"\",\"\",B24&\"-\"&BotnSyni!$C24)","v":""}]
[{"$f":"IF(BotnSyni!$B25=\"\",\"\",B25&\"-\"&BotnSyni!$C25)","v":""}]
[{"$f":"IF(BotnSyni!$B26=\"\",\"\",B26&\"-\"&BotnSyni!$C26)","v":""}]
[{"$f":"IF(BotnSyni!$B27=\"\",\"\",B27&\"-\"&BotnSyni!$C27)","v":""}]
[{"$f":"IF(BotnSyni!$B28=\"\",\"\",B28&\"-\"&BotnSyni!$C28)","v":""}]
[{"$f":"IF(BotnSyni!$B29=\"\",\"\",B29&\"-\"&BotnSyni!$C29)","v":""}]
[{"$f":"IF(BotnSyni!$B30=\"\",\"\",B30&\"-\"&BotnSyni!$C30)","v":""}]
[{"$f":"IF(BotnSyni!$B31=\"\",\"\",B31&\"-\"&BotnSyni!$C31)","v":""}]
[{"$f":"IF(BotnSyni!$B32=\"\",\"\",B32&\"-\"&BotnSyni!$C32)","v":""}]
[{"$f":"IF(BotnSyni!$B33=\"\",\"\",B33&\"-\"&BotnSyni!$C33)","v":""}]
[{"$f":"IF(BotnSyni!$B34=\"\",\"\",B34&\"-\"&BotnSyni!$C34)","v":""}]
[{"$f":"IF(BotnSyni!$B35=\"\",\"\",B35&\"-\"&BotnSyni!$C35)","v":""}]
[{"$f":"IF(BotnSyni!$B36=\"\",\"\",B36&\"-\"&BotnSyni!$C36)","v":""}]
[{"$f":"IF(BotnSyni!$B37=\"\",\"\",B37&\"-\"&BotnSyni!$C37)","v":""}]
[{"$f":"IF(BotnSyni!$B38=\"\",\"\",B38&\"-\"&BotnSyni!$C38)","v":""}]
[{"$f":"IF(BotnSyni!$B39=\"\",\"\",B39&\"-\"&BotnSyni!$C39)","v":""}]
[{"$f":"IF(BotnSyni!$B40=\"\",\"\",B40&\"-\"&BotnSyni!$C40)","v":""}]
[{"$f":"IF(BotnSyni!$B41=\"\",\"\",B41&\"-\"&BotnSyni!$C41)","v":""}]
[{"$f":"IF(BotnSyni!$B42=\"\",\"\",B42&\"-\"&BotnSyni!$C42)","v":""}]
[{"$f":"IF(BotnSyni!$B43=\"\",\"\",B43&\"-\"&BotnSyni!$C43)","v":""}]
[{"$f":"IF(BotnSyni!$B44=\"\",\"\",B44&\"-\"&BotnSyni!$C44)","v":""}]
[{"$f":"IF(BotnSyni!$B45=\"\",\"\",B45&\"-\"&BotnSyni!$C45)","v":""}]
[{"$f":"IF(BotnSyni!$B46=\"\",\"\",B46&\"-\"&BotnSyni!$C46)","v":""}]
[{"$f":"IF(BotnSyni!$B47=\"\",\"\",B47&\"-\"&BotnSyni!$C47)","v":""}]
[{"$f":"IF(BotnSyni!$B48=\"\",\"\",B48&\"-\"&BotnSyni!$C48)","v":""}]
[{"$f":"IF(BotnSyni!$B49=\"\",\"\",B49&\"-\"&BotnSyni!$C49)","v":""}]
[{"$f":"IF(BotnSyni!$B50=\"\",\"\",B50&\"-\"&BotnSyni!$C50)","v":""}]
[{"$f":"IF(BotnSyni!$B51=\"\",\"\",B51&\"-\"&BotnSyni!$C51)","v":""}]
[{"$f":"IF(BotnSyni!$B52=\"\",\"\",B52&\"-\"&BotnSyni!$C52)","v":""}]
[{"$f":"IF(BotnSyni!$B53=\"\",\"\",B53&\"-\"&BotnSyni!$C53)","v":""}]
[{"$f":"IF(BotnSyni!$B54=\"\",\"\",B54&\"-\"&BotnSyni!$C54)","v":""}]
[{"$f":"IF(BotnSyni!$B55=\"\",\"\",B55&\"-\"&BotnSyni!$C55)","v":""}]
[{"$f":"IF(BotnSyni!$B56=\"\",\"\",B56&\"-\"&BotnSyni!$C56)","v":""}]
[{"$f":"IF(BotnSyni!$B57=\"\",\"\",B57&\"-\"&BotnSyni!$C57)","v":""}]
[{"$f":"IF(BotnSyni!$B58=\"\",\"\",B58&\"-\"&BotnSyni!$C58)","v":""}]
[{"$f":"IF(BotnSyni!$B59=\"\",\"\",B59&\"-\"&BotnSyni!$C59)","v":""}]
[{"$f":"IF(BotnSyni!$B60=\"\",\"\",B60&\"-\"&BotnSyni!$C60)","v":""}]
[{"$f":"IF(BotnSyni!$B61=\"\",\"\",B61&\"-\"&BotnSyni!$C61)","v":""}]
[{"$f":"IF(BotnSyni!$B62=\"\",\"\",B62&\"-\"&BotnSyni!$C62)","v":""}]
[{"$f":"IF(BotnSyni!$B63=\"\",\"\",B63&\"-\"&BotnSyni!$C63)","v":""}]
[{"$f":"IF(BotnSyni!$B64=\"\",\"\",B64&\"-\"&BotnSyni!$C64)","v":""}]
[{"$f":"IF(BotnSyni!$B65=\"\",\"\",B65&\"-\"&BotnSyni!$C65)","v":""}]
[{"$f":"IF(BotnSyni!$B66=\"\",\"\",B66&\"-\"&BotnSyni!$C66)","v":""}]
[{"$f":"IF(BotnSyni!$B67=\"\",\"\",B67&\"-\"&BotnSyni!$C67)","v":""}]
[{"$f":"IF(BotnSyni!$B68=\"\",\"\",B68&\"-\"&BotnSyni!$C68)","v":""}]
[{"$f":"IF(BotnSyni!$B69=\"\",\"\",B69&\"-\"&BotnSyni!$C69)","v":""}]
[{"$f":"IF(BotnSyni!$B70=\"\",\"\",B70&\"-\"&BotnSyni!$C70)","v":""}]
[{"$f":"IF(BotnSyni!$B71=\"\",\"\",B71&\"-\"&BotnSyni!$C71)","v":""}]
[{"$f":"IF(BotnSyni!$B72=\"\",\"\",B72&\"-\"&BotnSyni!$C72)","v":""}]
[{"$f":"IF(BotnSyni!$B73=\"\",\"\",B73&\"-\"&BotnSyni!$C73)","v":""}]
[{"$f":"IF(BotnSyni!$B74=\"\",\"\",B74&\"-\"&BotnSyni!$C74)","v":""}]
[{"$f":"IF(BotnSyni!$B75=\"\",\"\",B75&\"-\"&BotnSyni!$C75)","v":""}]
[{"$f":"IF(BotnSyni!$B76=\"\",\"\",B76&\"-\"&BotnSyni!$C76)","v":""}]
[{"$f":"IF(BotnSyni!$B77=\"\",\"\",B77&\"-\"&BotnSyni!$C77)","v":""}]
[{"$f":"IF(BotnSyni!$B78=\"\",\"\",B78&\"-\"&BotnSyni!$C78)","v":""}]
[{"$f":"IF(BotnSyni!$B79=\"\",\"\",B79&\"-\"&BotnSyni!$C79)","v":""}]
[{"$f":"IF(BotnSyni!$B80=\"\",\"\",B80&\"-\"&BotnSyni!$C80)","v":""}]
[{"$f":"IF(BotnSyni!$B81=\"\",\"\",B81&\"-\"&BotnSyni!$C81)","v":""}]
[{"$f":"IF(BotnSyni!$B82=\"\",\"\",B82&\"-\"&BotnSyni!$C82)","v":""}]

{"sheet":"SyniKanningarfolk","index":2,"n_rows":1,"n_cols":3,"rows_kept":1,"cut":false,"hidden":false,"merged":[]}
["botn_id","kfolk_id","synikannfolk_vidmerking"]

{"sheet":"BotnDjor","index":3,"n_rows":1,"n_cols":18,"rows_kept":1,"cut":false,"hidden":false,"merged":[]}
["botn_id","tindadyr","krabbadyr","lindyr","madkar","malacoceros_fuliginosus","capitella_capitata","djor_alikervi","djor_onnur","fodur","skarn","beggiatoa","blodr_spontant","blodr_synistoku","blodr_syni","kann_kemi","kann_djor","bdjor_vidmerking"]

{"sheet":"UrslitSens","index":4,"n_rows":1,"n_cols":23,"rows_kept":1,"cut":false,"hidden":false,"merged":[]}
["botn_id","djor","pH","eh_mata","eh_buffer_standard","eh_buffer_mata","eh_elektrodu_standard","eh_korr","ph_eh_stig","stoda_ii_stig","blodrur","litur","luktur","fastleiki","grabbanogd","evjutjugd","summur","summur_korr","stoda_iii_stig","stoda_iiogiii_mean","stoda_iiogiii_stig","tridhaegst","urslitsens_vidmerking"]

{"sheet":"UrslitKemi","index":5,"n_rows":1,"n_cols":12,"rows_kept":1,"cut":false,"hidden":false,"merged":[]}
["botn_id","evni","virdi","eind","basis","qflag","lod","loq","matiovissa","met_matiovissa","starvsstova","urslitkemi_vidmerking"]

{"sheet":"DjorlivSyni","index":6,"n_rows":41,"n_cols":13,"rows_kept":41,"cut":false,"hidden":false,"merged":[]}
["djorliv_id","botn_id","grabba_nr","uppr_synisnavn","upptalt","botnheint_id","grabbavidd_m2","cm_fra_loki","perc_fullur","fraktion_upptald","lng","lat","dypi"]
[{"$f":"IF(DjorlivSyni!$B2=\"\",\"\",B2&\"-\"&DjorlivSyni!$C2)","v":""}]
[{"$f":"IF(DjorlivSyni!$B3=\"\",\"\",B3&\"-\"&DjorlivSyni!$C3)","v":""}]
[{"$f":"IF(DjorlivSyni!$B4=\"\",\"\",B4&\"-\"&DjorlivSyni!$C4)","v":""}]
[{"$f":"IF(DjorlivSyni!$B5=\"\",\"\",B5&\"-\"&DjorlivSyni!$C5)","v":""}]
[{"$f":"IF(DjorlivSyni!$B6=\"\",\"\",B6&\"-\"&DjorlivSyni!$C6)","v":""}]
[{"$f":"IF(DjorlivSyni!$B7=\"\",\"\",B7&\"-\"&DjorlivSyni!$C7)","v":""}]
[{"$f":"IF(DjorlivSyni!$B8=\"\",\"\",B8&\"-\"&DjorlivSyni!$C8)","v":""}]
[{"$f":"IF(DjorlivSyni!$B9=\"\",\"\",B9&\"-\"&DjorlivSyni!$C9)","v":""}]
[{"$f":"IF(DjorlivSyni!$B10=\"\",\"\",B10&\"-\"&DjorlivSyni!$C10)","v":""}]
[{"$f":"IF(DjorlivSyni!$B11=\"\",\"\",B11&\"-\"&DjorlivSyni!$C11)","v":""}]
[{"$f":"IF(DjorlivSyni!$B12=\"\",\"\",B12&\"-\"&DjorlivSyni!$C12)","v":""}]
[{"$f":"IF(DjorlivSyni!$B13=\"\",\"\",B13&\"-\"&DjorlivSyni!$C13)","v":""}]
[{"$f":"IF(DjorlivSyni!$B14=\"\",\"\",B14&\"-\"&DjorlivSyni!$C14)","v":""}]
[{"$f":"IF(DjorlivSyni!$B15=\"\",\"\",B15&\"-\"&DjorlivSyni!$C15)","v":""}]
[{"$f":"IF(DjorlivSyni!$B16=\"\",\"\",B16&\"-\"&DjorlivSyni!$C16)","v":""}]
[{"$f":"IF(DjorlivSyni!$B17=\"\",\"\",B17&\"-\"&DjorlivSyni!$C17)","v":""}]
[{"$f":"IF(DjorlivSyni!$B18=\"\",\"\",B18&\"-\"&DjorlivSyni!$C18)","v":""}]
[{"$f":"IF(DjorlivSyni!$B19=\"\",\"\",B19&\"-\"&DjorlivSyni!$C19)","v":""}]
[{"$f":"IF(DjorlivSyni!$B20=\"\",\"\",B20&\"-\"&DjorlivSyni!$C20)","v":""}]
[{"$f":"IF(DjorlivSyni!$B21=\"\",\"\",B21&\"-\"&DjorlivSyni!$C21)","v":""}]
[{"$f":"IF(DjorlivSyni!$B22=\"\",\"\",B22&\"-\"&DjorlivSyni!$C22)","v":""}]
[{"$f":"IF(DjorlivSyni!$B23=\"\",\"\",B23&\"-\"&DjorlivSyni!$C23)","v":""}]
[{"$f":"IF(DjorlivSyni!$B24=\"\",\"\",B24&\"-\"&DjorlivSyni!$C24)","v":""}]
[{"$f":"IF(DjorlivSyni!$B25=\"\",\"\",B25&\"-\"&DjorlivSyni!$C25)","v":""}]
[{"$f":"IF(DjorlivSyni!$B26=\"\",\"\",B26&\"-\"&DjorlivSyni!$C26)","v":""}]
[{"$f":"IF(DjorlivSyni!$B27=\"\",\"\",B27&\"-\"&DjorlivSyni!$C27)","v":""}]
[{"$f":"IF(DjorlivSyni!$B28=\"\",\"\",B28&\"-\"&DjorlivSyni!$C28)","v":""}]
[{"$f":"IF(DjorlivSyni!$B29=\"\",\"\",B29&\"-\"&DjorlivSyni!$C29)","v":""}]
[{"$f":"IF(DjorlivSyni!$B30=\"\",\"\",B30&\"-\"&DjorlivSyni!$C30)","v":""}]
[{"$f":"IF(DjorlivSyni!$B31=\"\",\"\",B31&\"-\"&DjorlivSyni!$C31)","v":""}]
[{"$f":"IF(DjorlivSyni!$B32=\"\",\"\",B32&\"-\"&DjorlivSyni!$C32)","v":""}]
[{"$f":"IF(DjorlivSyni!$B33=\"\",\"\",B33&\"-\"&DjorlivSyni!$C33)","v":""}]
[{"$f":"IF(DjorlivSyni!$B34=\"\",\"\",B34&\"-\"&DjorlivSyni!$C34)","v":""}]
[{"$f":"IF(DjorlivSyni!$B35=\"\",\"\",B35&\"-\"&DjorlivSyni!$C35)","v":""}]
[{"$f":"IF(DjorlivSyni!$B36=\"\",\"\",B36&\"-\"&DjorlivSyni!$C36)","v":""}]
[{"$f":"IF(DjorlivSyni!$B37=\"\",\"\",B37&\"-\"&DjorlivSyni!$C37)","v":""}]
[{"$f":"IF(DjorlivSyni!$B38=\"\",\"\",B38&\"-\"&DjorlivSyni!$C38)","v":""}]
[{"$f":"IF(DjorlivSyni!$B39=\"\",\"\",B39&\"-\"&DjorlivSyni!$C39)","v":""}]
[{"$f":"IF(DjorlivSyni!$B40=\"\",\"\",B40&\"-\"&DjorlivSyni!$C40)","v":""}]
[{"$f":"IF(DjorlivSyni!$B41=\"\",\"\",B41&\"-\"&DjorlivSyni!$C41)","v":""}]

{"sheet":"UrslitDjoraliv","index":7,"n_rows":366,"n_cols":4,"rows_kept":366,"cut":false,"hidden":false,"merged":[]}
["aphia_id_auto","scientific_name","aphia_id_manuelt","djoraliv_vidmerking"]
[{"$f":"IF(B2=\"\",\"\",IF(_xlfn.IFNA(MATCH(B2,taxonpath[scientific_name],0),\"\")=\"\",\"\",LOOKUP(B2,taxonpath[scientific_name],taxonpath[aphia_id])))","v":""}]
[{"$f":"IF(B3=\"\",\"\",IF(_xlfn.IFNA(MATCH(B3,taxonpath[scientific_name],0),\"\")=\"\",\"\",LOOKUP(B3,taxonpath[scientific_name],taxonpath[aphia_id])))","v":""}]
[{"$f":"IF(B4=\"\",\"\",IF(_xlfn.IFNA(MATCH(B4,taxonpath[scientific_name],0),\"\")=\"\",\"\",LOOKUP(B4,taxonpath[scientific_name],taxonpath[aphia_id])))","v":""}]
[{"$f":"IF(B5=\"\",\"\",IF(_xlfn.IFNA(MATCH(B5,taxonpath[scientific_name],0),\"\")=\"\",\"\",LOOKUP(B5,taxonpath[scientific_name],taxonpath[aphia_id])))","v":""}]
[{"$f":"IF(B6=\"\",\"\",IF(_xlfn.IFNA(MATCH(B6,taxonpath[scientific_name],0),\"\")=\"\",\"\",LOOKUP(B6,taxonpath[scientific_name],taxonpath[aphia_id])))","v":""}]
[{"$f":"IF(B7=\"\",\"\",IF(_xlfn.IFNA(MATCH(B7,taxonpath[scientific_name],0),\"\")=\"\",\"\",LOOKUP(B7,taxonpath[scientific_name],taxonpath[aphia_id])))","v":""}]
[{"$f":"IF(B8=\"\",\"\",IF(_xlfn.IFNA(MATCH(B8,taxonpath[scientific_name],0),\"\")=\"\",\"\",LOOKUP(B8,taxonpath[scientific_name],taxonpath[aphia_id])))","v":""}]
[{"$f":"IF(B9=\"\",\"\",IF(_xlfn.IFNA(MATCH(B9,taxonpath[scientific_name],0),\"\")=\"\",\"\",LOOKUP(B9,taxonpath[scientific_name],taxonpath[aphia_id])))","v":""}]
[{"$f":"IF(B10=\"\",\"\",IF(_xlfn.IFNA(MATCH(B10,taxonpath[scientific_name],0),\"\")=\"\",\"\",LOOKUP(B10,taxonpath[scientific_name],taxonpath[aphia_id])))","v":""}]
[{"$f":"IF(B11=\"\",\"\",IF(_xlfn.IFNA(MATCH(B11,taxonpath[scientific_name],0),\"\")=\"\",\"\",LOOKUP(B11,taxonpath[scientific_name],taxonpath[aphia_id])))","v":""}]
[{"$f":"IF(B12=\"\",\"\",IF(_xlfn.IFNA(MATCH(B12,taxonpath[scientific_name],0),\"\")=\"\",\"\",LOOKUP(B12,taxonpath[scientific_name],taxonpath[aphia_id])))","v":""}]
[{"$f":"IF(B13=\"\",\"\",IF(_xlfn.IFNA(MATCH(B13,taxonpath[scientific_name],0),\"\")=\"\",\"\",LOOKUP(B13,taxonpath[scientific_name],taxonpath[aphia_id])))","v":""}]
[{"$f":"IF(B14=\"\",\"\",IF(_xlfn.IFNA(MATCH(B14,taxonpath[scientific_name],0),\"\")=\"\",\"\",LOOKUP(B14,taxonpath[scientific_name],taxonpath[aphia_id])))","v":""}]
[{"$f":"IF(B15=\"\",\"\",IF(_xlfn.IFNA(MATCH(B15,taxonpath[scientific_name],0),\"\")=\"\",\"\",LOOKUP(B15,taxonpath[scientific_name],taxonpath[aphia_id])))","v":""}]
[{"$f":"IF(B16=\"\",\"\",IF(_xlfn.IFNA(MATCH(B16,taxonpath[scientific_name],0),\"\")=\"\",\"\",LOOKUP(B16,taxonpath[scientific_name],taxonpath[aphia_id])))","v":""}]
[{"$f":"IF(B17=\"\",\"\",IF(_xlfn.IFNA(MATCH(B17,taxonpath[scientific_name],0),\"\")=\"\",\"\",LOOKUP(B17,taxonpath[scientific_name],taxonpath[aphia_id])))","v":""}]
[{"$f":"IF(B18=\"\",\"\",IF(_xlfn.IFNA(MATCH(B18,taxonpath[scientific_name],0),\"\")=\"\",\"\",LOOKUP(B18,taxonpath[scientific_name],taxonpath[aphia_id])))","v":""}]
[{"$f":"IF(B19=\"\",\"\",IF(_xlfn.IFNA(MATCH(B19,taxonpath[scientific_name],0),\"\")=\"\",\"\",LOOKUP(B19,taxonpath[scientific_name],taxonpath[aphia_id])))","v":""}]
[{"$f":"IF(B20=\"\",\"\",IF(_xlfn.IFNA(MATCH(B20,taxonpath[scientific_name],0),\"\")=\"\",\"\",LOOKUP(B20,taxonpath[scientific_name],taxonpath[aphia_id])))","v":""}]
[{"$f":"IF(B21=\"\",\"\",IF(_xlfn.IFNA(MATCH(B21,taxonpath[scientific_name],0),\"\")=\"\",\"\",LOOKUP(B21,taxonpath[scientific_name],taxonpath[aphia_id])))","v":""}]
[{"$f":"IF(B22=\"\",\"\",IF(_xlfn.IFNA(MATCH(B22,taxonpath[scientific_name],0),\"\")=\"\",\"\",LOOKUP(B22,taxonpath[scientific_name],taxonpath[aphia_id])))","v":""}]
[{"$f":"IF(B23=\"\",\"\",IF(_xlfn.IFNA(MATCH(B23,taxonpath[scientific_name],0),\"\")=\"\",\"\",LOOKUP(B23,taxonpath[scientific_name],taxonpath[aphia_id])))","v":""}]
[{"$f":"IF(B24=\"\",\"\",IF(_xlfn.IFNA(MATCH(B24,taxonpath[scientific_name],0),\"\")=\"\",\"\",LOOKUP(B24,taxonpath[scientific_name],taxonpath[aphia_id])))","v":""}]
[{"$f":"IF(B25=\"\",\"\",IF(_xlfn.IFNA(MATCH(B25,taxonpath[scientific_name],0),\"\")=\"\",\"\",LOOKUP(B25,taxonpath[scientific_name],taxonpath[aphia_id])))","v":""}]
[{"$f":"IF(B26=\"\",\"\",IF(_xlfn.IFNA(MATCH(B26,taxonpath[scientific_name],0),\"\")=\"\",\"\",LOOKUP(B26,taxonpath[scientific_name],taxonpath[aphia_id])))","v":""}]
[{"$f":"IF(B27=\"\",\"\",IF(_xlfn.IFNA(MATCH(B27,taxonpath[scientific_name],0),\"\")=\"\",\"\",LOOKUP(B27,taxonpath[scientific_name],taxonpath[aphia_id])))","v":""}]
[{"$f":"IF(B28=\"\",\"\",IF(_xlfn.IFNA(MATCH(B28,taxonpath[scientific_name],0),\"\")=\"\",\"\",LOOKUP(B28,taxonpath[scientific_name],taxonpath[aphia_id])))","v":""}]
[{"$f":"IF(B29=\"\",\"\",IF(_xlfn.IFNA(MATCH(B29,taxonpath[scientific_name],0),\"\")=\"\",\"\",LOOKUP(B29,taxonpath[scientific_name],taxonpath[aphia_id])))","v":""}]
[{"$f":"IF(B30=\"\",\"\",IF(_xlfn.IFNA(MATCH(B30,taxonpath[scientific_name],0),\"\")=\"\",\"\",LOOKUP(B30,taxonpath[scientific_name],taxonpath[aphia_id])))","v":""}]
[{"$f":"IF(B31=\"\",\"\",IF(_xlfn.IFNA(MATCH(B31,taxonpath[scientific_name],0),\"\")=\"\",\"\",LOOKUP(B31,taxonpath[scientific_name],taxonpath[aphia_id])))","v":""}]
[{"$f":"IF(B32=\"\",\"\",IF(_xlfn.IFNA(MATCH(B32,taxonpath[scientific_name],0),\"\")=\"\",\"\",LOOKUP(B32,taxonpath[scientific_name],taxonpath[aphia_id])))","v":""}]
[{"$f":"IF(B33=\"\",\"\",IF(_xlfn.IFNA(MATCH(B33,taxonpath[scientific_name],0),\"\")=\"\",\"\",LOOKUP(B33,taxonpath[scientific_name],taxonpath[aphia_id])))","v":""}]
[{"$f":"IF(B34=\"\",\"\",IF(_xlfn.IFNA(MATCH(B34,taxonpath[scientific_name],0),\"\")=\"\",\"\",LOOKUP(B34,taxonpath[scientific_name],taxonpath[aphia_id])))","v":""}]
[{"$f":"IF(B35=\"\",\"\",IF(_xlfn.IFNA(MATCH(B35,taxonpath[scientific_name],0),\"\")=\"\",\"\",LOOKUP(B35,taxonpath[scientific_name],taxonpath[aphia_id])))","v":""}]
[{"$f":"IF(B36=\"\",\"\",IF(_xlfn.IFNA(MATCH(B36,taxonpath[scientific_name],0),\"\")=\"\",\"\",LOOKUP(B36,taxonpath[scientific_name],taxonpath[aphia_id])))","v":""}]
[{"$f":"IF(B37=\"\",\"\",IF(_xlfn.IFNA(MATCH(B37,taxonpath[scientific_name],0),\"\")=\"\",\"\",LOOKUP(B37,taxonpath[scientific_name],taxonpath[aphia_id])))","v":""}]
[{"$f":"IF(B38=\"\",\"\",IF(_xlfn.IFNA(MATCH(B38,taxonpath[scientific_name],0),\"\")=\"\",\"\",LOOKUP(B38,taxonpath[scientific_name],taxonpath[aphia_id])))","v":""}]
[{"$f":"IF(B39=\"\",\"\",IF(_xlfn.IFNA(MATCH(B39,taxonpath[scientific_name],0),\"\")=\"\",\"\",LOOKUP(B39,taxonpath[scientific_name],taxonpath[aphia_id])))","v":""}]
[{"$f":"IF(B40=\"\",\"\",IF(_xlfn.IFNA(MATCH(B40,taxonpath[scientific_name],0),\"\")=\"\",\"\",LOOKUP(B40,taxonpath[scientific_name],taxonpath[aphia_id])))","v":""}]
[{"$f":"IF(B41=\"\",\"\",IF(_xlfn.IFNA(MATCH(B41,taxonpath[scientific_name],0),\"\")=\"\",\"\",LOOKUP(B41,taxonpath[scientific_name],taxonpath[aphia_id])))","v":""}]
[{"$f":"IF(B42=\"\",\"\",IF(_xlfn.IFNA(MATCH(B42,taxonpath[scientific_name],0),\"\")=\"\",\"\",LOOKUP(B42,taxonpath[scientific_name],taxonpath[aphia_id])))","v":""}]
[{"$f":"IF(B43=\"\",\"\",IF(_xlfn.IFNA(MATCH(B43,taxonpath[scientific_name],0),\"\")=\"\",\"\",LOOKUP(B43,taxonpath[scientific_name],taxonpath[aphia_id])))","v":""}]
[{"$f":"IF(B44=\"\",\"\",IF(_xlfn.IFNA(MATCH(B44,taxonpath[scientific_name],0),\"\")=\"\",\"\",LOOKUP(B44,taxonpath[scientific_name],taxonpath[aphia_id])))","v":""}]
[{"$f":"IF(B45=\"\",\"\",IF(_xlfn.IFNA(MATCH(B45,taxonpath[scientific_name],0),\"\")=\"\",\"\",LOOKUP(B45,taxonpath[scientific_name],taxonpath[aphia_id])))","v":""}]
[{"$f":"IF(B46=\"\",\"\",IF(_xlfn.IFNA(MATCH(B46,taxonpath[scientific_name],0),\"\")=\"\",\"\",LOOKUP(B46,taxonpath[scientific_name],taxonpath[aphia_id])))","v":""}]
[{"$f":"IF(B47=\"\",\"\",IF(_xlfn.IFNA(MATCH(B47,taxonpath[scientific_name],0),\"\")=\"\",\"\",LOOKUP(B47,taxonpath[scientific_name],taxonpath[aphia_id])))","v":""}]
[{"$f":"IF(B48=\"\",\"\",IF(_xlfn.IFNA(MATCH(B48,taxonpath[scientific_name],0),\"\")=\"\",\"\",LOOKUP(B48,taxonpath[scientific_name],taxonpath[aphia_id])))","v":""}]
[{"$f":"IF(B49=\"\",\"\",IF(_xlfn.IFNA(MATCH(B49,taxonpath[scientific_name],0),\"\")=\"\",\"\",LOOKUP(B49,taxonpath[scientific_name],taxonpath[aphia_id])))","v":""}]
[{"$f":"IF(B50=\"\",\"\",IF(_xlfn.IFNA(MATCH(B50,taxonpath[scientific_name],0),\"\")=\"\",\"\",LOOKUP(B50,taxonpath[scientific_name],taxonpath[aphia_id])))","v":""}]
[{"$f":"IF(B51=\"\",\"\",IF(_xlfn.IFNA(MATCH(B51,taxonpath[scientific_name],0),\"\")=\"\",\"\",LOOKUP(B51,taxonpath[scientific_name],taxonpath[aphia_id])))","v":""}]
[{"$f":"IF(B52=\"\",\"\",IF(_xlfn.IFNA(MATCH(B52,taxonpath[scientific_name],0),\"\")=\"\",\"\",LOOKUP(B52,taxonpath[scientific_name],taxonpath[aphia_id])))","v":""}]
[{"$f":"IF(B53=\"\",\"\",IF(_xlfn.IFNA(MATCH(B53,taxonpath[scientific_name],0),\"\")=\"\",\"\",LOOKUP(B53,taxonpath[scientific_name],taxonpath[aphia_id])))","v":""}]
[{"$f":"IF(B54=\"\",\"\",IF(_xlfn.IFNA(MATCH(B54,taxonpath[scientific_name],0),\"\")=\"\",\"\",LOOKUP(B54,taxonpath[scientific_name],taxonpath[aphia_id])))","v":""}]
[{"$f":"IF(B55=\"\",\"\",IF(_xlfn.IFNA(MATCH(B55,taxonpath[scientific_name],0),\"\")=\"\",\"\",LOOKUP(B55,taxonpath[scientific_name],taxonpath[aphia_id])))","v":""}]
[{"$f":"IF(B56=\"\",\"\",IF(_xlfn.IFNA(MATCH(B56,taxonpath[scientific_name],0),\"\")=\"\",\"\",LOOKUP(B56,taxonpath[scientific_name],taxonpath[aphia_id])))","v":""}]
[{"$f":"IF(B57=\"\",\"\",IF(_xlfn.IFNA(MATCH(B57,taxonpath[scientific_name],0),\"\")=\"\",\"\",LOOKUP(B57,taxonpath[scientific_name],taxonpath[aphia_id])))","v":""}]
[{"$f":"IF(B58=\"\",\"\",IF(_xlfn.IFNA(MATCH(B58,taxonpath[scientific_name],0),\"\")=\"\",\"\",LOOKUP(B58,taxonpath[scientific_name],taxonpath[aphia_id])))","v":""}]
[{"$f":"IF(B59=\"\",\"\",IF(_xlfn.IFNA(MATCH(B59,taxonpath[scientific_name],0),\"\")=\"\",\"\",LOOKUP(B59,taxonpath[scientific_name],taxonpath[aphia_id])))","v":""}]
[{"$f":"IF(B60=\"\",\"\",IF(_xlfn.IFNA(MATCH(B60,taxonpath[scientific_name],0),\"\")=\"\",\"\",LOOKUP(B60,taxonpath[scientific_name],taxonpath[aphia_id])))","v":""}]
[{"$f":"IF(B61=\"\",\"\",IF(_xlfn.IFNA(MATCH(B61,taxonpath[scientific_name],0),\"\")=\"\",\"\",LOOKUP(B61,taxonpath[scientific_name],taxonpath[aphia_id])))","v":""}]
[{"$f":"IF(B62=\"\",\"\",IF(_xlfn.IFNA(MATCH(B62,taxonpath[scientific_name],0),\"\")=\"\",\"\",LOOKUP(B62,taxonpath[scientific_name],taxonpath[aphia_id])))","v":""}]
[{"$f":"IF(B63=\"\",\"\",IF(_xlfn.IFNA(MATCH(B63,taxonpath[scientific_name],0),\"\")=\"\",\"\",LOOKUP(B63,taxonpath[scientific_name],taxonpath[aphia_id])))","v":""}]
[{"$f":"IF(B64=\"\",\"\",IF(_xlfn.IFNA(MATCH(B64,taxonpath[scientific_name],0),\"\")=\"\",\"\",LOOKUP(B64,taxonpath[scientific_name],taxonpath[aphia_id])))","v":""}]
[{"$f":"IF(B65=\"\",\"\",IF(_xlfn.IFNA(MATCH(B65,taxonpath[scientific_name],0),\"\")=\"\",\"\",LOOKUP(B65,taxonpath[scientific_name],taxonpath[aphia_id])))","v":""}]
[{"$f":"IF(B66=\"\",\"\",IF(_xlfn.IFNA(MATCH(B66,taxonpath[scientific_name],0),\"\")=\"\",\"\",LOOKUP(B66,taxonpath[scientific_name],taxonpath[aphia_id])))","v":""}]
[{"$f":"IF(B67=\"\",\"\",IF(_xlfn.IFNA(MATCH(B67,taxonpath[scientific_name],0),\"\")=\"\",\"\",LOOKUP(B67,taxonpath[scientific_name],taxonpath[aphia_id])))","v":""}]
[{"$f":"IF(B68=\"\",\"\",IF(_xlfn.IFNA(MATCH(B68,taxonpath[scientific_name],0),\"\")=\"\",\"\",LOOKUP(B68,taxonpath[scientific_name],taxonpath[aphia_id])))","v":""}]
[{"$f":"IF(B69=\"\",\"\",IF(_xlfn.IFNA(MATCH(B69,taxonpath[scientific_name],0),\"\")=\"\",\"\",LOOKUP(B69,taxonpath[scientific_name],taxonpath[aphia_id])))","v":""}]
[{"$f":"IF(B70=\"\",\"\",IF(_xlfn.IFNA(MATCH(B70,taxonpath[scientific_name],0),\"\")=\"\",\"\",LOOKUP(B70,taxonpath[scientific_name],taxonpath[aphia_id])))","v":""}]
[{"$f":"IF(B71=\"\",\"\",IF(_xlfn.IFNA(MATCH(B71,taxonpath[scientific_name],0),\"\")=\"\",\"\",LOOKUP(B71,taxonpath[scientific_name],taxonpath[aphia_id])))","v":""}]
[{"$f":"IF(B72=\"\",\"\",IF(_xlfn.IFNA(MATCH(B72,taxonpath[scientific_name],0),\"\")=\"\",\"\",LOOKUP(B72,taxonpath[scientific_name],taxonpath[aphia_id])))","v":""}]
[{"$f":"IF(B73=\"\",\"\",IF(_xlfn.IFNA(MATCH(B73,taxonpath[scientific_name],0),\"\")=\"\",\"\",LOOKUP(B73,taxonpath[scientific_name],taxonpath[aphia_id])))","v":""}]
[{"$f":"IF(B74=\"\",\"\",IF(_xlfn.IFNA(MATCH(B74,taxonpath[scientific_name],0),\"\")=\"\",\"\",LOOKUP(B74,taxonpath[scientific_name],taxonpath[aphia_id])))","v":""}]
[{"$f":"IF(B75=\"\",\"\",IF(_xlfn.IFNA(MATCH(B75,taxonpath[scientific_name],0),\"\")=\"\",\"\",LOOKUP(B75,taxonpath[scientific_name],taxonpath[aphia_id])))","v":""}]
[{"$f":"IF(B76=\"\",\"\",IF(_xlfn.IFNA(MATCH(B76,taxonpath[scientific_name],0),\"\")=\"\",\"\",LOOKUP(B76,taxonpath[scientific_name],taxonpath[aphia_id])))","v":""}]
[{"$f":"IF(B77=\"\",\"\",IF(_xlfn.IFNA(MATCH(B77,taxonpath[scientific_name],0),\"\")=\"\",\"\",LOOKUP(B77,taxonpath[scientific_name],taxonpath[aphia_id])))","v":""}]
[{"$f":"IF(B78=\"\",\"\",IF(_xlfn.IFNA(MATCH(B78,taxonpath[scientific_name],0),\"\")=\"\",\"\",LOOKUP(B78,taxonpath[scientific_name],taxonpath[aphia_id])))","v":""}]
[{"$f":"IF(B79=\"\",\"\",IF(_xlfn.IFNA(MATCH(B79,taxonpath[scientific_name],0),\"\")=\"\",\"\",LOOKUP(B79,taxonpath[scientific_name],taxonpath[aphia_id])))","v":""}]
[{"$f":"IF(B80=\"\",\"\",IF(_xlfn.IFNA(MATCH(B80,taxonpath[scientific_name],0),\"\")=\"\",\"\",LOOKUP(B80,taxonpath[scientific_name],taxonpath[aphia_id])))","v":""}]
[{"$f":"IF(B81=\"\",\"\",IF(_xlfn.IFNA(MATCH(B81,taxonpath[scientific_name],0),\"\")=\"\",\"\",LOOKUP(B81,taxonpath[scientific_name],taxonpath[aphia_id])))","v":""}]
[{"$f":"IF(B82=\"\",\"\",IF(_xlfn.IFNA(MATCH(B82,taxonpath[scientific_name],0),\"\")=\"\",\"\",LOOKUP(B82,taxonpath[scientific_name],taxonpath[aphia_id])))","v":""}]
[{"$f":"IF(B83=\"\",\"\",IF(_xlfn.IFNA(MATCH(B83,taxonpath[scientific_name],0),\"\")=\"\",\"\",LOOKUP(B83,taxonpath[scientific_name],taxonpath[aphia_id])))","v":""}]
[{"$f":"IF(B84=\"\",\"\",IF(_xlfn.IFNA(MATCH(B84,taxonpath[scientific_name],0),\"\")=\"\",\"\",LOOKUP(B84,taxonpath[scientific_name],taxonpath[aphia_id])))","v":""}]
[{"$f":"IF(B85=\"\",\"\",IF(_xlfn.IFNA(MATCH(B85,taxonpath[scientific_name],0),\"\")=\"\",\"\",LOOKUP(B85,taxonpath[scientific_name],taxonpath[aphia_id])))","v":""}]
[{"$f":"IF(B86=\"\",\"\",IF(_xlfn.IFNA(MATCH(B86,taxonpath[scientific_name],0),\"\")=\"\",\"\",LOOKUP(B86,taxonpath[scientific_name],taxonpath[aphia_id])))","v":""}]
[{"$f":"IF(B87=\"\",\"\",IF(_xlfn.IFNA(MATCH(B87,taxonpath[scientific_name],0),\"\")=\"\",\"\",LOOKUP(B87,taxonpath[scientific_name],taxonpath[aphia_id])))","v":""}]
[{"$f":"IF(B88=\"\",\"\",IF(_xlfn.IFNA(MATCH(B88,taxonpath[scientific_name],0),\"\")=\"\",\"\",LOOKUP(B88,taxonpath[scientific_name],taxonpath[aphia_id])))","v":""}]
[{"$f":"IF(B89=\"\",\"\",IF(_xlfn.IFNA(MATCH(B89,taxonpath[scientific_name],0),\"\")=\"\",\"\",LOOKUP(B89,taxonpath[scientific_name],taxonpath[aphia_id])))","v":""}]
[{"$f":"IF(B90=\"\",\"\",IF(_xlfn.IFNA(MATCH(B90,taxonpath[scientific_name],0),\"\")=\"\",\"\",LOOKUP(B90,taxonpath[scientific_name],taxonpath[aphia_id])))","v":""}]
[{"$f":"IF(B91=\"\",\"\",IF(_xlfn.IFNA(MATCH(B91,taxonpath[scientific_name],0),\"\")=\"\",\"\",LOOKUP(B91,taxonpath[scientific_name],taxonpath[aphia_id])))","v":""}]
[{"$f":"IF(B92=\"\",\"\",IF(_xlfn.IFNA(MATCH(B92,taxonpath[scientific_name],0),\"\")=\"\",\"\",LOOKUP(B92,taxonpath[scientific_name],taxonpath[aphia_id])))","v":""}]
[{"$f":"IF(B93=\"\",\"\",IF(_xlfn.IFNA(MATCH(B93,taxonpath[scientific_name],0),\"\")=\"\",\"\",LOOKUP(B93,taxonpath[scientific_name],taxonpath[aphia_id])))","v":""}]
[{"$f":"IF(B94=\"\",\"\",IF(_xlfn.IFNA(MATCH(B94,taxonpath[scientific_name],0),\"\")=\"\",\"\",LOOKUP(B94,taxonpath[scientific_name],taxonpath[aphia_id])))","v":""}]
[{"$f":"IF(B95=\"\",\"\",IF(_xlfn.IFNA(MATCH(B95,taxonpath[scientific_name],0),\"\")=\"\",\"\",LOOKUP(B95,taxonpath[scientific_name],taxonpath[aphia_id])))","v":""}]
[{"$f":"IF(B96=\"\",\"\",IF(_xlfn.IFNA(MATCH(B96,taxonpath[scientific_name],0),\"\")=\"\",\"\",LOOKUP(B96,taxonpath[scientific_name],taxonpath[aphia_id])))","v":""}]
[{"$f":"IF(B97=\"\",\"\",IF(_xlfn.IFNA(MATCH(B97,taxonpath[scientific_name],0),\"\")=\"\",\"\",LOOKUP(B97,taxonpath[scientific_name],taxonpath[aphia_id])))","v":""}]
[{"$f":"IF(B98=\"\",\"\",IF(_xlfn.IFNA(MATCH(B98,taxonpath[scientific_name],0),\"\")=\"\",\"\",LOOKUP(B98,taxonpath[scientific_name],taxonpath[aphia_id])))","v":""}]
[{"$f":"IF(B99=\"\",\"\",IF(_xlfn.IFNA(MATCH(B99,taxonpath[scientific_name],0),\"\")=\"\",\"\",LOOKUP(B99,taxonpath[scientific_name],taxonpath[aphia_id])))","v":""}]
[{"$f":"IF(B100=\"\",\"\",IF(_xlfn.IFNA(MATCH(B100,taxonpath[scientific_name],0),\"\")=\"\",\"\",LOOKUP(B100,taxonpath[scientific_name],taxonpath[aphia_id])))","v":""}]
[{"$f":"IF(B101=\"\",\"\",IF(_xlfn.IFNA(MATCH(B101,taxonpath[scientific_name],0),\"\")=\"\",\"\",LOOKUP(B101,taxonpath[scientific_name],taxonpath[aphia_id])))","v":""}]
[{"$f":"IF(B102=\"\",\"\",IF(_xlfn.IFNA(MATCH(B102,taxonpath[scientific_name],0),\"\")=\"\",\"\",LOOKUP(B102,taxonpath[scientific_name],taxonpath[aphia_id])))","v":""}]
[{"$f":"IF(B103=\"\",\"\",IF(_xlfn.IFNA(MATCH(B103,taxonpath[scientific_name],0),\"\")=\"\",\"\",LOOKUP(B103,taxonpath[scientific_name],taxonpath[aphia_id])))","v":""}]
[{"$f":"IF(B104=\"\",\"\",IF(_xlfn.IFNA(MATCH(B104,taxonpath[scientific_name],0),\"\")=\"\",\"\",LOOKUP(B104,taxonpath[scientific_name],taxonpath[aphia_id])))","v":""}]
[{"$f":"IF(B105=\"\",\"\",IF(_xlfn.IFNA(MATCH(B105,taxonpath[scientific_name],0),\"\")=\"\",\"\",LOOKUP(B105,taxonpath[scientific_name],taxonpath[aphia_id])))","v":""}]
[{"$f":"IF(B106=\"\",\"\",IF(_xlfn.IFNA(MATCH(B106,taxonpath[scientific_name],0),\"\")=\"\",\"\",LOOKUP(B106,taxonpath[scientific_name],taxonpath[aphia_id])))","v":""}]
[{"$f":"IF(B107=\"\",\"\",IF(_xlfn.IFNA(MATCH(B107,taxonpath[scientific_name],0),\"\")=\"\",\"\",LOOKUP(B107,taxonpath[scientific_name],taxonpath[aphia_id])))","v":""}]
[{"$f":"IF(B108=\"\",\"\",IF(_xlfn.IFNA(MATCH(B108,taxonpath[scientific_name],0),\"\")=\"\",\"\",LOOKUP(B108,taxonpath[scientific_name],taxonpath[aphia_id])))","v":""}]
[{"$f":"IF(B109=\"\",\"\",IF(_xlfn.IFNA(MATCH(B109,taxonpath[scientific_name],0),\"\")=\"\",\"\",LOOKUP(B109,taxonpath[scientific_name],taxonpath[aphia_id])))","v":""}]
[{"$f":"IF(B110=\"\",\"\",IF(_xlfn.IFNA(MATCH(B110,taxonpath[scientific_name],0),\"\")=\"\",\"\",LOOKUP(B110,taxonpath[scientific_name],taxonpath[aphia_id])))","v":""}]
[{"$f":"IF(B111=\"\",\"\",IF(_xlfn.IFNA(MATCH(B111,taxonpath[scientific_name],0),\"\")=\"\",\"\",LOOKUP(B111,taxonpath[scientific_name],taxonpath[aphia_id])))","v":""}]
[{"$f":"IF(B112=\"\",\"\",IF(_xlfn.IFNA(MATCH(B112,taxonpath[scientific_name],0),\"\")=\"\",\"\",LOOKUP(B112,taxonpath[scientific_name],taxonpath[aphia_id])))","v":""}]
[{"$f":"IF(B113=\"\",\"\",IF(_xlfn.IFNA(MATCH(B113,taxonpath[scientific_name],0),\"\")=\"\",\"\",LOOKUP(B113,taxonpath[scientific_name],taxonpath[aphia_id])))","v":""}]
[{"$f":"IF(B114=\"\",\"\",IF(_xlfn.IFNA(MATCH(B114,taxonpath[scientific_name],0),\"\")=\"\",\"\",LOOKUP(B114,taxonpath[scientific_name],taxonpath[aphia_id])))","v":""}]
[{"$f":"IF(B115=\"\",\"\",IF(_xlfn.IFNA(MATCH(B115,taxonpath[scientific_name],0),\"\")=\"\",\"\",LOOKUP(B115,taxonpath[scientific_name],taxonpath[aphia_id])))","v":""}]
[{"$f":"IF(B116=\"\",\"\",IF(_xlfn.IFNA(MATCH(B116,taxonpath[scientific_name],0),\"\")=\"\",\"\",LOOKUP(B116,taxonpath[scientific_name],taxonpath[aphia_id])))","v":""}]
[{"$f":"IF(B117=\"\",\"\",IF(_xlfn.IFNA(MATCH(B117,taxonpath[scientific_name],0),\"\")=\"\",\"\",LOOKUP(B117,taxonpath[scientific_name],taxonpath[aphia_id])))","v":""}]
[{"$f":"IF(B118=\"\",\"\",IF(_xlfn.IFNA(MATCH(B118,taxonpath[scientific_name],0),\"\")=\"\",\"\",LOOKUP(B118,taxonpath[scientific_name],taxonpath[aphia_id])))","v":""}]
[{"$f":"IF(B119=\"\",\"\",IF(_xlfn.IFNA(MATCH(B119,taxonpath[scientific_name],0),\"\")=\"\",\"\",LOOKUP(B119,taxonpath[scientific_name],taxonpath[aphia_id])))","v":""}]
[{"$f":"IF(B120=\"\",\"\",IF(_xlfn.IFNA(MATCH(B120,taxonpath[scientific_name],0),\"\")=\"\",\"\",LOOKUP(B120,taxonpath[scientific_name],taxonpath[aphia_id])))","v":""}]
[{"$f":"IF(B121=\"\",\"\",IF(_xlfn.IFNA(MATCH(B121,taxonpath[scientific_name],0),\"\")=\"\",\"\",LOOKUP(B121,taxonpath[scientific_name],taxonpath[aphia_id])))","v":""}]
[{"$f":"IF(B122=\"\",\"\",IF(_xlfn.IFNA(MATCH(B122,taxonpath[scientific_name],0),\"\")=\"\",\"\",LOOKUP(B122,taxonpath[scientific_name],taxonpath[aphia_id])))","v":""}]
[{"$f":"IF(B123=\"\",\"\",IF(_xlfn.IFNA(MATCH(B123,taxonpath[scientific_name],0),\"\")=\"\",\"\",LOOKUP(B123,taxonpath[scientific_name],taxonpath[aphia_id])))","v":""}]
[{"$f":"IF(B124=\"\",\"\",IF(_xlfn.IFNA(MATCH(B124,taxonpath[scientific_name],0),\"\")=\"\",\"\",LOOKUP(B124,taxonpath[scientific_name],taxonpath[aphia_id])))","v":""}]
[{"$f":"IF(B125=\"\",\"\",IF(_xlfn.IFNA(MATCH(B125,taxonpath[scientific_name],0),\"\")=\"\",\"\",LOOKUP(B125,taxonpath[scientific_name],taxonpath[aphia_id])))","v":""}]
[{"$f":"IF(B126=\"\",\"\",IF(_xlfn.IFNA(MATCH(B126,taxonpath[scientific_name],0),\"\")=\"\",\"\",LOOKUP(B126,taxonpath[scientific_name],taxonpath[aphia_id])))","v":""}]
[{"$f":"IF(B127=\"\",\"\",IF(_xlfn.IFNA(MATCH(B127,taxonpath[scientific_name],0),\"\")=\"\",\"\",LOOKUP(B127,taxonpath[scientific_name],taxonpath[aphia_id])))","v":""}]
[{"$f":"IF(B128=\"\",\"\",IF(_xlfn.IFNA(MATCH(B128,taxonpath[scientific_name],0),\"\")=\"\",\"\",LOOKUP(B128,taxonpath[scientific_name],taxonpath[aphia_id])))","v":""}]
[{"$f":"IF(B129=\"\",\"\",IF(_xlfn.IFNA(MATCH(B129,taxonpath[scientific_name],0),\"\")=\"\",\"\",LOOKUP(B129,taxonpath[scientific_name],taxonpath[aphia_id])))","v":""}]
[{"$f":"IF(B130=\"\",\"\",IF(_xlfn.IFNA(MATCH(B130,taxonpath[scientific_name],0),\"\")=\"\",\"\",LOOKUP(B130,taxonpath[scientific_name],taxonpath[aphia_id])))","v":""}]
[{"$f":"IF(B131=\"\",\"\",IF(_xlfn.IFNA(MATCH(B131,taxonpath[scientific_name],0),\"\")=\"\",\"\",LOOKUP(B131,taxonpath[scientific_name],taxonpath[aphia_id])))","v":""}]
[{"$f":"IF(B132=\"\",\"\",IF(_xlfn.IFNA(MATCH(B132,taxonpath[scientific_name],0),\"\")=\"\",\"\",LOOKUP(B132,taxonpath[scientific_name],taxonpath[aphia_id])))","v":""}]
[{"$f":"IF(B133=\"\",\"\",IF(_xlfn.IFNA(MATCH(B133,taxonpath[scientific_name],0),\"\")=\"\",\"\",LOOKUP(B133,taxonpath[scientific_name],taxonpath[aphia_id])))","v":""}]
[{"$f":"IF(B134=\"\",\"\",IF(_xlfn.IFNA(MATCH(B134,taxonpath[scientific_name],0),\"\")=\"\",\"\",LOOKUP(B134,taxonpath[scientific_name],taxonpath[aphia_id])))","v":""}]
[{"$f":"IF(B135=\"\",\"\",IF(_xlfn.IFNA(MATCH(B135,taxonpath[scientific_name],0),\"\")=\"\",\"\",LOOKUP(B135,taxonpath[scientific_name],taxonpath[aphia_id])))","v":""}]
[{"$f":"IF(B136=\"\",\"\",IF(_xlfn.IFNA(MATCH(B136,taxonpath[scientific_name],0),\"\")=\"\",\"\",LOOKUP(B136,taxonpath[scientific_name],taxonpath[aphia_id])))","v":""}]
[{"$f":"IF(B137=\"\",\"\",IF(_xlfn.IFNA(MATCH(B137,taxonpath[scientific_name],0),\"\")=\"\",\"\",LOOKUP(B137,taxonpath[scientific_name],taxonpath[aphia_id])))","v":""}]
[{"$f":"IF(B138=\"\",\"\",IF(_xlfn.IFNA(MATCH(B138,taxonpath[scientific_name],0),\"\")=\"\",\"\",LOOKUP(B138,taxonpath[scientific_name],taxonpath[aphia_id])))","v":""}]
[{"$f":"IF(B139=\"\",\"\",IF(_xlfn.IFNA(MATCH(B139,taxonpath[scientific_name],0),\"\")=\"\",\"\",LOOKUP(B139,taxonpath[scientific_name],taxonpath[aphia_id])))","v":""}]
[{"$f":"IF(B140=\"\",\"\",IF(_xlfn.IFNA(MATCH(B140,taxonpath[scientific_name],0),\"\")=\"\",\"\",LOOKUP(B140,taxonpath[scientific_name],taxonpath[aphia_id])))","v":""}]
[{"$f":"IF(B141=\"\",\"\",IF(_xlfn.IFNA(MATCH(B141,taxonpath[scientific_name],0),\"\")=\"\",\"\",LOOKUP(B141,taxonpath[scientific_name],taxonpath[aphia_id])))","v":""}]
[{"$f":"IF(B142=\"\",\"\",IF(_xlfn.IFNA(MATCH(B142,taxonpath[scientific_name],0),\"\")=\"\",\"\",LOOKUP(B142,taxonpath[scientific_name],taxonpath[aphia_id])))","v":""}]
[{"$f":"IF(B143=\"\",\"\",IF(_xlfn.IFNA(MATCH(B143,taxonpath[scientific_name],0),\"\")=\"\",\"\",LOOKUP(B143,taxonpath[scientific_name],taxonpath[aphia_id])))","v":""}]
[{"$f":"IF(B144=\"\",\"\",IF(_xlfn.IFNA(MATCH(B144,taxonpath[scientific_name],0),\"\")=\"\",\"\",LOOKUP(B144,taxonpath[scientific_name],taxonpath[aphia_id])))","v":""}]
[{"$f":"IF(B145=\"\",\"\",IF(_xlfn.IFNA(MATCH(B145,taxonpath[scientific_name],0),\"\")=\"\",\"\",LOOKUP(B145,taxonpath[scientific_name],taxonpath[aphia_id])))","v":""}]
[{"$f":"IF(B146=\"\",\"\",IF(_xlfn.IFNA(MATCH(B146,taxonpath[scientific_name],0),\"\")=\"\",\"\",LOOKUP(B146,taxonpath[scientific_name],taxonpath[aphia_id])))","v":""}]
[{"$f":"IF(B147=\"\",\"\",IF(_xlfn.IFNA(MATCH(B147,taxonpath[scientific_name],0),\"\")=\"\",\"\",LOOKUP(B147,taxonpath[scientific_name],taxonpath[aphia_id])))","v":""}]
[{"$f":"IF(B148=\"\",\"\",IF(_xlfn.IFNA(MATCH(B148,taxonpath[scientific_name],0),\"\")=\"\",\"\",LOOKUP(B148,taxonpath[scientific_name],taxonpath[aphia_id])))","v":""}]
[{"$f":"IF(B149=\"\",\"\",IF(_xlfn.IFNA(MATCH(B149,taxonpath[scientific_name],0),\"\")=\"\",\"\",LOOKUP(B149,taxonpath[scientific_name],taxonpath[aphia_id])))","v":""}]
[{"$f":"IF(B150=\"\",\"\",IF(_xlfn.IFNA(MATCH(B150,taxonpath[scientific_name],0),\"\")=\"\",\"\",LOOKUP(B150,taxonpath[scientific_name],taxonpath[aphia_id])))","v":""}]
[{"$f":"IF(B151=\"\",\"\",IF(_xlfn.IFNA(MATCH(B151,taxonpath[scientific_name],0),\"\")=\"\",\"\",LOOKUP(B151,taxonpath[scientific_name],taxonpath[aphia_id])))","v":""}]
[{"$f":"IF(B152=\"\",\"\",IF(_xlfn.IFNA(MATCH(B152,taxonpath[scientific_name],0),\"\")=\"\",\"\",LOOKUP(B152,taxonpath[scientific_name],taxonpath[aphia_id])))","v":""}]
[{"$f":"IF(B153=\"\",\"\",IF(_xlfn.IFNA(MATCH(B153,taxonpath[scientific_name],0),\"\")=\"\",\"\",LOOKUP(B153,taxonpath[scientific_name],taxonpath[aphia_id])))","v":""}]
[{"$f":"IF(B154=\"\",\"\",IF(_xlfn.IFNA(MATCH(B154,taxonpath[scientific_name],0),\"\")=\"\",\"\",LOOKUP(B154,taxonpath[scientific_name],taxonpath[aphia_id])))","v":""}]
[{"$f":"IF(B155=\"\",\"\",IF(_xlfn.IFNA(MATCH(B155,taxonpath[scientific_name],0),\"\")=\"\",\"\",LOOKUP(B155,taxonpath[scientific_name],taxonpath[aphia_id])))","v":""}]
[{"$f":"IF(B156=\"\",\"\",IF(_xlfn.IFNA(MATCH(B156,taxonpath[scientific_name],0),\"\")=\"\",\"\",LOOKUP(B156,taxonpath[scientific_name],taxonpath[aphia_id])))","v":""}]
[{"$f":"IF(B157=\"\",\"\",IF(_xlfn.IFNA(MATCH(B157,taxonpath[scientific_name],0),\"\")=\"\",\"\",LOOKUP(B157,taxonpath[scientific_name],taxonpath[aphia_id])))","v":""}]
[{"$f":"IF(B158=\"\",\"\",IF(_xlfn.IFNA(MATCH(B158,taxonpath[scientific_name],0),\"\")=\"\",\"\",LOOKUP(B158,taxonpath[scientific_name],taxonpath[aphia_id])))","v":""}]
[{"$f":"IF(B159=\"\",\"\",IF(_xlfn.IFNA(MATCH(B159,taxonpath[scientific_name],0),\"\")=\"\",\"\",LOOKUP(B159,taxonpath[scientific_name],taxonpath[aphia_id])))","v":""}]
[{"$f":"IF(B160=\"\",\"\",IF(_xlfn.IFNA(MATCH(B160,taxonpath[scientific_name],0),\"\")=\"\",\"\",LOOKUP(B160,taxonpath[scientific_name],taxonpath[aphia_id])))","v":""}]
[{"$f":"IF(B161=\"\",\"\",IF(_xlfn.IFNA(MATCH(B161,taxonpath[scientific_name],0),\"\")=\"\",\"\",LOOKUP(B161,taxonpath[scientific_name],taxonpath[aphia_id])))","v":""}]
[{"$f":"IF(B162=\"\",\"\",IF(_xlfn.IFNA(MATCH(B162,taxonpath[scientific_name],0),\"\")=\"\",\"\",LOOKUP(B162,taxonpath[scientific_name],taxonpath[aphia_id])))","v":""}]
[{"$f":"IF(B163=\"\",\"\",IF(_xlfn.IFNA(MATCH(B163,taxonpath[scientific_name],0),\"\")=\"\",\"\",LOOKUP(B163,taxonpath[scientific_name],taxonpath[aphia_id])))","v":""}]
[{"$f":"IF(B164=\"\",\"\",IF(_xlfn.IFNA(MATCH(B164,taxonpath[scientific_name],0),\"\")=\"\",\"\",LOOKUP(B164,taxonpath[scientific_name],taxonpath[aphia_id])))","v":""}]
[{"$f":"IF(B165=\"\",\"\",IF(_xlfn.IFNA(MATCH(B165,taxonpath[scientific_name],0),\"\")=\"\",\"\",LOOKUP(B165,taxonpath[scientific_name],taxonpath[aphia_id])))","v":""}]
[{"$f":"IF(B166=\"\",\"\",IF(_xlfn.IFNA(MATCH(B166,taxonpath[scientific_name],0),\"\")=\"\",\"\",LOOKUP(B166,taxonpath[scientific_name],taxonpath[aphia_id])))","v":""}]
[{"$f":"IF(B167=\"\",\"\",IF(_xlfn.IFNA(MATCH(B167,taxonpath[scientific_name],0),\"\")=\"\",\"\",LOOKUP(B167,taxonpath[scientific_name],taxonpath[aphia_id])))","v":""}]
[{"$f":"IF(B168=\"\",\"\",IF(_xlfn.IFNA(MATCH(B168,taxonpath[scientific_name],0),\"\")=\"\",\"\",LOOKUP(B168,taxonpath[scientific_name],taxonpath[aphia_id])))","v":""}]
[{"$f":"IF(B169=\"\",\"\",IF(_xlfn.IFNA(MATCH(B169,taxonpath[scientific_name],0),\"\")=\"\",\"\",LOOKUP(B169,taxonpath[scientific_name],taxonpath[aphia_id])))","v":""}]
[{"$f":"IF(B170=\"\",\"\",IF(_xlfn.IFNA(MATCH(B170,taxonpath[scientific_name],0),\"\")=\"\",\"\",LOOKUP(B170,taxonpath[scientific_name],taxonpath[aphia_id])))","v":""}]
[{"$f":"IF(B171=\"\",\"\",IF(_xlfn.IFNA(MATCH(B171,taxonpath[scientific_name],0),\"\")=\"\",\"\",LOOKUP(B171,taxonpath[scientific_name],taxonpath[aphia_id])))","v":""}]
[{"$f":"IF(B172=\"\",\"\",IF(_xlfn.IFNA(MATCH(B172,taxonpath[scientific_name],0),\"\")=\"\",\"\",LOOKUP(B172,taxonpath[scientific_name],taxonpath[aphia_id])))","v":""}]
[{"$f":"IF(B173=\"\",\"\",IF(_xlfn.IFNA(MATCH(B173,taxonpath[scientific_name],0),\"\")=\"\",\"\",LOOKUP(B173,taxonpath[scientific_name],taxonpath[aphia_id])))","v":""}]
[{"$f":"IF(B174=\"\",\"\",IF(_xlfn.IFNA(MATCH(B174,taxonpath[scientific_name],0),\"\")=\"\",\"\",LOOKUP(B174,taxonpath[scientific_name],taxonpath[aphia_id])))","v":""}]
[{"$f":"IF(B175=\"\",\"\",IF(_xlfn.IFNA(MATCH(B175,taxonpath[scientific_name],0),\"\")=\"\",\"\",LOOKUP(B175,taxonpath[scientific_name],taxonpath[aphia_id])))","v":""}]
[{"$f":"IF(B176=\"\",\"\",IF(_xlfn.IFNA(MATCH(B176,taxonpath[scientific_name],0),\"\")=\"\",\"\",LOOKUP(B176,taxonpath[scientific_name],taxonpath[aphia_id])))","v":""}]
[{"$f":"IF(B177=\"\",\"\",IF(_xlfn.IFNA(MATCH(B177,taxonpath[scientific_name],0),\"\")=\"\",\"\",LOOKUP(B177,taxonpath[scientific_name],taxonpath[aphia_id])))","v":""}]
[{"$f":"IF(B178=\"\",\"\",IF(_xlfn.IFNA(MATCH(B178,taxonpath[scientific_name],0),\"\")=\"\",\"\",LOOKUP(B178,taxonpath[scientific_name],taxonpath[aphia_id])))","v":""}]
[{"$f":"IF(B179=\"\",\"\",IF(_xlfn.IFNA(MATCH(B179,taxonpath[scientific_name],0),\"\")=\"\",\"\",LOOKUP(B179,taxonpath[scientific_name],taxonpath[aphia_id])))","v":""}]
[{"$f":"IF(B180=\"\",\"\",IF(_xlfn.IFNA(MATCH(B180,taxonpath[scientific_name],0),\"\")=\"\",\"\",LOOKUP(B180,taxonpath[scientific_name],taxonpath[aphia_id])))","v":""}]
[{"$f":"IF(B181=\"\",\"\",IF(_xlfn.IFNA(MATCH(B181,taxonpath[scientific_name],0),\"\")=\"\",\"\",LOOKUP(B181,taxonpath[scientific_name],taxonpath[aphia_id])))","v":""}]
[{"$f":"IF(B182=\"\",\"\",IF(_xlfn.IFNA(MATCH(B182,taxonpath[scientific_name],0),\"\")=\"\",\"\",LOOKUP(B182,taxonpath[scientific_name],taxonpath[aphia_id])))","v":""}]
[{"$f":"IF(B183=\"\",\"\",IF(_xlfn.IFNA(MATCH(B183,taxonpath[scientific_name],0),\"\")=\"\",\"\",LOOKUP(B183,taxonpath[scientific_name],taxonpath[aphia_id])))","v":""}]
[{"$f":"IF(B184=\"\",\"\",IF(_xlfn.IFNA(MATCH(B184,taxonpath[scientific_name],0),\"\")=\"\",\"\",LOOKUP(B184,taxonpath[scientific_name],taxonpath[aphia_id])))","v":""}]
[{"$f":"IF(B185=\"\",\"\",IF(_xlfn.IFNA(MATCH(B185,taxonpath[scientific_name],0),\"\")=\"\",\"\",LOOKUP(B185,taxonpath[scientific_name],taxonpath[aphia_id])))","v":""}]
[{"$f":"IF(B186=\"\",\"\",IF(_xlfn.IFNA(MATCH(B186,taxonpath[scientific_name],0),\"\")=\"\",\"\",LOOKUP(B186,taxonpath[scientific_name],taxonpath[aphia_id])))","v":""}]
[{"$f":"IF(B187=\"\",\"\",IF(_xlfn.IFNA(MATCH(B187,taxonpath[scientific_name],0),\"\")=\"\",\"\",LOOKUP(B187,taxonpath[scientific_name],taxonpath[aphia_id])))","v":""}]
[{"$f":"IF(B188=\"\",\"\",IF(_xlfn.IFNA(MATCH(B188,taxonpath[scientific_name],0),\"\")=\"\",\"\",LOOKUP(B188,taxonpath[scientific_name],taxonpath[aphia_id])))","v":""}]
[{"$f":"IF(B189=\"\",\"\",IF(_xlfn.IFNA(MATCH(B189,taxonpath[scientific_name],0),\"\")=\"\",\"\",LOOKUP(B189,taxonpath[scientific_name],taxonpath[aphia_id])))","v":""}]
[{"$f":"IF(B190=\"\",\"\",IF(_xlfn.IFNA(MATCH(B190,taxonpath[scientific_name],0),\"\")=\"\",\"\",LOOKUP(B190,taxonpath[scientific_name],taxonpath[aphia_id])))","v":""}]
[{"$f":"IF(B191=\"\",\"\",IF(_xlfn.IFNA(MATCH(B191,taxonpath[scientific_name],0),\"\")=\"\",\"\",LOOKUP(B191,taxonpath[scientific_name],taxonpath[aphia_id])))","v":""}]
[{"$f":"IF(B192=\"\",\"\",IF(_xlfn.IFNA(MATCH(B192,taxonpath[scientific_name],0),\"\")=\"\",\"\",LOOKUP(B192,taxonpath[scientific_name],taxonpath[aphia_id])))","v":""}]
[{"$f":"IF(B193=\"\",\"\",IF(_xlfn.IFNA(MATCH(B193,taxonpath[scientific_name],0),\"\")=\"\",\"\",LOOKUP(B193,taxonpath[scientific_name],taxonpath[aphia_id])))","v":""}]
[{"$f":"IF(B194=\"\",\"\",IF(_xlfn.IFNA(MATCH(B194,taxonpath[scientific_name],0),\"\")=\"\",\"\",LOOKUP(B194,taxonpath[scientific_name],taxonpath[aphia_id])))","v":""}]
[{"$f":"IF(B195=\"\",\"\",IF(_xlfn.IFNA(MATCH(B195,taxonpath[scientific_name],0),\"\")=\"\",\"\",LOOKUP(B195,taxonpath[scientific_name],taxonpath[aphia_id])))","v":""}]
[{"$f":"IF(B196=\"\",\"\",IF(_xlfn.IFNA(MATCH(B196,taxonpath[scientific_name],0),\"\")=\"\",\"\",LOOKUP(B196,taxonpath[scientific_name],taxonpath[aphia_id])))","v":""}]
[{"$f":"IF(B197=\"\",\"\",IF(_xlfn.IFNA(MATCH(B197,taxonpath[scientific_name],0),\"\")=\"\",\"\",LOOKUP(B197,taxonpath[scientific_name],taxonpath[aphia_id])))","v":""}]
[{"$f":"IF(B198=\"\",\"\",IF(_xlfn.IFNA(MATCH(B198,taxonpath[scientific_name],0),\"\")=\"\",\"\",LOOKUP(B198,taxonpath[scientific_name],taxonpath[aphia_id])))","v":""}]
[{"$f":"IF(B199=\"\",\"\",IF(_xlfn.IFNA(MATCH(B199,taxonpath[scientific_name],0),\"\")=\"\",\"\",LOOKUP(B199,taxonpath[scientific_name],taxonpath[aphia_id])))","v":""}]
[{"$f":"IF(B200=\"\",\"\",IF(_xlfn.IFNA(MATCH(B200,taxonpath[scientific_name],0),\"\")=\"\",\"\",LOOKUP(B200,taxonpath[scientific_name],taxonpath[aphia_id])))","v":""}]
[{"$f":"IF(B201=\"\",\"\",IF(_xlfn.IFNA(MATCH(B201,taxonpath[scientific_name],0),\"\")=\"\",\"\",LOOKUP(B201,taxonpath[scientific_name],taxonpath[aphia_id])))","v":""}]
[{"$f":"IF(B202=\"\",\"\",IF(_xlfn.IFNA(MATCH(B202,taxonpath[scientific_name],0),\"\")=\"\",\"\",LOOKUP(B202,taxonpath[scientific_name],taxonpath[aphia_id])))","v":""}]
[{"$f":"IF(B203=\"\",\"\",IF(_xlfn.IFNA(MATCH(B203,taxonpath[scientific_name],0),\"\")=\"\",\"\",LOOKUP(B203,taxonpath[scientific_name],taxonpath[aphia_id])))","v":""}]
[{"$f":"IF(B204=\"\",\"\",IF(_xlfn.IFNA(MATCH(B204,taxonpath[scientific_name],0),\"\")=\"\",\"\",LOOKUP(B204,taxonpath[scientific_name],taxonpath[aphia_id])))","v":""}]
[{"$f":"IF(B205=\"\",\"\",IF(_xlfn.IFNA(MATCH(B205,taxonpath[scientific_name],0),\"\")=\"\",\"\",LOOKUP(B205,taxonpath[scientific_name],taxonpath[aphia_id])))","v":""}]
[{"$f":"IF(B206=\"\",\"\",IF(_xlfn.IFNA(MATCH(B206,taxonpath[scientific_name],0),\"\")=\"\",\"\",LOOKUP(B206,taxonpath[scientific_name],taxonpath[aphia_id])))","v":""}]
[{"$f":"IF(B207=\"\",\"\",IF(_xlfn.IFNA(MATCH(B207,taxonpath[scientific_name],0),\"\")=\"\",\"\",LOOKUP(B207,taxonpath[scientific_name],taxonpath[aphia_id])))","v":""}]
[{"$f":"IF(B208=\"\",\"\",IF(_xlfn.IFNA(MATCH(B208,taxonpath[scientific_name],0),\"\")=\"\",\"\",LOOKUP(B208,taxonpath[scientific_name],taxonpath[aphia_id])))","v":""}]
[{"$f":"IF(B209=\"\",\"\",IF(_xlfn.IFNA(MATCH(B209,taxonpath[scientific_name],0),\"\")=\"\",\"\",LOOKUP(B209,taxonpath[scientific_name],taxonpath[aphia_id])))","v":""}]
[{"$f":"IF(B210=\"\",\"\",IF(_xlfn.IFNA(MATCH(B210,taxonpath[scientific_name],0),\"\")=\"\",\"\",LOOKUP(B210,taxonpath[scientific_name],taxonpath[aphia_id])))","v":""}]
[{"$f":"IF(B211=\"\",\"\",IF(_xlfn.IFNA(MATCH(B211,taxonpath[scientific_name],0),\"\")=\"\",\"\",LOOKUP(B211,taxonpath[scientific_name],taxonpath[aphia_id])))","v":""}]
[{"$f":"IF(B212=\"\",\"\",IF(_xlfn.IFNA(MATCH(B212,taxonpath[scientific_name],0),\"\")=\"\",\"\",LOOKUP(B212,taxonpath[scientific_name],taxonpath[aphia_id])))","v":""}]
[{"$f":"IF(B213=\"\",\"\",IF(_xlfn.IFNA(MATCH(B213,taxonpath[scientific_name],0),\"\")=\"\",\"\",LOOKUP(B213,taxonpath[scientific_name],taxonpath[aphia_id])))","v":""}]
[{"$f":"IF(B214=\"\",\"\",IF(_xlfn.IFNA(MATCH(B214,taxonpath[scientific_name],0),\"\")=\"\",\"\",LOOKUP(B214,taxonpath[scientific_name],taxonpath[aphia_id])))","v":""}]
[{"$f":"IF(B215=\"\",\"\",IF(_xlfn.IFNA(MATCH(B215,taxonpath[scientific_name],0),\"\")=\"\",\"\",LOOKUP(B215,taxonpath[scientific_name],taxonpath[aphia_id])))","v":""}]
[{"$f":"IF(B216=\"\",\"\",IF(_xlfn.IFNA(MATCH(B216,taxonpath[scientific_name],0),\"\")=\"\",\"\",LOOKUP(B216,taxonpath[scientific_name],taxonpath[aphia_id])))","v":""}]
[{"$f":"IF(B217=\"\",\"\",IF(_xlfn.IFNA(MATCH(B217,taxonpath[scientific_name],0),\"\")=\"\",\"\",LOOKUP(B217,taxonpath[scientific_name],taxonpath[aphia_id])))","v":""}]
[{"$f":"IF(B218=\"\",\"\",IF(_xlfn.IFNA(MATCH(B218,taxonpath[scientific_name],0),\"\")=\"\",\"\",LOOKUP(B218,taxonpath[scientific_name],taxonpath[aphia_id])))","v":""}]
[{"$f":"IF(B219=\"\",\"\",IF(_xlfn.IFNA(MATCH(B219,taxonpath[scientific_name],0),\"\")=\"\",\"\",LOOKUP(B219,taxonpath[scientific_name],taxonpath[aphia_id])))","v":""}]
[{"$f":"IF(B220=\"\",\"\",IF(_xlfn.IFNA(MATCH(B220,taxonpath[scientific_name],0),\"\")=\"\",\"\",LOOKUP(B220,taxonpath[scientific_name],taxonpath[aphia_id])))","v":""}]
[{"$f":"IF(B221=\"\",\"\",IF(_xlfn.IFNA(MATCH(B221,taxonpath[scientific_name],0),\"\")=\"\",\"\",LOOKUP(B221,taxonpath[scientific_name],taxonpath[aphia_id])))","v":""}]
[{"$f":"IF(B222=\"\",\"\",IF(_xlfn.IFNA(MATCH(B222,taxonpath[scientific_name],0),\"\")=\"\",\"\",LOOKUP(B222,taxonpath[scientific_name],taxonpath[aphia_id])))","v":""}]
[{"$f":"IF(B223=\"\",\"\",IF(_xlfn.IFNA(MATCH(B223,taxonpath[scientific_name],0),\"\")=\"\",\"\",LOOKUP(B223,taxonpath[scientific_name],taxonpath[aphia_id])))","v":""}]
[{"$f":"IF(B224=\"\",\"\",IF(_xlfn.IFNA(MATCH(B224,taxonpath[scientific_name],0),\"\")=\"\",\"\",LOOKUP(B224,taxonpath[scientific_name],taxonpath[aphia_id])))","v":""}]
[{"$f":"IF(B225=\"\",\"\",IF(_xlfn.IFNA(MATCH(B225,taxonpath[scientific_name],0),\"\")=\"\",\"\",LOOKUP(B225,taxonpath[scientific_name],taxonpath[aphia_id])))","v":""}]
[{"$f":"IF(B226=\"\",\"\",IF(_xlfn.IFNA(MATCH(B226,taxonpath[scientific_name],0),\"\")=\"\",\"\",LOOKUP(B226,taxonpath[scientific_name],taxonpath[aphia_id])))","v":""}]
[{"$f":"IF(B227=\"\",\"\",IF(_xlfn.IFNA(MATCH(B227,taxonpath[scientific_name],0),\"\")=\"\",\"\",LOOKUP(B227,taxonpath[scientific_name],taxonpath[aphia_id])))","v":""}]
[{"$f":"IF(B228=\"\",\"\",IF(_xlfn.IFNA(MATCH(B228,taxonpath[scientific_name],0),\"\")=\"\",\"\",LOOKUP(B228,taxonpath[scientific_name],taxonpath[aphia_id])))","v":""}]
[{"$f":"IF(B229=\"\",\"\",IF(_xlfn.IFNA(MATCH(B229,taxonpath[scientific_name],0),\"\")=\"\",\"\",LOOKUP(B229,taxonpath[scientific_name],taxonpath[aphia_id])))","v":""}]
[{"$f":"IF(B230=\"\",\"\",IF(_xlfn.IFNA(MATCH(B230,taxonpath[scientific_name],0),\"\")=\"\",\"\",LOOKUP(B230,taxonpath[scientific_name],taxonpath[aphia_id])))","v":""}]
[{"$f":"IF(B231=\"\",\"\",IF(_xlfn.IFNA(MATCH(B231,taxonpath[scientific_name],0),\"\")=\"\",\"\",LOOKUP(B231,taxonpath[scientific_name],taxonpath[aphia_id])))","v":""}]
[{"$f":"IF(B232=\"\",\"\",IF(_xlfn.IFNA(MATCH(B232,taxonpath[scientific_name],0),\"\")=\"\",\"\",LOOKUP(B232,taxonpath[scientific_name],taxonpath[aphia_id])))","v":""}]
[{"$f":"IF(B233=\"\",\"\",IF(_xlfn.IFNA(MATCH(B233,taxonpath[scientific_name],0),\"\")=\"\",\"\",LOOKUP(B233,taxonpath[scientific_name],taxonpath[aphia_id])))","v":""}]
[{"$f":"IF(B234=\"\",\"\",IF(_xlfn.IFNA(MATCH(B234,taxonpath[scientific_name],0),\"\")=\"\",\"\",LOOKUP(B234,taxonpath[scientific_name],taxonpath[aphia_id])))","v":""}]
[{"$f":"IF(B235=\"\",\"\",IF(_xlfn.IFNA(MATCH(B235,taxonpath[scientific_name],0),\"\")=\"\",\"\",LOOKUP(B235,taxonpath[scientific_name],taxonpath[aphia_id])))","v":""}]
[{"$f":"IF(B236=\"\",\"\",IF(_xlfn.IFNA(MATCH(B236,taxonpath[scientific_name],0),\"\")=\"\",\"\",LOOKUP(B236,taxonpath[scientific_name],taxonpath[aphia_id])))","v":""}]
[{"$f":"IF(B237=\"\",\"\",IF(_xlfn.IFNA(MATCH(B237,taxonpath[scientific_name],0),\"\")=\"\",\"\",LOOKUP(B237,taxonpath[scientific_name],taxonpath[aphia_id])))","v":""}]
[{"$f":"IF(B238=\"\",\"\",IF(_xlfn.IFNA(MATCH(B238,taxonpath[scientific_name],0),\"\")=\"\",\"\",LOOKUP(B238,taxonpath[scientific_name],taxonpath[aphia_id])))","v":""}]
[{"$f":"IF(B239=\"\",\"\",IF(_xlfn.IFNA(MATCH(B239,taxonpath[scientific_name],0),\"\")=\"\",\"\",LOOKUP(B239,taxonpath[scientific_name],taxonpath[aphia_id])))","v":""}]
[{"$f":"IF(B240=\"\",\"\",IF(_xlfn.IFNA(MATCH(B240,taxonpath[scientific_name],0),\"\")=\"\",\"\",LOOKUP(B240,taxonpath[scientific_name],taxonpath[aphia_id])))","v":""}]
[{"$f":"IF(B241=\"\",\"\",IF(_xlfn.IFNA(MATCH(B241,taxonpath[scientific_name],0),\"\")=\"\",\"\",LOOKUP(B241,taxonpath[scientific_name],taxonpath[aphia_id])))","v":""}]
[{"$f":"IF(B242=\"\",\"\",IF(_xlfn.IFNA(MATCH(B242,taxonpath[scientific_name],0),\"\")=\"\",\"\",LOOKUP(B242,taxonpath[scientific_name],taxonpath[aphia_id])))","v":""}]
[{"$f":"IF(B243=\"\",\"\",IF(_xlfn.IFNA(MATCH(B243,taxonpath[scientific_name],0),\"\")=\"\",\"\",LOOKUP(B243,taxonpath[scientific_name],taxonpath[aphia_id])))","v":""}]
[{"$f":"IF(B244=\"\",\"\",IF(_xlfn.IFNA(MATCH(B244,taxonpath[scientific_name],0),\"\")=\"\",\"\",LOOKUP(B244,taxonpath[scientific_name],taxonpath[aphia_id])))","v":""}]
[{"$f":"IF(B245=\"\",\"\",IF(_xlfn.IFNA(MATCH(B245,taxonpath[scientific_name],0),\"\")=\"\",\"\",LOOKUP(B245,taxonpath[scientific_name],taxonpath[aphia_id])))","v":""}]
[{"$f":"IF(B246=\"\",\"\",IF(_xlfn.IFNA(MATCH(B246,taxonpath[scientific_name],0),\"\")=\"\",\"\",LOOKUP(B246,taxonpath[scientific_name],taxonpath[aphia_id])))","v":""}]
[{"$f":"IF(B247=\"\",\"\",IF(_xlfn.IFNA(MATCH(B247,taxonpath[scientific_name],0),\"\")=\"\",\"\",LOOKUP(B247,taxonpath[scientific_name],taxonpath[aphia_id])))","v":""}]
[{"$f":"IF(B248=\"\",\"\",IF(_xlfn.IFNA(MATCH(B248,taxonpath[scientific_name],0),\"\")=\"\",\"\",LOOKUP(B248,taxonpath[scientific_name],taxonpath[aphia_id])))","v":""}]
[{"$f":"IF(B249=\"\",\"\",IF(_xlfn.IFNA(MATCH(B249,taxonpath[scientific_name],0),\"\")=\"\",\"\",LOOKUP(B249,taxonpath[scientific_name],taxonpath[aphia_id])))","v":""}]
[{"$f":"IF(B250=\"\",\"\",IF(_xlfn.IFNA(MATCH(B250,taxonpath[scientific_name],0),\"\")=\"\",\"\",LOOKUP(B250,taxonpath[scientific_name],taxonpath[aphia_id])))","v":""}]
[{"$f":"IF(B251=\"\",\"\",IF(_xlfn.IFNA(MATCH(B251,taxonpath[scientific_name],0),\"\")=\"\",\"\",LOOKUP(B251,taxonpath[scientific_name],taxonpath[aphia_id])))","v":""}]
[{"$f":"IF(B252=\"\",\"\",IF(_xlfn.IFNA(MATCH(B252,taxonpath[scientific_name],0),\"\")=\"\",\"\",LOOKUP(B252,taxonpath[scientific_name],taxonpath[aphia_id])))","v":""}]
[{"$f":"IF(B253=\"\",\"\",IF(_xlfn.IFNA(MATCH(B253,taxonpath[scientific_name],0),\"\")=\"\",\"\",LOOKUP(B253,taxonpath[scientific_name],taxonpath[aphia_id])))","v":""}]
[{"$f":"IF(B254=\"\",\"\",IF(_xlfn.IFNA(MATCH(B254,taxonpath[scientific_name],0),\"\")=\"\",\"\",LOOKUP(B254,taxonpath[scientific_name],taxonpath[aphia_id])))","v":""}]
[{"$f":"IF(B255=\"\",\"\",IF(_xlfn.IFNA(MATCH(B255,taxonpath[scientific_name],0),\"\")=\"\",\"\",LOOKUP(B255,taxonpath[scientific_name],taxonpath[aphia_id])))","v":""}]
[{"$f":"IF(B256=\"\",\"\",IF(_xlfn.IFNA(MATCH(B256,taxonpath[scientific_name],0),\"\")=\"\",\"\",LOOKUP(B256,taxonpath[scientific_name],taxonpath[aphia_id])))","v":""}]
[{"$f":"IF(B257=\"\",\"\",IF(_xlfn.IFNA(MATCH(B257,taxonpath[scientific_name],0),\"\")=\"\",\"\",LOOKUP(B257,taxonpath[scientific_name],taxonpath[aphia_id])))","v":""}]
[{"$f":"IF(B258=\"\",\"\",IF(_xlfn.IFNA(MATCH(B258,taxonpath[scientific_name],0),\"\")=\"\",\"\",LOOKUP(B258,taxonpath[scientific_name],taxonpath[aphia_id])))","v":""}]
[{"$f":"IF(B259=\"\",\"\",IF(_xlfn.IFNA(MATCH(B259,taxonpath[scientific_name],0),\"\")=\"\",\"\",LOOKUP(B259,taxonpath[scientific_name],taxonpath[aphia_id])))","v":""}]
[{"$f":"IF(B260=\"\",\"\",IF(_xlfn.IFNA(MATCH(B260,taxonpath[scientific_name],0),\"\")=\"\",\"\",LOOKUP(B260,taxonpath[scientific_name],taxonpath[aphia_id])))","v":""}]
[{"$f":"IF(B261=\"\",\"\",IF(_xlfn.IFNA(MATCH(B261,taxonpath[scientific_name],0),\"\")=\"\",\"\",LOOKUP(B261,taxonpath[scientific_name],taxonpath[aphia_id])))","v":""}]
[{"$f":"IF(B262=\"\",\"\",IF(_xlfn.IFNA(MATCH(B262,taxonpath[scientific_name],0),\"\")=\"\",\"\",LOOKUP(B262,taxonpath[scientific_name],taxonpath[aphia_id])))","v":""}]
[{"$f":"IF(B263=\"\",\"\",IF(_xlfn.IFNA(MATCH(B263,taxonpath[scientific_name],0),\"\")=\"\",\"\",LOOKUP(B263,taxonpath[scientific_name],taxonpath[aphia_id])))","v":""}]
[{"$f":"IF(B264=\"\",\"\",IF(_xlfn.IFNA(MATCH(B264,taxonpath[scientific_name],0),\"\")=\"\",\"\",LOOKUP(B264,taxonpath[scientific_name],taxonpath[aphia_id])))","v":""}]
[{"$f":"IF(B265=\"\",\"\",IF(_xlfn.IFNA(MATCH(B265,taxonpath[scientific_name],0),\"\")=\"\",\"\",LOOKUP(B265,taxonpath[scientific_name],taxonpath[aphia_id])))","v":""}]
[{"$f":"IF(B266=\"\",\"\",IF(_xlfn.IFNA(MATCH(B266,taxonpath[scientific_name],0),\"\")=\"\",\"\",LOOKUP(B266,taxonpath[scientific_name],taxonpath[aphia_id])))","v":""}]
[{"$f":"IF(B267=\"\",\"\",IF(_xlfn.IFNA(MATCH(B267,taxonpath[scientific_name],0),\"\")=\"\",\"\",LOOKUP(B267,taxonpath[scientific_name],taxonpath[aphia_id])))","v":""}]
[{"$f":"IF(B268=\"\",\"\",IF(_xlfn.IFNA(MATCH(B268,taxonpath[scientific_name],0),\"\")=\"\",\"\",LOOKUP(B268,taxonpath[scientific_name],taxonpath[aphia_id])))","v":""}]
[{"$f":"IF(B269=\"\",\"\",IF(_xlfn.IFNA(MATCH(B269,taxonpath[scientific_name],0),\"\")=\"\",\"\",LOOKUP(B269,taxonpath[scientific_name],taxonpath[aphia_id])))","v":""}]
[{"$f":"IF(B270=\"\",\"\",IF(_xlfn.IFNA(MATCH(B270,taxonpath[scientific_name],0),\"\")=\"\",\"\",LOOKUP(B270,taxonpath[scientific_name],taxonpath[aphia_id])))","v":""}]
[{"$f":"IF(B271=\"\",\"\",IF(_xlfn.IFNA(MATCH(B271,taxonpath[scientific_name],0),\"\")=\"\",\"\",LOOKUP(B271,taxonpath[scientific_name],taxonpath[aphia_id])))","v":""}]
[{"$f":"IF(B272=\"\",\"\",IF(_xlfn.IFNA(MATCH(B272,taxonpath[scientific_name],0),\"\")=\"\",\"\",LOOKUP(B272,taxonpath[scientific_name],taxonpath[aphia_id])))","v":""}]
[{"$f":"IF(B273=\"\",\"\",IF(_xlfn.IFNA(MATCH(B273,taxonpath[scientific_name],0),\"\")=\"\",\"\",LOOKUP(B273,taxonpath[scientific_name],taxonpath[aphia_id])))","v":""}]
[{"$f":"IF(B274=\"\",\"\",IF(_xlfn.IFNA(MATCH(B274,taxonpath[scientific_name],0),\"\")=\"\",\"\",LOOKUP(B274,taxonpath[scientific_name],taxonpath[aphia_id])))","v":""}]
[{"$f":"IF(B275=\"\",\"\",IF(_xlfn.IFNA(MATCH(B275,taxonpath[scientific_name],0),\"\")=\"\",\"\",LOOKUP(B275,taxonpath[scientific_name],taxonpath[aphia_id])))","v":""}]
[{"$f":"IF(B276=\"\",\"\",IF(_xlfn.IFNA(MATCH(B276,taxonpath[scientific_name],0),\"\")=\"\",\"\",LOOKUP(B276,taxonpath[scientific_name],taxonpath[aphia_id])))","v":""}]
[{"$f":"IF(B277=\"\",\"\",IF(_xlfn.IFNA(MATCH(B277,taxonpath[scientific_name],0),\"\")=\"\",\"\",LOOKUP(B277,taxonpath[scientific_name],taxonpath[aphia_id])))","v":""}]
[{"$f":"IF(B278=\"\",\"\",IF(_xlfn.IFNA(MATCH(B278,taxonpath[scientific_name],0),\"\")=\"\",\"\",LOOKUP(B278,taxonpath[scientific_name],taxonpath[aphia_id])))","v":""}]
[{"$f":"IF(B279=\"\",\"\",IF(_xlfn.IFNA(MATCH(B279,taxonpath[scientific_name],0),\"\")=\"\",\"\",LOOKUP(B279,taxonpath[scientific_name],taxonpath[aphia_id])))","v":""}]
[{"$f":"IF(B280=\"\",\"\",IF(_xlfn.IFNA(MATCH(B280,taxonpath[scientific_name],0),\"\")=\"\",\"\",LOOKUP(B280,taxonpath[scientific_name],taxonpath[aphia_id])))","v":""}]
[{"$f":"IF(B281=\"\",\"\",IF(_xlfn.IFNA(MATCH(B281,taxonpath[scientific_name],0),\"\")=\"\",\"\",LOOKUP(B281,taxonpath[scientific_name],taxonpath[aphia_id])))","v":""}]
[{"$f":"IF(B282=\"\",\"\",IF(_xlfn.IFNA(MATCH(B282,taxonpath[scientific_name],0),\"\")=\"\",\"\",LOOKUP(B282,taxonpath[scientific_name],taxonpath[aphia_id])))","v":""}]
[{"$f":"IF(B283=\"\",\"\",IF(_xlfn.IFNA(MATCH(B283,taxonpath[scientific_name],0),\"\")=\"\",\"\",LOOKUP(B283,taxonpath[scientific_name],taxonpath[aphia_id])))","v":""}]
[{"$f":"IF(B284=\"\",\"\",IF(_xlfn.IFNA(MATCH(B284,taxonpath[scientific_name],0),\"\")=\"\",\"\",LOOKUP(B284,taxonpath[scientific_name],taxonpath[aphia_id])))","v":""}]
[{"$f":"IF(B285=\"\",\"\",IF(_xlfn.IFNA(MATCH(B285,taxonpath[scientific_name],0),\"\")=\"\",\"\",LOOKUP(B285,taxonpath[scientific_name],taxonpath[aphia_id])))","v":""}]
[{"$f":"IF(B286=\"\",\"\",IF(_xlfn.IFNA(MATCH(B286,taxonpath[scientific_name],0),\"\")=\"\",\"\",LOOKUP(B286,taxonpath[scientific_name],taxonpath[aphia_id])))","v":""}]
[{"$f":"IF(B287=\"\",\"\",IF(_xlfn.IFNA(MATCH(B287,taxonpath[scientific_name],0),\"\")=\"\",\"\",LOOKUP(B287,taxonpath[scientific_name],taxonpath[aphia_id])))","v":""}]
[{"$f":"IF(B288=\"\",\"\",IF(_xlfn.IFNA(MATCH(B288,taxonpath[scientific_name],0),\"\")=\"\",\"\",LOOKUP(B288,taxonpath[scientific_name],taxonpath[aphia_id])))","v":""}]
[{"$f":"IF(B289=\"\",\"\",IF(_xlfn.IFNA(MATCH(B289,taxonpath[scientific_name],0),\"\")=\"\",\"\",LOOKUP(B289,taxonpath[scientific_name],taxonpath[aphia_id])))","v":""}]
[{"$f":"IF(B290=\"\",\"\",IF(_xlfn.IFNA(MATCH(B290,taxonpath[scientific_name],0),\"\")=\"\",\"\",LOOKUP(B290,taxonpath[scientific_name],taxonpath[aphia_id])))","v":""}]
[{"$f":"IF(B291=\"\",\"\",IF(_xlfn.IFNA(MATCH(B291,taxonpath[scientific_name],0),\"\")=\"\",\"\",LOOKUP(B291,taxonpath[scientific_name],taxonpath[aphia_id])))","v":""}]
[{"$f":"IF(B292=\"\",\"\",IF(_xlfn.IFNA(MATCH(B292,taxonpath[scientific_name],0),\"\")=\"\",\"\",LOOKUP(B292,taxonpath[scientific_name],taxonpath[aphia_id])))","v":""}]
[{"$f":"IF(B293=\"\",\"\",IF(_xlfn.IFNA(MATCH(B293,taxonpath[scientific_name],0),\"\")=\"\",\"\",LOOKUP(B293,taxonpath[scientific_name],taxonpath[aphia_id])))","v":""}]
[{"$f":"IF(B294=\"\",\"\",IF(_xlfn.IFNA(MATCH(B294,taxonpath[scientific_name],0),\"\")=\"\",\"\",LOOKUP(B294,taxonpath[scientific_name],taxonpath[aphia_id])))","v":""}]
[{"$f":"IF(B295=\"\",\"\",IF(_xlfn.IFNA(MATCH(B295,taxonpath[scientific_name],0),\"\")=\"\",\"\",LOOKUP(B295,taxonpath[scientific_name],taxonpath[aphia_id])))","v":""}]
[{"$f":"IF(B296=\"\",\"\",IF(_xlfn.IFNA(MATCH(B296,taxonpath[scientific_name],0),\"\")=\"\",\"\",LOOKUP(B296,taxonpath[scientific_name],taxonpath[aphia_id])))","v":""}]
[{"$f":"IF(B297=\"\",\"\",IF(_xlfn.IFNA(MATCH(B297,taxonpath[scientific_name],0),\"\")=\"\",\"\",LOOKUP(B297,taxonpath[scientific_name],taxonpath[aphia_id])))","v":""}]
[{"$f":"IF(B298=\"\",\"\",IF(_xlfn.IFNA(MATCH(B298,taxonpath[scientific_name],0),\"\")=\"\",\"\",LOOKUP(B298,taxonpath[scientific_name],taxonpath[aphia_id])))","v":""}]
[{"$f":"IF(B299=\"\",\"\",IF(_xlfn.IFNA(MATCH(B299,taxonpath[scientific_name],0),\"\")=\"\",\"\",LOOKUP(B299,taxonpath[scientific_name],taxonpath[aphia_id])))","v":""}]
[{"$f":"IF(B300=\"\",\"\",IF(_xlfn.IFNA(MATCH(B300,taxonpath[scientific_name],0),\"\")=\"\",\"\",LOOKUP(B300,taxonpath[scientific_name],taxonpath[aphia_id])))","v":""}]
[{"$f":"IF(B301=\"\",\"\",IF(_xlfn.IFNA(MATCH(B301,taxonpath[scientific_name],0),\"\")=\"\",\"\",LOOKUP(B301,taxonpath[scientific_name],taxonpath[aphia_id])))","v":""}]
[{"$f":"IF(B302=\"\",\"\",IF(_xlfn.IFNA(MATCH(B302,taxonpath[scientific_name],0),\"\")=\"\",\"\",LOOKUP(B302,taxonpath[scientific_name],taxonpath[aphia_id])))","v":""}]
[{"$f":"IF(B303=\"\",\"\",IF(_xlfn.IFNA(MATCH(B303,taxonpath[scientific_name],0),\"\")=\"\",\"\",LOOKUP(B303,taxonpath[scientific_name],taxonpath[aphia_id])))","v":""}]
[{"$f":"IF(B304=\"\",\"\",IF(_xlfn.IFNA(MATCH(B304,taxonpath[scientific_name],0),\"\")=\"\",\"\",LOOKUP(B304,taxonpath[scientific_name],taxonpath[aphia_id])))","v":""}]
[{"$f":"IF(B305=\"\",\"\",IF(_xlfn.IFNA(MATCH(B305,taxonpath[scientific_name],0),\"\")=\"\",\"\",LOOKUP(B305,taxonpath[scientific_name],taxonpath[aphia_id])))","v":""}]
[{"$f":"IF(B306=\"\",\"\",IF(_xlfn.IFNA(MATCH(B306,taxonpath[scientific_name],0),\"\")=\"\",\"\",LOOKUP(B306,taxonpath[scientific_name],taxonpath[aphia_id])))","v":""}]
[{"$f":"IF(B307=\"\",\"\",IF(_xlfn.IFNA(MATCH(B307,taxonpath[scientific_name],0),\"\")=\"\",\"\",LOOKUP(B307,taxonpath[scientific_name],taxonpath[aphia_id])))","v":""}]
[{"$f":"IF(B308=\"\",\"\",IF(_xlfn.IFNA(MATCH(B308,taxonpath[scientific_name],0),\"\")=\"\",\"\",LOOKUP(B308,taxonpath[scientific_name],taxonpath[aphia_id])))","v":""}]
[{"$f":"IF(B309=\"\",\"\",IF(_xlfn.IFNA(MATCH(B309,taxonpath[scientific_name],0),\"\")=\"\",\"\",LOOKUP(B309,taxonpath[scientific_name],taxonpath[aphia_id])))","v":""}]
[{"$f":"IF(B310=\"\",\"\",IF(_xlfn.IFNA(MATCH(B310,taxonpath[scientific_name],0),\"\")=\"\",\"\",LOOKUP(B310,taxonpath[scientific_name],taxonpath[aphia_id])))","v":""}]
[{"$f":"IF(B311=\"\",\"\",IF(_xlfn.IFNA(MATCH(B311,taxonpath[scientific_name],0),\"\")=\"\",\"\",LOOKUP(B311,taxonpath[scientific_name],taxonpath[aphia_id])))","v":""}]
[{"$f":"IF(B312=\"\",\"\",IF(_xlfn.IFNA(MATCH(B312,taxonpath[scientific_name],0),\"\")=\"\",\"\",LOOKUP(B312,taxonpath[scientific_name],taxonpath[aphia_id])))","v":""}]
[{"$f":"IF(B313=\"\",\"\",IF(_xlfn.IFNA(MATCH(B313,taxonpath[scientific_name],0),\"\")=\"\",\"\",LOOKUP(B313,taxonpath[scientific_name],taxonpath[aphia_id])))","v":""}]
[{"$f":"IF(B314=\"\",\"\",IF(_xlfn.IFNA(MATCH(B314,taxonpath[scientific_name],0),\"\")=\"\",\"\",LOOKUP(B314,taxonpath[scientific_name],taxonpath[aphia_id])))","v":""}]
[{"$f":"IF(B315=\"\",\"\",IF(_xlfn.IFNA(MATCH(B315,taxonpath[scientific_name],0),\"\")=\"\",\"\",LOOKUP(B315,taxonpath[scientific_name],taxonpath[aphia_id])))","v":""}]
[{"$f":"IF(B316=\"\",\"\",IF(_xlfn.IFNA(MATCH(B316,taxonpath[scientific_name],0),\"\")=\"\",\"\",LOOKUP(B316,taxonpath[scientific_name],taxonpath[aphia_id])))","v":""}]
[{"$f":"IF(B317=\"\",\"\",IF(_xlfn.IFNA(MATCH(B317,taxonpath[scientific_name],0),\"\")=\"\",\"\",LOOKUP(B317,taxonpath[scientific_name],taxonpath[aphia_id])))","v":""}]
[{"$f":"IF(B318=\"\",\"\",IF(_xlfn.IFNA(MATCH(B318,taxonpath[scientific_name],0),\"\")=\"\",\"\",LOOKUP(B318,taxonpath[scientific_name],taxonpath[aphia_id])))","v":""}]
[{"$f":"IF(B319=\"\",\"\",IF(_xlfn.IFNA(MATCH(B319,taxonpath[scientific_name],0),\"\")=\"\",\"\",LOOKUP(B319,taxonpath[scientific_name],taxonpath[aphia_id])))","v":""}]
[{"$f":"IF(B320=\"\",\"\",IF(_xlfn.IFNA(MATCH(B320,taxonpath[scientific_name],0),\"\")=\"\",\"\",LOOKUP(B320,taxonpath[scientific_name],taxonpath[aphia_id])))","v":""}]
[{"$f":"IF(B321=\"\",\"\",IF(_xlfn.IFNA(MATCH(B321,taxonpath[scientific_name],0),\"\")=\"\",\"\",LOOKUP(B321,taxonpath[scientific_name],taxonpath[aphia_id])))","v":""}]
[{"$f":"IF(B322=\"\",\"\",IF(_xlfn.IFNA(MATCH(B322,taxonpath[scientific_name],0),\"\")=\"\",\"\",LOOKUP(B322,taxonpath[scientific_name],taxonpath[aphia_id])))","v":""}]
[{"$f":"IF(B323=\"\",\"\",IF(_xlfn.IFNA(MATCH(B323,taxonpath[scientific_name],0),\"\")=\"\",\"\",LOOKUP(B323,taxonpath[scientific_name],taxonpath[aphia_id])))","v":""}]
[{"$f":"IF(B324=\"\",\"\",IF(_xlfn.IFNA(MATCH(B324,taxonpath[scientific_name],0),\"\")=\"\",\"\",LOOKUP(B324,taxonpath[scientific_name],taxonpath[aphia_id])))","v":""}]
[{"$f":"IF(B325=\"\",\"\",IF(_xlfn.IFNA(MATCH(B325,taxonpath[scientific_name],0),\"\")=\"\",\"\",LOOKUP(B325,taxonpath[scientific_name],taxonpath[aphia_id])))","v":""}]
[{"$f":"IF(B326=\"\",\"\",IF(_xlfn.IFNA(MATCH(B326,taxonpath[scientific_name],0),\"\")=\"\",\"\",LOOKUP(B326,taxonpath[scientific_name],taxonpath[aphia_id])))","v":""}]
[{"$f":"IF(B327=\"\",\"\",IF(_xlfn.IFNA(MATCH(B327,taxonpath[scientific_name],0),\"\")=\"\",\"\",LOOKUP(B327,taxonpath[scientific_name],taxonpath[aphia_id])))","v":""}]
[{"$f":"IF(B328=\"\",\"\",IF(_xlfn.IFNA(MATCH(B328,taxonpath[scientific_name],0),\"\")=\"\",\"\",LOOKUP(B328,taxonpath[scientific_name],taxonpath[aphia_id])))","v":""}]
[{"$f":"IF(B329=\"\",\"\",IF(_xlfn.IFNA(MATCH(B329,taxonpath[scientific_name],0),\"\")=\"\",\"\",LOOKUP(B329,taxonpath[scientific_name],taxonpath[aphia_id])))","v":""}]
[{"$f":"IF(B330=\"\",\"\",IF(_xlfn.IFNA(MATCH(B330,taxonpath[scientific_name],0),\"\")=\"\",\"\",LOOKUP(B330,taxonpath[scientific_name],taxonpath[aphia_id])))","v":""}]
[{"$f":"IF(B331=\"\",\"\",IF(_xlfn.IFNA(MATCH(B331,taxonpath[scientific_name],0),\"\")=\"\",\"\",LOOKUP(B331,taxonpath[scientific_name],taxonpath[aphia_id])))","v":""}]
[{"$f":"IF(B332=\"\",\"\",IF(_xlfn.IFNA(MATCH(B332,taxonpath[scientific_name],0),\"\")=\"\",\"\",LOOKUP(B332,taxonpath[scientific_name],taxonpath[aphia_id])))","v":""}]
[{"$f":"IF(B333=\"\",\"\",IF(_xlfn.IFNA(MATCH(B333,taxonpath[scientific_name],0),\"\")=\"\",\"\",LOOKUP(B333,taxonpath[scientific_name],taxonpath[aphia_id])))","v":""}]
[{"$f":"IF(B334=\"\",\"\",IF(_xlfn.IFNA(MATCH(B334,taxonpath[scientific_name],0),\"\")=\"\",\"\",LOOKUP(B334,taxonpath[scientific_name],taxonpath[aphia_id])))","v":""}]
[{"$f":"IF(B335=\"\",\"\",IF(_xlfn.IFNA(MATCH(B335,taxonpath[scientific_name],0),\"\")=\"\",\"\",LOOKUP(B335,taxonpath[scientific_name],taxonpath[aphia_id])))","v":""}]
[{"$f":"IF(B336=\"\",\"\",IF(_xlfn.IFNA(MATCH(B336,taxonpath[scientific_name],0),\"\")=\"\",\"\",LOOKUP(B336,taxonpath[scientific_name],taxonpath[aphia_id])))","v":""}]
[{"$f":"IF(B337=\"\",\"\",IF(_xlfn.IFNA(MATCH(B337,taxonpath[scientific_name],0),\"\")=\"\",\"\",LOOKUP(B337,taxonpath[scientific_name],taxonpath[aphia_id])))","v":""}]
[{"$f":"IF(B338=\"\",\"\",IF(_xlfn.IFNA(MATCH(B338,taxonpath[scientific_name],0),\"\")=\"\",\"\",LOOKUP(B338,taxonpath[scientific_name],taxonpath[aphia_id])))","v":""}]
[{"$f":"IF(B339=\"\",\"\",IF(_xlfn.IFNA(MATCH(B339,taxonpath[scientific_name],0),\"\")=\"\",\"\",LOOKUP(B339,taxonpath[scientific_name],taxonpath[aphia_id])))","v":""}]
[{"$f":"IF(B340=\"\",\"\",IF(_xlfn.IFNA(MATCH(B340,taxonpath[scientific_name],0),\"\")=\"\",\"\",LOOKUP(B340,taxonpath[scientific_name],taxonpath[aphia_id])))","v":""}]
[{"$f":"IF(B341=\"\",\"\",IF(_xlfn.IFNA(MATCH(B341,taxonpath[scientific_name],0),\"\")=\"\",\"\",LOOKUP(B341,taxonpath[scientific_name],taxonpath[aphia_id])))","v":""}]
[{"$f":"IF(B342=\"\",\"\",IF(_xlfn.IFNA(MATCH(B342,taxonpath[scientific_name],0),\"\")=\"\",\"\",LOOKUP(B342,taxonpath[scientific_name],taxonpath[aphia_id])))","v":""}]
[{"$f":"IF(B343=\"\",\"\",IF(_xlfn.IFNA(MATCH(B343,taxonpath[scientific_name],0),\"\")=\"\",\"\",LOOKUP(B343,taxonpath[scientific_name],taxonpath[aphia_id])))","v":""}]
[{"$f":"IF(B344=\"\",\"\",IF(_xlfn.IFNA(MATCH(B344,taxonpath[scientific_name],0),\"\")=\"\",\"\",LOOKUP(B344,taxonpath[scientific_name],taxonpath[aphia_id])))","v":""}]
[{"$f":"IF(B345=\"\",\"\",IF(_xlfn.IFNA(MATCH(B345,taxonpath[scientific_name],0),\"\")=\"\",\"\",LOOKUP(B345,taxonpath[scientific_name],taxonpath[aphia_id])))","v":""}]
[{"$f":"IF(B346=\"\",\"\",IF(_xlfn.IFNA(MATCH(B346,taxonpath[scientific_name],0),\"\")=\"\",\"\",LOOKUP(B346,taxonpath[scientific_name],taxonpath[aphia_id])))","v":""}]
[{"$f":"IF(B347=\"\",\"\",IF(_xlfn.IFNA(MATCH(B347,taxonpath[scientific_name],0),\"\")=\"\",\"\",LOOKUP(B347,taxonpath[scientific_name],taxonpath[aphia_id])))","v":""}]
[{"$f":"IF(B348=\"\",\"\",IF(_xlfn.IFNA(MATCH(B348,taxonpath[scientific_name],0),\"\")=\"\",\"\",LOOKUP(B348,taxonpath[scientific_name],taxonpath[aphia_id])))","v":""}]
[{"$f":"IF(B349=\"\",\"\",IF(_xlfn.IFNA(MATCH(B349,taxonpath[scientific_name],0),\"\")=\"\",\"\",LOOKUP(B349,taxonpath[scientific_name],taxonpath[aphia_id])))","v":""}]
[{"$f":"IF(B350=\"\",\"\",IF(_xlfn.IFNA(MATCH(B350,taxonpath[scientific_name],0),\"\")=\"\",\"\",LOOKUP(B350,taxonpath[scientific_name],taxonpath[aphia_id])))","v":""}]
[{"$f":"IF(B351=\"\",\"\",IF(_xlfn.IFNA(MATCH(B351,taxonpath[scientific_name],0),\"\")=\"\",\"\",LOOKUP(B351,taxonpath[scientific_name],taxonpath[aphia_id])))","v":""}]
[{"$f":"IF(B352=\"\",\"\",IF(_xlfn.IFNA(MATCH(B352,taxonpath[scientific_name],0),\"\")=\"\",\"\",LOOKUP(B352,taxonpath[scientific_name],taxonpath[aphia_id])))","v":""}]
[{"$f":"IF(B353=\"\",\"\",IF(_xlfn.IFNA(MATCH(B353,taxonpath[scientific_name],0),\"\")=\"\",\"\",LOOKUP(B353,taxonpath[scientific_name],taxonpath[aphia_id])))","v":""}]
[{"$f":"IF(B354=\"\",\"\",IF(_xlfn.IFNA(MATCH(B354,taxonpath[scientific_name],0),\"\")=\"\",\"\",LOOKUP(B354,taxonpath[scientific_name],taxonpath[aphia_id])))","v":""}]
[{"$f":"IF(B355=\"\",\"\",IF(_xlfn.IFNA(MATCH(B355,taxonpath[scientific_name],0),\"\")=\"\",\"\",LOOKUP(B355,taxonpath[scientific_name],taxonpath[aphia_id])))","v":""}]
[{"$f":"IF(B356=\"\",\"\",IF(_xlfn.IFNA(MATCH(B356,taxonpath[scientific_name],0),\"\")=\"\",\"\",LOOKUP(B356,taxonpath[scientific_name],taxonpath[aphia_id])))","v":""}]
[{"$f":"IF(B357=\"\",\"\",IF(_xlfn.IFNA(MATCH(B357,taxonpath[scientific_name],0),\"\")=\"\",\"\",LOOKUP(B357,taxonpath[scientific_name],taxonpath[aphia_id])))","v":""}]
[{"$f":"IF(B358=\"\",\"\",IF(_xlfn.IFNA(MATCH(B358,taxonpath[scientific_name],0),\"\")=\"\",\"\",LOOKUP(B358,taxonpath[scientific_name],taxonpath[aphia_id])))","v":""}]
[{"$f":"IF(B359=\"\",\"\",IF(_xlfn.IFNA(MATCH(B359,taxonpath[scientific_name],0),\"\")=\"\",\"\",LOOKUP(B359,taxonpath[scientific_name],taxonpath[aphia_id])))","v":""}]
[{"$f":"IF(B360=\"\",\"\",IF(_xlfn.IFNA(MATCH(B360,taxonpath[scientific_name],0),\"\")=\"\",\"\",LOOKUP(B360,taxonpath[scientific_name],taxonpath[aphia_id])))","v":""}]
[{"$f":"IF(B361=\"\",\"\",IF(_xlfn.IFNA(MATCH(B361,taxonpath[scientific_name],0),\"\")=\"\",\"\",LOOKUP(B361,taxonpath[scientific_name],taxonpath[aphia_id])))","v":""}]
[{"$f":"IF(B362=\"\",\"\",IF(_xlfn.IFNA(MATCH(B362,taxonpath[scientific_name],0),\"\")=\"\",\"\",LOOKUP(B362,taxonpath[scientific_name],taxonpath[aphia_id])))","v":""}]
[{"$f":"IF(B363=\"\",\"\",IF(_xlfn.IFNA(MATCH(B363,taxonpath[scientific_name],0),\"\")=\"\",\"\",LOOKUP(B363,taxonpath[scientific_name],taxonpath[aphia_id])))","v":""}]
[{"$f":"IF(B364=\"\",\"\",IF(_xlfn.IFNA(MATCH(B364,taxonpath[scientific_name],0),\"\")=\"\",\"\",LOOKUP(B364,taxonpath[scientific_name],taxonpath[aphia_id])))","v":""}]
[{"$f":"IF(B365=\"\",\"\",IF(_xlfn.IFNA(MATCH(B365,taxonpath[scientific_name],0),\"\")=\"\",\"\",LOOKUP(B365,taxonpath[scientific_name],taxonpath[aphia_id])))","v":""}]
[{"$f":"IF(B366=\"\",\"\",IF(_xlfn.IFNA(MATCH(B366,taxonpath[scientific_name],0),\"\")=\"\",\"\",LOOKUP(B366,taxonpath[scientific_name],taxonpath[aphia_id])))","v":""}]

{"sheet":"dropdown","index":8,"n_rows":68,"n_cols":62,"rows_kept":68,"cut":false,"hidden":false,"merged":[]}
["alioki_nr","alifjord_nr",null,"djornogd_id","djornogd_navn",null,"botnheint_id","botnheint_navn",null,"eind_id","eind_navn",null,"evjutjugd_id","evjutjugd_navn",null,"evni_id","evni_navn",null,"fastleiki_id","fastleiki_navn",null,"grabbanogd_id","grabbanogd_navn",null,"janei_id","janei_navn",null,"kfelag_id","kfelag_navn",null,"kfolk_id","kfolk_navn",null,"litur_id","litur_navn",null,"luktur_id","luktur_navn",null,"stoda_id","stoda_navn",null,"stodslag_id","stodslag_navn",null,"upptalt_id","upptalt_navn",null,"utgavuslag_id","utgavuslag_navn",null,"basis","basis_navn",null,"qflag","qflag_navn",null,"met_matiovissa","met_matiovissa_navn",null,"starvsstova","starvsstova_navn"]
["A08","",null,"U5","undir 5 (< 5)",null,"HAPS","Haps",null,"ugkg","ug/kg",null,"T02","0 - 2 cm",null,"ZN","Zink",null,"BLE","bleytt",null,"V0025","< 0.25",null,"j","ja",null,"BIOF","Biofar",null,"AN","Ámundur Nolsøe",null,"BS","brúnur/svartur",null,"EIN","eingin",null,"s1","Støða 1",null,"FS","Fjarðasýni",null,"FULT","fult upptalt",null,"TRAPP","Teknisk rapport",null,"D","Turrvekt (Dry Weight)",null,"<","minni enn",null,"%","percet óvissa",null,"HFSF","Heilsufrøðiliga Starvsstovan"]
["A53","C-8",null,"Y5","yvir 5 (> 5)",null,"HAPSK","Haps kajak",null,"ugg","ug/g",null,"T28","2 - 8 cm",null,"LOI","Loss of ignition",null,"FAST","fast",null,"V2575","0.25 - 0.75",null,"n","nei",null,null,null,null,"JKB","Jákup Kristian Bærensten",null,"LG","ljósur/gráur",null,"NAK","nakað",null,"s2","Støða 2",null,"OO","Ókent",null,"EINKI","ikki upptalt",null,"VISGR","Vísindalig grein (peer reviewed)",null,"W","Vátvekt (Wet/fresh weight)",null,">","meira enn",null,"SD","Standard deviation (+/-)",null,"EFD","Eurofins Danmark"]
["A39","C-20",null,"NN","einki (0)",null,"HAPSS","Haps stórur",null,"mgkg","mg/kg",null,"T80","> 8 cm",null,"TOC","Total Organic Carbon (TOC)",null,"HBLE","hálvbleytt",null,"V7510","> 0.75",null,null,null,null,null,null,null,"RJ","Regin Joensen",null,null,null,null,"RAM","ramur",null,"s3","Støða 3",null,"RS","Ringsýni",null,"TIL20","talt upp til 20 sløg",null,"OKENT","ókent",null,"L","Feittvekt (Lipid weight)",null,null,null,null,null,null,null,"EFG","Eurofins Germany"]
["NA","",null,null,null,null,"MCI","Grabbi McIntyre",null,"mgg","mg/g",null,null,null,null,"NTOT","Total Nitrogen (N)",null,null,null,null,null,null,null,null,null,null,null,null,null,"BVT","Birna V. Trúgvadóttir",null,null,null,null,null,null,null,"s4","Støða 4",null,"SS","Samanberingarsýni",null,"OKENT","ókent, ber ikki til at siga út frá frágreiðingini",null,"UNDAN","Undan kanning",null,null,null,null,null,null,null,null,null,null,"NIVA","Norwegian Institute for Water Research"]
["OO","",null,null,null,null,"VV","Grabbi Van Veen",null,"%","percent %",null,null,null,null,"PTOT","Total Phosphorus (P)",null,null,null,null,null,null,null,null,null,null,null,null,null,"HA","Høgni Arnbjarnarson",null,null,null,null,null,null,null,null,null,null,"OS","Økissýni",null,null,null,null,"ALIAU","Aling - áðrenn útsetu",null,null,null,null,null,null,null,null,null,null,"ALS","ALS Scandinavia"]
["A25","C-10",null,null,null,null,"GOK","Grabbi ókent slag",null,"gkg","g/kg",null,null,null,null,"AL","Aluminium",null,null,null,null,null,null,null,null,null,null,null,null,null,"JFH","Jógvan Fróði Hansen",null,null,null,null,null,null,null,null,null,null,null,null,null,null,null,null,"ALIMK","Aling - millum kanning"]
["A47","C-10",null,null,null,null,"OKENT","ókent",null,null,null,null,null,null,null,"HG","Merqury",null,null,null,null,null,null,null,null,null,null,null,null,null,"KP","Kári Purkhús",null,null,null,null,null,null,null,null,null,null,null,null,null,null,null,null,"ALISB","Aling - størsta biomassa"]
["A05","C-14 / F-3",null,null,null,null,"GST","Grabbi stál",null,null,null,null,null,null,null,"DRYWT","Dry Weight Percentage",null,null,null,null,null,null,null,null,null,null,null,null,null,"HG","Heidi Gregersen",null,null,null,null,null,null,null,null,null,null,null,null,null,null,null,null,"UMKAL","Umhvørviskanning av aliøki - ódefinera"]
["A81","C-14 / F-3",null,null,null,null,"GBL","Grabbi bláur",null,null,null,null,null,null,null,"CU","Copper",null,null,null,null,null,null,null,null,null,null,null,null,null,"SJS","Sámal Jákup Sakariasson"]
["A85","C-14 / F-3",null,null,null,null,"KCDGD","KC-Danmark grabbi, av Day slagnum ",null,null,null,null,null,null,null,"GR","",null,null,null,null,null,null,null,null,null,null,null,null,null,"SC","Súni Christiansen"]
["A07","C-18",null,null,null,null,null,null,null,null,null,null,null,null,null,null,null,null,null,null,null,null,null,null,null,null,null,null,null,null,"GD","Guttormur Djurhuus"]
["A09","C-20",null,null,null,null,null,null,null,null,null,null,null,null,null,null,null,null,null,null,null,null,null,null,null,null,null,null,null,null,"JS","Jan Sørensen"]
["A20","C-23",null,null,null,null,null,null,null,null,null,null,null,null,null,null,null,null,null,null,null,null,null,null,null,null,null,null,null,null,"JJ","Jana Jacobsen"]
["A30","C-23",null,null,null,null,null,null,null,null,null,null,null,null,null,null,null,null,null,null,null,null,null,null,null,null,null,null,null,null,"HJ","Hjalgrím"]
["A31","C-13",null,null,null,null,null,null,null,null,null,null,null,null,null,null,null,null,null,null,null,null,null,null,null,null,null,null,null,null,"KH","Katrin Hoydal"]
["A33","C-12",null,null,null,null,null,null,null,null,null,null,null,null,null,null,null,null,null,null,null,null,null,null,null,null,null,null,null,null,"AGD","?"]
["A34","G-1",null,null,null,null,null,null,null,null,null,null,null,null,null,null,null,null,null,null,null,null,null,null,null,null,null,null,null,null,"AV","Áki Vang"]
["A37","C-18",null,null,null,null,null,null,null,null,null,null,null,null,null,null,null,null,null,null,null,null,null,null,null,null,null,null,null,null,"LMJ","Laura Mary Jacobsen"]
["A69","C-18",null,null,null,null,null,null,null,null,null,null,null,null,null,null,null,null,null,null,null,null,null,null,null,null,null,null,null,null,"HCP",""]
["A84","C-16",null,null,null,null,null,null,null,null,null,null,null,null,null,null,null,null,null,null,null,null,null,null,null,null,null,null,null,null,"AB","Andrias Blaasvær"]
["L03","C-19",null,null,null,null,null,null,null,null,null,null,null,null,null,null,null,null,null,null,null,null,null,null,null,null,null,null,null,null,"HJA","Herdis Jacobsen"]
["A04","C-11",null,null,null,null,null,null,null,null,null,null,null,null,null,null,null,null,null,null,null,null,null,null,null,null,null,null,null,null,"SI","Sigurð"]
["S16","C-11",null,null,null,null,null,null,null,null,null,null,null,null,null,null,null,null,null,null,null,null,null,null,null,null,null,null,null,null,"AJ","Ása Jacobsen"]
["A03","C-12"]
["A32","C-12"]
["A87","C-12"]
["M01","C-12"]
["A80","C-13"]
["L01","C-13"]
["A10","C-15"]
["A82","C-15"]
["A06","C-16"]
["A90","C-17"]
["A88","C-18"]
["S07","C-18"]
["S19","C-18"]
["A27","C-19"]
["A89","C-19"]
["A83","C-20"]
["A14","C-20"]
["A15","C-21"]
["A16","C-21"]
["A17","C-22"]
["A18","C-22"]
["A19","C-23"]
["A92","C-23"]
["S10","D-4"]
["A35","G-1"]
["L02","A-1"]
["A11","C-1"]
["A21","C-1"]
["S21","C-1"]
["A73","C-2"]
["A63","C-3"]
["A13","C-4"]
["A12","C-5"]
["S04","C-5"]
["S24","C-5"]
["A72","C-6"]
["A02","C-7"]
["A43","C-7"]
["A71","C-7"]
["S08","C-7"]
["A52","C-8"]
["S12","C-8"]
["A57","C-9"]
["A23","C-21"]

{"sheet":"talvur","index":9,"n_rows":79,"n_cols":5,"rows_kept":79,"cut":false,"hidden":false,"merged":[]}
["BotnID",null,"DjorlivID",null,"GIStype"]
[{"$f":"IFERROR(INDEX(BotnSyni!$A$2:$A$99, SMALL(IF(BotnSyni!$A$2:$A$99<>\"\", ROW(BotnSyni!$A$1:$A$98)),ROW(BotnSyni!A1))),\"\")","v":""},null,{"$f":"IFERROR(INDEX(DjorlivSyni!$A$2:$A$99, SMALL(IF(DjorlivSyni!$A$2:$A$99<>\"\", ROW(DjorlivSyni!$A$1:$A$98)),ROW(DjorlivSyni!C1))),\"\")","v":""},null,"decimal"]
[{"$f":"IFERROR(INDEX(BotnSyni!$A$2:$A$99, SMALL(IF(BotnSyni!$A$2:$A$99<>\"\", ROW(BotnSyni!$A$1:$A$98)),ROW(BotnSyni!A2))),\"\")","v":""},null,{"$f":"IFERROR(INDEX(DjorlivSyni!$A$2:$A$99, SMALL(IF(DjorlivSyni!$A$2:$A$99<>\"\", ROW(DjorlivSyni!$A$1:$A$98)),ROW(DjorlivSyni!C2))),\"\")","v":""},null,"deg min"]
[{"$f":"IFERROR(INDEX(BotnSyni!$A$2:$A$99, SMALL(IF(BotnSyni!$A$2:$A$99<>\"\", ROW(BotnSyni!$A$1:$A$98)),ROW(BotnSyni!A3))),\"\")","v":""},null,{"$f":"IFERROR(INDEX(DjorlivSyni!$A$2:$A$99, SMALL(IF(DjorlivSyni!$A$2:$A$99<>\"\", ROW(DjorlivSyni!$A$1:$A$98)),ROW(DjorlivSyni!C3))),\"\")","v":""}]
[{"$f":"IFERROR(INDEX(BotnSyni!$A$2:$A$99, SMALL(IF(BotnSyni!$A$2:$A$99<>\"\", ROW(BotnSyni!$A$1:$A$98)),ROW(BotnSyni!A4))),\"\")","v":""},null,{"$f":"IFERROR(INDEX(DjorlivSyni!$A$2:$A$99, SMALL(IF(DjorlivSyni!$A$2:$A$99<>\"\", ROW(DjorlivSyni!$A$1:$A$98)),ROW(DjorlivSyni!C4))),\"\")","v":""}]
[{"$f":"IFERROR(INDEX(BotnSyni!$A$2:$A$99, SMALL(IF(BotnSyni!$A$2:$A$99<>\"\", ROW(BotnSyni!$A$1:$A$98)),ROW(BotnSyni!A5))),\"\")","v":""},null,{"$f":"IFERROR(INDEX(DjorlivSyni!$A$2:$A$99, SMALL(IF(DjorlivSyni!$A$2:$A$99<>\"\", ROW(DjorlivSyni!$A$1:$A$98)),ROW(DjorlivSyni!C5))),\"\")","v":""}]
[{"$f":"IFERROR(INDEX(BotnSyni!$A$2:$A$99, SMALL(IF(BotnSyni!$A$2:$A$99<>\"\", ROW(BotnSyni!$A$1:$A$98)),ROW(BotnSyni!A6))),\"\")","v":""},null,{"$f":"IFERROR(INDEX(DjorlivSyni!$A$2:$A$99, SMALL(IF(DjorlivSyni!$A$2:$A$99<>\"\", ROW(DjorlivSyni!$A$1:$A$98)),ROW(DjorlivSyni!C6))),\"\")","v":""}]
[{"$f":"IFERROR(INDEX(BotnSyni!$A$2:$A$99, SMALL(IF(BotnSyni!$A$2:$A$99<>\"\", ROW(BotnSyni!$A$1:$A$98)),ROW(BotnSyni!A7))),\"\")","v":""},null,{"$f":"IFERROR(INDEX(DjorlivSyni!$A$2:$A$99, SMALL(IF(DjorlivSyni!$A$2:$A$99<>\"\", ROW(DjorlivSyni!$A$1:$A$98)),ROW(DjorlivSyni!C7))),\"\")","v":""}]
[{"$f":"IFERROR(INDEX(BotnSyni!$A$2:$A$99, SMALL(IF(BotnSyni!$A$2:$A$99<>\"\", ROW(BotnSyni!$A$1:$A$98)),ROW(BotnSyni!A8))),\"\")","v":""},null,{"$f":"IFERROR(INDEX(DjorlivSyni!$A$2:$A$99, SMALL(IF(DjorlivSyni!$A$2:$A$99<>\"\", ROW(DjorlivSyni!$A$1:$A$98)),ROW(DjorlivSyni!C8))),\"\")","v":""}]
[{"$f":"IFERROR(INDEX(BotnSyni!$A$2:$A$99, SMALL(IF(BotnSyni!$A$2:$A$99<>\"\", ROW(BotnSyni!$A$1:$A$98)),ROW(BotnSyni!A9))),\"\")","v":""},null,{"$f":"IFERROR(INDEX(DjorlivSyni!$A$2:$A$99, SMALL(IF(DjorlivSyni!$A$2:$A$99<>\"\", ROW(DjorlivSyni!$A$1:$A$98)),ROW(DjorlivSyni!C9))),\"\")","v":""}]
[{"$f":"IFERROR(INDEX(BotnSyni!$A$2:$A$99, SMALL(IF(BotnSyni!$A$2:$A$99<>\"\", ROW(BotnSyni!$A$1:$A$98)),ROW(BotnSyni!A10))),\"\")","v":""},null,{"$f":"IFERROR(INDEX(DjorlivSyni!$A$2:$A$99, SMALL(IF(DjorlivSyni!$A$2:$A$99<>\"\", ROW(DjorlivSyni!$A$1:$A$98)),ROW(DjorlivSyni!C10))),\"\")","v":""}]
[{"$f":"IFERROR(INDEX(BotnSyni!$A$2:$A$99, SMALL(IF(BotnSyni!$A$2:$A$99<>\"\", ROW(BotnSyni!$A$1:$A$98)),ROW(BotnSyni!A11))),\"\")","v":""},null,{"$f":"IFERROR(INDEX(DjorlivSyni!$A$2:$A$99, SMALL(IF(DjorlivSyni!$A$2:$A$99<>\"\", ROW(DjorlivSyni!$A$1:$A$98)),ROW(DjorlivSyni!C11))),\"\")","v":""}]
[{"$f":"IFERROR(INDEX(BotnSyni!$A$2:$A$99, SMALL(IF(BotnSyni!$A$2:$A$99<>\"\", ROW(BotnSyni!$A$1:$A$98)),ROW(BotnSyni!A12))),\"\")","v":""},null,{"$f":"IFERROR(INDEX(DjorlivSyni!$A$2:$A$99, SMALL(IF(DjorlivSyni!$A$2:$A$99<>\"\", ROW(DjorlivSyni!$A$1:$A$98)),ROW(DjorlivSyni!C12))),\"\")","v":""}]
[{"$f":"IFERROR(INDEX(BotnSyni!$A$2:$A$99, SMALL(IF(BotnSyni!$A$2:$A$99<>\"\", ROW(BotnSyni!$A$1:$A$98)),ROW(BotnSyni!A13))),\"\")","v":""},null,{"$f":"IFERROR(INDEX(DjorlivSyni!$A$2:$A$99, SMALL(IF(DjorlivSyni!$A$2:$A$99<>\"\", ROW(DjorlivSyni!$A$1:$A$98)),ROW(DjorlivSyni!C13))),\"\")","v":""}]
[{"$f":"IFERROR(INDEX(BotnSyni!$A$2:$A$99, SMALL(IF(BotnSyni!$A$2:$A$99<>\"\", ROW(BotnSyni!$A$1:$A$98)),ROW(BotnSyni!A14))),\"\")","v":""},null,{"$f":"IFERROR(INDEX(DjorlivSyni!$A$2:$A$99, SMALL(IF(DjorlivSyni!$A$2:$A$99<>\"\", ROW(DjorlivSyni!$A$1:$A$98)),ROW(DjorlivSyni!C14))),\"\")","v":""}]
[{"$f":"IFERROR(INDEX(BotnSyni!$A$2:$A$99, SMALL(IF(BotnSyni!$A$2:$A$99<>\"\", ROW(BotnSyni!$A$1:$A$98)),ROW(BotnSyni!A15))),\"\")","v":""},null,{"$f":"IFERROR(INDEX(DjorlivSyni!$A$2:$A$99, SMALL(IF(DjorlivSyni!$A$2:$A$99<>\"\", ROW(DjorlivSyni!$A$1:$A$98)),ROW(DjorlivSyni!C15))),\"\")","v":""}]
[{"$f":"IFERROR(INDEX(BotnSyni!$A$2:$A$99, SMALL(IF(BotnSyni!$A$2:$A$99<>\"\", ROW(BotnSyni!$A$1:$A$98)),ROW(BotnSyni!A16))),\"\")","v":""},null,{"$f":"IFERROR(INDEX(DjorlivSyni!$A$2:$A$99, SMALL(IF(DjorlivSyni!$A$2:$A$99<>\"\", ROW(DjorlivSyni!$A$1:$A$98)),ROW(DjorlivSyni!C16))),\"\")","v":""}]
[{"$f":"IFERROR(INDEX(BotnSyni!$A$2:$A$99, SMALL(IF(BotnSyni!$A$2:$A$99<>\"\", ROW(BotnSyni!$A$1:$A$98)),ROW(BotnSyni!A17))),\"\")","v":""}]
[{"$f":"IFERROR(INDEX(BotnSyni!$A$2:$A$99, SMALL(IF(BotnSyni!$A$2:$A$99<>\"\", ROW(BotnSyni!$A$1:$A$98)),ROW(BotnSyni!A18))),\"\")","v":""}]
[{"$f":"IFERROR(INDEX(BotnSyni!$A$2:$A$99, SMALL(IF(BotnSyni!$A$2:$A$99<>\"\", ROW(BotnSyni!$A$1:$A$98)),ROW(BotnSyni!A19))),\"\")","v":""}]
[{"$f":"IFERROR(INDEX(BotnSyni!$A$2:$A$99, SMALL(IF(BotnSyni!$A$2:$A$99<>\"\", ROW(BotnSyni!$A$1:$A$98)),ROW(BotnSyni!A20))),\"\")","v":""}]
[{"$f":"IFERROR(INDEX(BotnSyni!$A$2:$A$99, SMALL(IF(BotnSyni!$A$2:$A$99<>\"\", ROW(BotnSyni!$A$1:$A$98)),ROW(BotnSyni!A21))),\"\")","v":""}]
[{"$f":"IFERROR(INDEX(BotnSyni!$A$2:$A$99, SMALL(IF(BotnSyni!$A$2:$A$99<>\"\", ROW(BotnSyni!$A$1:$A$98)),ROW(BotnSyni!A22))),\"\")","v":""}]
[{"$f":"IFERROR(INDEX(BotnSyni!$A$2:$A$99, SMALL(IF(BotnSyni!$A$2:$A$99<>\"\", ROW(BotnSyni!$A$1:$A$98)),ROW(BotnSyni!A23))),\"\")","v":""}]
[{"$f":"IFERROR(INDEX(BotnSyni!$A$2:$A$99, SMALL(IF(BotnSyni!$A$2:$A$99<>\"\", ROW(BotnSyni!$A$1:$A$98)),ROW(BotnSyni!A24))),\"\")","v":""}]
[{"$f":"IFERROR(INDEX(BotnSyni!$A$2:$A$99, SMALL(IF(BotnSyni!$A$2:$A$99<>\"\", ROW(BotnSyni!$A$1:$A$98)),ROW(BotnSyni!A25))),\"\")","v":""}]
[{"$f":"IFERROR(INDEX(BotnSyni!$A$2:$A$99, SMALL(IF(BotnSyni!$A$2:$A$99<>\"\", ROW(BotnSyni!$A$1:$A$98)),ROW(BotnSyni!A26))),\"\")","v":""}]
[{"$f":"IFERROR(INDEX(BotnSyni!$A$2:$A$99, SMALL(IF(BotnSyni!$A$2:$A$99<>\"\", ROW(BotnSyni!$A$1:$A$98)),ROW(BotnSyni!A27))),\"\")","v":""}]
[{"$f":"IFERROR(INDEX(BotnSyni!$A$2:$A$99, SMALL(IF(BotnSyni!$A$2:$A$99<>\"\", ROW(BotnSyni!$A$1:$A$98)),ROW(BotnSyni!A28))),\"\")","v":""}]
[{"$f":"IFERROR(INDEX(BotnSyni!$A$2:$A$99, SMALL(IF(BotnSyni!$A$2:$A$99<>\"\", ROW(BotnSyni!$A$1:$A$98)),ROW(BotnSyni!A29))),\"\")","v":""}]
[{"$f":"IFERROR(INDEX(BotnSyni!$A$2:$A$99, SMALL(IF(BotnSyni!$A$2:$A$99<>\"\", ROW(BotnSyni!$A$1:$A$98)),ROW(BotnSyni!A30))),\"\")","v":""}]
[{"$f":"IFERROR(INDEX(BotnSyni!$A$2:$A$99, SMALL(IF(BotnSyni!$A$2:$A$99<>\"\", ROW(BotnSyni!$A$1:$A$98)),ROW(BotnSyni!A31))),\"\")","v":""}]
[{"$f":"IFERROR(INDEX(BotnSyni!$A$2:$A$99, SMALL(IF(BotnSyni!$A$2:$A$99<>\"\", ROW(BotnSyni!$A$1:$A$98)),ROW(BotnSyni!A32))),\"\")","v":""}]
[{"$f":"IFERROR(INDEX(BotnSyni!$A$2:$A$99, SMALL(IF(BotnSyni!$A$2:$A$99<>\"\", ROW(BotnSyni!$A$1:$A$98)),ROW(BotnSyni!A33))),\"\")","v":""}]
[{"$f":"IFERROR(INDEX(BotnSyni!$A$2:$A$99, SMALL(IF(BotnSyni!$A$2:$A$99<>\"\", ROW(BotnSyni!$A$1:$A$98)),ROW(BotnSyni!A34))),\"\")","v":""}]
[{"$f":"IFERROR(INDEX(BotnSyni!$A$2:$A$99, SMALL(IF(BotnSyni!$A$2:$A$99<>\"\", ROW(BotnSyni!$A$1:$A$98)),ROW(BotnSyni!A35))),\"\")","v":""}]
[{"$f":"IFERROR(INDEX(BotnSyni!$A$2:$A$99, SMALL(IF(BotnSyni!$A$2:$A$99<>\"\", ROW(BotnSyni!$A$1:$A$98)),ROW(BotnSyni!A36))),\"\")","v":""}]
[{"$f":"IFERROR(INDEX(BotnSyni!$A$2:$A$99, SMALL(IF(BotnSyni!$A$2:$A$99<>\"\", ROW(BotnSyni!$A$1:$A$98)),ROW(BotnSyni!A37))),\"\")","v":""}]
[{"$f":"IFERROR(INDEX(BotnSyni!$A$2:$A$99, SMALL(IF(BotnSyni!$A$2:$A$99<>\"\", ROW(BotnSyni!$A$1:$A$98)),ROW(BotnSyni!A38))),\"\")","v":""}]
[{"$f":"IFERROR(INDEX(BotnSyni!$A$2:$A$99, SMALL(IF(BotnSyni!$A$2:$A$99<>\"\", ROW(BotnSyni!$A$1:$A$98)),ROW(BotnSyni!A39))),\"\")","v":""}]
[{"$f":"IFERROR(INDEX(BotnSyni!$A$2:$A$99, SMALL(IF(BotnSyni!$A$2:$A$99<>\"\", ROW(BotnSyni!$A$1:$A$98)),ROW(BotnSyni!A40))),\"\")","v":""}]
[{"$f":"IFERROR(INDEX(BotnSyni!$A$2:$A$99, SMALL(IF(BotnSyni!$A$2:$A$99<>\"\", ROW(BotnSyni!$A$1:$A$98)),ROW(BotnSyni!A41))),\"\")","v":""}]
[{"$f":"IFERROR(INDEX(BotnSyni!$A$2:$A$99, SMALL(IF(BotnSyni!$A$2:$A$99<>\"\", ROW(BotnSyni!$A$1:$A$98)),ROW(BotnSyni!A42))),\"\")","v":""}]
[{"$f":"IFERROR(INDEX(BotnSyni!$A$2:$A$99, SMALL(IF(BotnSyni!$A$2:$A$99<>\"\", ROW(BotnSyni!$A$1:$A$98)),ROW(BotnSyni!A43))),\"\")","v":""}]
[{"$f":"IFERROR(INDEX(BotnSyni!$A$2:$A$99, SMALL(IF(BotnSyni!$A$2:$A$99<>\"\", ROW(BotnSyni!$A$1:$A$98)),ROW(BotnSyni!A44))),\"\")","v":""}]
[{"$f":"IFERROR(INDEX(BotnSyni!$A$2:$A$99, SMALL(IF(BotnSyni!$A$2:$A$99<>\"\", ROW(BotnSyni!$A$1:$A$98)),ROW(BotnSyni!A45))),\"\")","v":""}]
[{"$f":"IFERROR(INDEX(BotnSyni!$A$2:$A$99, SMALL(IF(BotnSyni!$A$2:$A$99<>\"\", ROW(BotnSyni!$A$1:$A$98)),ROW(BotnSyni!A46))),\"\")","v":""}]
[{"$f":"IFERROR(INDEX(BotnSyni!$A$2:$A$99, SMALL(IF(BotnSyni!$A$2:$A$99<>\"\", ROW(BotnSyni!$A$1:$A$98)),ROW(BotnSyni!A47))),\"\")","v":""}]
[{"$f":"IFERROR(INDEX(BotnSyni!$A$2:$A$99, SMALL(IF(BotnSyni!$A$2:$A$99<>\"\", ROW(BotnSyni!$A$1:$A$98)),ROW(BotnSyni!A48))),\"\")","v":""}]
[{"$f":"IFERROR(INDEX(BotnSyni!$A$2:$A$99, SMALL(IF(BotnSyni!$A$2:$A$99<>\"\", ROW(BotnSyni!$A$1:$A$98)),ROW(BotnSyni!A49))),\"\")","v":""}]
[{"$f":"IFERROR(INDEX(BotnSyni!$A$2:$A$99, SMALL(IF(BotnSyni!$A$2:$A$99<>\"\", ROW(BotnSyni!$A$1:$A$98)),ROW(BotnSyni!A50))),\"\")","v":""}]
[{"$f":"IFERROR(INDEX(BotnSyni!$A$2:$A$99, SMALL(IF(BotnSyni!$A$2:$A$99<>\"\", ROW(BotnSyni!$A$1:$A$98)),ROW(BotnSyni!A51))),\"\")","v":""}]
[{"$f":"IFERROR(INDEX(BotnSyni!$A$2:$A$99, SMALL(IF(BotnSyni!$A$2:$A$99<>\"\", ROW(BotnSyni!$A$1:$A$98)),ROW(BotnSyni!A52))),\"\")","v":""}]
[{"$f":"IFERROR(INDEX(BotnSyni!$A$2:$A$99, SMALL(IF(BotnSyni!$A$2:$A$99<>\"\", ROW(BotnSyni!$A$1:$A$98)),ROW(BotnSyni!A53))),\"\")","v":""}]
[{"$f":"IFERROR(INDEX(BotnSyni!$A$2:$A$99, SMALL(IF(BotnSyni!$A$2:$A$99<>\"\", ROW(BotnSyni!$A$1:$A$98)),ROW(BotnSyni!A54))),\"\")","v":""}]
[{"$f":"IFERROR(INDEX(BotnSyni!$A$2:$A$99, SMALL(IF(BotnSyni!$A$2:$A$99<>\"\", ROW(BotnSyni!$A$1:$A$98)),ROW(BotnSyni!A55))),\"\")","v":""}]
[{"$f":"IFERROR(INDEX(BotnSyni!$A$2:$A$99, SMALL(IF(BotnSyni!$A$2:$A$99<>\"\", ROW(BotnSyni!$A$1:$A$98)),ROW(BotnSyni!A56))),\"\")","v":""}]
[{"$f":"IFERROR(INDEX(BotnSyni!$A$2:$A$99, SMALL(IF(BotnSyni!$A$2:$A$99<>\"\", ROW(BotnSyni!$A$1:$A$98)),ROW(BotnSyni!A57))),\"\")","v":""}]
[{"$f":"IFERROR(INDEX(BotnSyni!$A$2:$A$99, SMALL(IF(BotnSyni!$A$2:$A$99<>\"\", ROW(BotnSyni!$A$1:$A$98)),ROW(BotnSyni!A58))),\"\")","v":""}]
[{"$f":"IFERROR(INDEX(BotnSyni!$A$2:$A$99, SMALL(IF(BotnSyni!$A$2:$A$99<>\"\", ROW(BotnSyni!$A$1:$A$98)),ROW(BotnSyni!A59))),\"\")","v":""}]
[{"$f":"IFERROR(INDEX(BotnSyni!$A$2:$A$99, SMALL(IF(BotnSyni!$A$2:$A$99<>\"\", ROW(BotnSyni!$A$1:$A$98)),ROW(BotnSyni!A60))),\"\")","v":""}]
[{"$f":"IFERROR(INDEX(BotnSyni!$A$2:$A$99, SMALL(IF(BotnSyni!$A$2:$A$99<>\"\", ROW(BotnSyni!$A$1:$A$98)),ROW(BotnSyni!A61))),\"\")","v":""}]
[{"$f":"IFERROR(INDEX(BotnSyni!$A$2:$A$99, SMALL(IF(BotnSyni!$A$2:$A$99<>\"\", ROW(BotnSyni!$A$1:$A$98)),ROW(BotnSyni!A62))),\"\")","v":""}]
[{"$f":"IFERROR(INDEX(BotnSyni!$A$2:$A$99, SMALL(IF(BotnSyni!$A$2:$A$99<>\"\", ROW(BotnSyni!$A$1:$A$98)),ROW(BotnSyni!A63))),\"\")","v":""}]
[{"$f":"IFERROR(INDEX(BotnSyni!$A$2:$A$99, SMALL(IF(BotnSyni!$A$2:$A$99<>\"\", ROW(BotnSyni!$A$1:$A$98)),ROW(BotnSyni!A64))),\"\")","v":""}]
[{"$f":"IFERROR(INDEX(BotnSyni!$A$2:$A$99, SMALL(IF(BotnSyni!$A$2:$A$99<>\"\", ROW(BotnSyni!$A$1:$A$98)),ROW(BotnSyni!A65))),\"\")","v":""}]
[{"$f":"IFERROR(INDEX(BotnSyni!$A$2:$A$99, SMALL(IF(BotnSyni!$A$2:$A$99<>\"\", ROW(BotnSyni!$A$1:$A$98)),ROW(BotnSyni!A66))),\"\")","v":""}]
[{"$f":"IFERROR(INDEX(BotnSyni!$A$2:$A$99, SMALL(IF(BotnSyni!$A$2:$A$99<>\"\", ROW(BotnSyni!$A$1:$A$98)),ROW(BotnSyni!A67))),\"\")","v":""}]
[{"$f":"IFERROR(INDEX(BotnSyni!$A$2:$A$99, SMALL(IF(BotnSyni!$A$2:$A$99<>\"\", ROW(BotnSyni!$A$1:$A$98)),ROW(BotnSyni!A68))),\"\")","v":""}]
[{"$f":"IFERROR(INDEX(BotnSyni!$A$2:$A$99, SMALL(IF(BotnSyni!$A$2:$A$99<>\"\", ROW(BotnSyni!$A$1:$A$98)),ROW(BotnSyni!A69))),\"\")","v":""}]
[{"$f":"IFERROR(INDEX(BotnSyni!$A$2:$A$99, SMALL(IF(BotnSyni!$A$2:$A$99<>\"\", ROW(BotnSyni!$A$1:$A$98)),ROW(BotnSyni!A70))),\"\")","v":""}]
[{"$f":"IFERROR(INDEX(BotnSyni!$A$2:$A$99, SMALL(IF(BotnSyni!$A$2:$A$99<>\"\", ROW(BotnSyni!$A$1:$A$98)),ROW(BotnSyni!A71))),\"\")","v":""}]
[{"$f":"IFERROR(INDEX(BotnSyni!$A$2:$A$99, SMALL(IF(BotnSyni!$A$2:$A$99<>\"\", ROW(BotnSyni!$A$1:$A$98)),ROW(BotnSyni!A72))),\"\")","v":""}]
[{"$f":"IFERROR(INDEX(BotnSyni!$A$2:$A$99, SMALL(IF(BotnSyni!$A$2:$A$99<>\"\", ROW(BotnSyni!$A$1:$A$98)),ROW(BotnSyni!A73))),\"\")","v":""}]
[{"$f":"IFERROR(INDEX(BotnSyni!$A$2:$A$99, SMALL(IF(BotnSyni!$A$2:$A$99<>\"\", ROW(BotnSyni!$A$1:$A$98)),ROW(BotnSyni!A74))),\"\")","v":""}]
[{"$f":"IFERROR(INDEX(BotnSyni!$A$2:$A$99, SMALL(IF(BotnSyni!$A$2:$A$99<>\"\", ROW(BotnSyni!$A$1:$A$98)),ROW(BotnSyni!A75))),\"\")","v":""}]
[{"$f":"IFERROR(INDEX(BotnSyni!$A$2:$A$99, SMALL(IF(BotnSyni!$A$2:$A$99<>\"\", ROW(BotnSyni!$A$1:$A$98)),ROW(BotnSyni!A76))),\"\")","v":""}]
[{"$f":"IFERROR(INDEX(BotnSyni!$A$2:$A$99, SMALL(IF(BotnSyni!$A$2:$A$99<>\"\", ROW(BotnSyni!$A$1:$A$98)),ROW(BotnSyni!A77))),\"\")","v":""}]
[{"$f":"IFERROR(INDEX(BotnSyni!$A$2:$A$99, SMALL(IF(BotnSyni!$A$2:$A$99<>\"\", ROW(BotnSyni!$A$1:$A$98)),ROW(BotnSyni!A78))),\"\")","v":""}]

{"sheet":"taxonpath","index":10,"n_rows":1035,"n_cols":4,"rows_kept":1035,"cut":false,"hidden":false,"merged":[]}
["aphia_id","ancestors","rankname","scientific_name"]
[138474,"{Animalia,Mollusca,Bivalvia,Cardiida,Semelidae,Abra}","genus","Abra"]
[141433,"{Animalia,Mollusca,Bivalvia,Cardiida,Semelidae,Abra,\"Abra alba\"}","species","Abra alba"]
[141435,"{Animalia,Mollusca,Bivalvia,Cardiida,Semelidae,Abra,\"Abra nitida\"}","species","Abra nitida"]
[141436,"{Animalia,Mollusca,Bivalvia,Cardiida,Semelidae,Abra,\"Abra prismatica\"}","species","Abra prismatica"]
[137732,"{Animalia,Mollusca,Bivalvia,Cardiida,Cardiidae,Acanthocardia}","genus","Acanthocardia"]
[138990,"{Animalia,Mollusca,Bivalvia,Cardiida,Cardiidae,Acanthocardia,\"Acanthocardia aculeata\"}","species","Acanthocardia aculeata"]
[138992,"{Animalia,Mollusca,Bivalvia,Cardiida,Cardiidae,Acanthocardia,\"Acanthocardia echinata\"}","species","Acanthocardia echinata"]
[292684,"{Animalia,Arthropoda,Arachnida,Acari}","subclass","Acari"]
[137614,"{Animalia,Mollusca,Gastropoda,Littorinimorpha,Eulimidae,Aclis}","genus","Aclis"]
[267197,"{Animalia,Cnidaria,Anthozoa,Actiniaria,Thalassianthidae,Actineria}","genus","Actineria"]
[1360,"{Animalia,Cnidaria,Anthozoa,Actiniaria}","order","Actiniaria"]
[10194,"{Animalia,Chordata,Actinopterygii}","class","Actinopterygii"]
[869601,"{Animalia,Mollusca,Bivalvia,Adapedonta}","order","Adapedonta"]
[138313,"{Animalia,Mollusca,Bivalvia,Pectinida,Pectinidae,Aequipecten}","genus","Aequipecten"]
[140687,"{Animalia,Mollusca,Bivalvia,Pectinida,Pectinidae,Aequipecten,\"Aequipecten opercularis\"}","species","Aequipecten opercularis"]
[129366,"{Animalia,Annelida,Polychaeta,Phyllodocida,Nephtyidae,Aglaophamus}","genus","Aglaophamus"]
[130343,"{Animalia,Annelida,Polychaeta,Phyllodocida,Nephtyidae,Aglaophamus,\"Aglaophamus agilis\"}","species","Aglaophamus agilis"]
[130345,"{Animalia,Annelida,Polychaeta,Phyllodocida,Nephtyidae,Aglaophamus,\"Aglaophamus rubella\"}","species","Aglaophamus rubella"]
[599405,"{Animalia,Arthropoda,Crustacea,Malacostraca,Tanaidacea,Akanthophoreidae}","family","Akanthophoreidae"]
[136340,"{Animalia,Arthropoda,Crustacea,Malacostraca,Tanaidacea,Akanthophoreidae,\"Akanthophoreus gracilis\"}","species","Akanthophoreus gracilis"]
[932,"{Animalia,Annelida,Polychaeta,Phyllodocida,Alciopidae}","family","Alciopidae"]
[1365,"{Animalia,Cnidaria,Anthozoa,Alcyonacea}","order","Alcyonacea"]
[125269,"{Animalia,Cnidaria,Anthozoa,Alcyonacea,Alcyoniidae}","family","Alcyoniidae"]
[125284,"{Animalia,Cnidaria,Anthozoa,Alcyonacea,Alcyoniidae,Alcyonium}","genus","Alcyonium"]
[125333,"{Animalia,Cnidaria,Anthozoa,Alcyonacea,Alcyoniidae,Alcyonium,\"Alcyonium digitatum\"}","species","Alcyonium digitatum"]
[234851,"{Animalia,Annelida,Polychaeta,Phyllodocida,Nereididae,\"Alitta virens\"}","species","Alitta virens"]
[138439,"{Animalia,Mollusca,Gastropoda,Littorinimorpha,Rissoidae,Alvania}","genus","Alvania"]
[129155,"{Animalia,Annelida,Polychaeta,Terebellida,Ampharetidae,Ampharete}","genus","Ampharete"]
[129775,"{Animalia,Annelida,Polychaeta,Terebellida,Ampharetidae,Ampharete,\"Ampharete acutifrons\"}","species","Ampharete acutifrons"]
[129776,"{Animalia,Annelida,Polychaeta,Terebellida,Ampharetidae,Ampharete,\"Ampharete baltica\"}","species","Ampharete baltica"]
[129778,"{Animalia,Annelida,Polychaeta,Terebellida,Ampharetidae,Ampharete,\"Ampharete finmarchica\"}","species","Ampharete finmarchica"]
[129781,"{Animalia,Annelida,Polychaeta,Terebellida,Ampharetidae,Ampharete,\"Ampharete lindstroemi\"}","species","Ampharete lindstroemi"]
[981,"{Animalia,Annelida,Polychaeta,Terebellida,Ampharetidae}","family","Ampharetidae"]
[129784,"{Animalia,Annelida,Polychaeta,Terebellida,Ampharetidae,\"Amphicteis gunneri\"}","species","Amphicteis gunneri"]
[152448,"{Animalia,Annelida,Polychaeta,Terebellida,Pectinariidae,\"Amphictene auricoma\"}","species","Amphictene auricoma"]
[1062666,"{Animalia,Echinodermata,Ophiuroidea,Amphilepidida}","order","Amphilepidida"]
[893,"{Animalia,Annelida,Polychaeta,Amphinomida}","order","Amphinomida"]
[960,"{Animalia,Annelida,Polychaeta,Amphinomida,Amphinomidae}","family","Amphinomidae"]
[172595,"{Animalia,Echinodermata,Ophiuroidea,Amphilepidida,Amphiuridae,Amphiodia}","genus","Amphiodia"]
[125064,"{Animalia,Echinodermata,Ophiuroidea,Amphilepidida,Amphiuridae,\"Amphipholis squamata\"}","species","Amphipholis squamata"]
[1135,"{Animalia,Arthropoda,Crustacea,Malacostraca,Amphipoda}","order","Amphipoda"]
[131474,"{Animalia,Annelida,Polychaeta,Terebellida,Terebellidae,\"Amphitrite cirrata\"}","species","Amphitrite cirrata"]
[129687,"{Animalia,Annelida,Polychaeta,Terebellida,Terebellidae,Amphitritides}","genus","Amphitritides"]
[131480,"{Animalia,Annelida,Polychaeta,Terebellida,Terebellidae,Amphitritides,\"Amphitritides gracilis\"}","species","Amphitritides gracilis"]
[123613,"{Animalia,Echinodermata,Ophiuroidea,Amphilepidida,Amphiuridae,Amphiura}","genus","Amphiura"]
[125195,"{Animalia,Echinodermata,Ophiuroidea,Amphilepidida,Amphiuridae,Amphiura,\"Amphiura (Ophiopeltis) securigera\"}","species","Amphiura (Ophiopeltis) securigera"]
[125073,"{Animalia,Echinodermata,Ophiuroidea,Amphilepidida,Amphiuridae,Amphiura,\"Amphiura chiajei\"}","species","Amphiura chiajei"]
[125080,"{Animalia,Echinodermata,Ophiuroidea,Amphilepidida,Amphiuridae,Amphiura,\"Amphiura filiformis\"}","species","Amphiura filiformis"]
[123206,"{Animalia,Echinodermata,Ophiuroidea,Amphilepidida,Amphiuridae}","family","Amphiuridae"]
[102002,"{Animalia,Arthropoda,Crustacea,Malacostraca,Amphipoda,Ampithoidae,\"Ampithoe rubricata\"}","species","Ampithoe rubricata"]
[101366,"{Animalia,Arthropoda,Crustacea,Malacostraca,Amphipoda,Ampithoidae}","family","Ampithoidae"]
[129788,"{Animalia,Annelida,Polychaeta,Terebellida,Ampharetidae,\"Amythasides macroglossus\"}","species","Amythasides macroglossus"]
[125620,"{Animalia,Chordata,Actinopterygii,Anguilliformes,Anguillidae,Anguilla}","genus","Anguilla"]
[125425,"{Animalia,Chordata,Actinopterygii,Anguilliformes,Anguillidae}","family","Anguillidae"]
[10295,"{Animalia,Chordata,Actinopterygii,Anguilliformes}","order","Anguilliformes"]
[2,"{Animalia}","kingdom","Animalia"]
[882,"{Animalia,Annelida}","phylum","Annelida"]
[129789,"{Animalia,Annelida,Polychaeta,Terebellida,Ampharetidae,\"Anobothrus gracilis\"}","species","Anobothrus gracilis"]
[138748,"{Animalia,Mollusca,Bivalvia,Pectinida,Anomiidae,\"Anomia ephippium\"}","species","Anomia ephippium"]
[214,"{Animalia,Mollusca,Bivalvia,Pectinida,Anomiidae}","family","Anomiidae"]
[106671,"{Animalia,Arthropoda,Crustacea,Malacostraca,Decapoda,Anomura}","infraorder","Anomura"]
[102513,"{Animalia,Arthropoda,Crustacea,Malacostraca,Amphipoda,Uristidae,\"Anonyx lilljeborgi\"}","species","Anonyx lilljeborgi"]
[134723,"{Animalia,Arthropoda,Pycnogonida,Pantopoda,Phoxichilidiidae,\"Anoplodactylus petiolatus\"}","species","Anoplodactylus petiolatus"]
[150534,"{Animalia,Mollusca,Scaphopoda,Dentaliida,Dentaliidae,\"Antalis entalis\"}","species","Antalis entalis"]
[13551,"{Animalia,Cnidaria,Hydrozoa,Anthoathecata}","order","Anthoathecata"]
[1292,"{Animalia,Cnidaria,Anthozoa}","class","Anthozoa"]
[129605,"{Animalia,Annelida,Polychaeta,Spionida,Spionidae,Aonides}","genus","Aonides"]
[131106,"{Animalia,Annelida,Polychaeta,Spionida,Spionidae,Aonides,\"Aonides oxycephala\"}","species","Aonides oxycephala"]
[131107,"{Animalia,Annelida,Polychaeta,Spionida,Spionidae,\"Aonides paucibranchiata\"}","species","Aonides paucibranchiata"]
[101368,"{Animalia,Arthropoda,Crustacea,Malacostraca,Amphipoda,Aoridae}","family","Aoridae"]
[129240,"{Animalia,Annelida,Polychaeta,Terebellida,Cirratulidae,Aphelochaeta}","genus","Aphelochaeta"]
[129937,"{Animalia,Annelida,Polychaeta,Terebellida,Cirratulidae,Aphelochaeta,\"Aphelochaeta filiformis\"}","species","Aphelochaeta filiformis"]
[129938,"{Animalia,Annelida,Polychaeta,Terebellida,Cirratulidae,Aphelochaeta,\"Aphelochaeta marioni\"}","species","Aphelochaeta marioni"]
[101509,"{Animalia,Arthropoda,Crustacea,Malacostraca,Amphipoda,Calliopiidae,Apherusa}","genus","Apherusa"]
[102160,"{Animalia,Arthropoda,Crustacea,Malacostraca,Amphipoda,Calliopiidae,Apherusa,\"Apherusa bispinosa\"}","species","Apherusa bispinosa"]
[129194,"{Animalia,Annelida,Polychaeta,Phyllodocida,Aphroditidae,Aphrodita}","genus","Aphrodita"]
[129840,"{Animalia,Annelida,Polychaeta,Phyllodocida,Aphroditidae,Aphrodita,\"Aphrodita aculeata\"}","species","Aphrodita aculeata"]
[231869,"{Animalia,Annelida,Polychaeta,Phyllodocida,Aphroditidae,\"Aphrodite aculeata\"}","species","Aphrodite aculeata"]
[938,"{Animalia,Annelida,Polychaeta,Phyllodocida,Aphroditidae}","family","Aphroditidae"]
[912,"{Animalia,Annelida,Polychaeta,Spionida,Apistobranchidae}","family","Apistobranchidae"]
[129198,"{Animalia,Annelida,Polychaeta,Spionida,Apistobranchidae,Apistobranchus}","genus","Apistobranchus"]
[129851,"{Animalia,Annelida,Polychaeta,Spionida,Apistobranchidae,\"Apistobranchus tullbergi\"}","species","Apistobranchus tullbergi"]
[411,"{Animalia,Mollusca,Aplacophora}","class","Aplacophora"]
[103434,"{Animalia,Chordata,Ascidiacea,Aplousobranchia}","order","Aplousobranchia"]
[123108,"{Animalia,Echinodermata,Holothuroidea,Apodida}","order","Apodida"]
[22988,"{Animalia,Mollusca,Gastropoda,Littorinimorpha,Aporrhaidae}","family","Aporrhaidae"]
[138760,"{Animalia,Mollusca,Gastropoda,Littorinimorpha,Aporrhaidae,\"Aporrhais pespelecani\"}","species","Aporrhais pespelecani"]
[1300,"{Animalia,Arthropoda,Arachnida}","class","Arachnida"]
[110,"{Animalia,Mollusca,Gastropoda,Archaeogastropoda}","order","Archaeogastropoda"]
[148294,"{Animalia,Platyhelminthes,Proseriata,Archimonocelidae}","family","Archimonocelidae"]
[152488,"{Animalia,Platyhelminthes,Proseriata,Archimonocelidae,\"Archimonocelis staresoi\"}","species","Archimonocelis staresoi"]
[138529,"{Animalia,Mollusca,Bivalvia,Cardiida,Tellinidae,Arcopagia}","genus","Arcopagia"]
[141577,"{Animalia,Mollusca,Bivalvia,Cardiida,Tellinidae,Arcopagia,\"Arcopagia crassa\"}","species","Arcopagia crassa"]
[138802,"{Animalia,Mollusca,Bivalvia,Venerida,Arcticidae,\"Arctica islandica\"}","species","Arctica islandica"]
[241,"{Animalia,Mollusca,Bivalvia,Venerida,Arcticidae}","family","Arcticidae"]
[129868,"{Animalia,Annelida,Polychaeta,Arenicolidae,\"Arenicola marina\"}","species","Arenicola marina"]
[922,"{Animalia,Annelida,Polychaeta,Arenicolidae}","family","Arenicolidae"]
[129207,"{Animalia,Annelida,Polychaeta,Arenicolidae,Arenicolides}","genus","Arenicolides"]
[129870,"{Animalia,Annelida,Polychaeta,Arenicolidae,Arenicolides,\"Arenicolides ecaudata\"}","species","Arenicolides ecaudata"]
[456324,"{Animalia,Mollusca,Gastropoda,Littorinimorpha,Capulidae,Ariadnaria}","genus","Ariadnaria"]
[714762,"{Animalia,Mollusca,Gastropoda,Littorinimorpha,Capulidae,Ariadnaria,\"Ariadnaria borealis\"}","species","Ariadnaria borealis"]
[129430,"{Animalia,Annelida,Polychaeta,Paraonidae,Aricidea}","genus","Aricidea"]
[525497,"{Animalia,Annelida,Polychaeta,Paraonidae,Aricidea,\"Aricidea (Acmira) cerrutii\"}","species","Aricidea (Acmira) cerrutii"]
[734532,"{Animalia,Annelida,Polychaeta,Paraonidae,Aricidea,\"Aricidea (Strelzovia) suecica\"}","species","Aricidea (Strelzovia) suecica"]
[1065,"{Animalia,Arthropoda}","phylum","Arthropoda"]
[879714,"{Animalia,Mollusca,Bivalvia,Cardiida,Tellinidae,\"Asbjornsenia pygmaea\"}","species","Asbjornsenia pygmaea"]
[103483,"{Animalia,Chordata,Ascidiacea,Phlebobranchia,Ascidiidae,Ascidia}","genus","Ascidia"]
[103702,"{Animalia,Chordata,Ascidiacea,Phlebobranchia,Ascidiidae,Ascidia,\"Ascidia conchilega\"}","species","Ascidia conchilega"]
[103713,"{Animalia,Chordata,Ascidiacea,Phlebobranchia,Ascidiidae,Ascidia,\"Ascidia obliqua\"}","species","Ascidia obliqua"]
[1839,"{Animalia,Chordata,Ascidiacea}","class","Ascidiacea"]
[103719,"{Animalia,Chordata,Ascidiacea,Phlebobranchia,Ascidiidae,\"Ascidiella scabra\"}","species","Ascidiella scabra"]
[103443,"{Animalia,Chordata,Ascidiacea,Phlebobranchia,Ascidiidae}","family","Ascidiidae"]
[137683,"{Animalia,Mollusca,Bivalvia,Carditida,Astartidae,Astarte}","genus","Astarte"]
[138821,"{Animalia,Mollusca,Bivalvia,Carditida,Astartidae,Astarte,\"Astarte elliptica\"}","species","Astarte elliptica"]
[138823,"{Animalia,Mollusca,Bivalvia,Carditida,Astartidae,Astarte,\"Astarte montagui\"}","species","Astarte montagui"]
[138824,"{Animalia,Mollusca,Bivalvia,Carditida,Astartidae,Astarte,\"Astarte sulcata\"}","species","Astarte sulcata"]
[228,"{Animalia,Mollusca,Bivalvia,Carditida,Astartidae}","family","Astartidae"]
[123776,"{Animalia,Echinodermata,Asteroidea,Forcipulatida,Asteriidae,\"Asterias rubens\"}","species","Asterias rubens"]
[123121,"{Animalia,Echinodermata,Asteroidea,Forcipulatida,Asteriidae}","family","Asteriidae"]
[123080,"{Animalia,Echinodermata,Asteroidea}","class","Asteroidea"]
[146525,"{Animalia,Arthropoda,Crustacea,Malacostraca,Amphipoda,Atylidae}","family","Atylidae"]
[129608,"{Animalia,Annelida,Polychaeta,Spionida,Spionidae,Aurospio}","genus","Aurospio"]
[146532,"{Animalia,Annelida,Polychaeta,Spionida,Spionidae,Aurospio,\"Aurospio banyulensis\"}","species","Aurospio banyulensis"]
[130275,"{Animalia,Annelida,Polychaeta,Maldanidae,\"Axiothella catenata\"}","species","Axiothella catenata"]
[148899,"{Chromista,Ochrophyta,Bacillariophyceae}","class","Bacillariophyceae"]
[106057,"{Animalia,Arthropoda,Crustacea,Hexanauplia,Sessilia,Balanidae}","family","Balanidae"]
[106122,"{Animalia,Arthropoda,Crustacea,Hexanauplia,Sessilia,Balanidae,Balanus}","genus","Balanus"]
[137807,"{Animalia,Mollusca,Gastropoda,Neogastropoda,Mangeliidae,Bela}","genus","Bela"]
[139217,"{Animalia,Mollusca,Gastropoda,Neogastropoda,Mangeliidae,Bela,\"Bela nebula\"}","species","Bela nebula"]
[1,"{}","domain","Biota"]
[105,"{Animalia,Mollusca,Bivalvia}","class","Bivalvia"]
[131111,"{Animalia,Annelida,Polychaeta,Spionida,Spionidae,\"Boccardia polybranchia\"}","species","Boccardia polybranchia"]
[103514,"{Animalia,Chordata,Ascidiacea,Stolidobranchia,Pyuridae,Boltenia}","genus","Boltenia"]
[103814,"{Animalia,Chordata,Ascidiacea,Stolidobranchia,Pyuridae,Boltenia,\"Boltenia echinata\"}","species","Boltenia echinata"]
[119842,"{Animalia,Arthropoda,Crustacea,Malacostraca,Mysida,Mysidae,Boreomysis}","genus","Boreomysis"]
[146731,"{Animalia,Mollusca,Gastropoda,Neogastropoda,Muricidae,Boreotrophon}","genus","Boreotrophon"]
[146732,"{Animalia,Mollusca,Gastropoda,Neogastropoda,Muricidae,Boreotrophon,\"Boreotrophon clathratus\"}","species","Boreotrophon clathratus"]
[146733,"{Animalia,Mollusca,Gastropoda,Neogastropoda,Muricidae,Boreotrophon,\"Boreotrophon truncatus\"}","species","Boreotrophon truncatus"]
[103862,"{Animalia,Chordata,Ascidiacea,Stolidobranchia,Styelidae,\"Botryllus schlosseri\"}","species","Botryllus schlosseri"]
[106673,"{Animalia,Arthropoda,Crustacea,Malacostraca,Decapoda,Brachyura}","infraorder","Brachyura"]
[130097,"{Animalia,Annelida,Polychaeta,Terebellida,Flabelligeridae,\"Brada inhabilis\"}","species","Brada inhabilis"]
[130099,"{Animalia,Annelida,Polychaeta,Terebellida,Flabelligeridae,\"Brada villosa\"}","species","Brada villosa"]
[123427,"{Animalia,Echinodermata,Echinoidea,Spatangoida,Schizasteridae,Brisaster}","genus","Brisaster"]
[124404,"{Animalia,Echinodermata,Echinoidea,Spatangoida,Schizasteridae,Brisaster,\"Brisaster fragilis\"}","species","Brisaster fragilis"]
[123173,"{Animalia,Echinodermata,Echinoidea,Spatangoida,Brissidae}","family","Brissidae"]
[123418,"{Animalia,Echinodermata,Echinoidea,Spatangoida,Brissidae,Brissopsis}","genus","Brissopsis"]
[124373,"{Animalia,Echinodermata,Echinoidea,Spatangoida,Brissidae,Brissopsis,\"Brissopsis lyrifera\"}","species","Brissopsis lyrifera"]
[146142,"{Animalia,Bryozoa}","phylum","Bryozoa"]
[149,"{Animalia,Mollusca,Gastropoda,Neogastropoda,Buccinidae}","family","Buccinidae"]
[138878,"{Animalia,Mollusca,Gastropoda,Neogastropoda,Buccinidae,\"Buccinum undatum\"}","species","Buccinum undatum"]
[747312,"{Animalia,Mollusca,Gastropoda,Bullomorpha}","order","Bullomorpha"]
[139134,"{Animalia,Mollusca,Gastropoda,Nudibranchia,Cadlinidae,\"Cadlina laevis\"}","species","Cadlina laevis"]
[151277,"{Animalia,Mollusca,Gastropoda,Nudibranchia,Cadlinidae}","family","Cadlinidae"]
[146744,"{Animalia,Arthropoda,Crustacea,Malacostraca,Amphipoda,Calliopiidae}","family","Calliopiidae"]
[134581,"{Animalia,Arthropoda,Pycnogonida,Pantopoda,Callipallenidae,Callipallene}","genus","Callipallene"]
[150563,"{Animalia,Arthropoda,Pycnogonida,Pantopoda,Callipallenidae,Callipallene,\"Callipallene emaciata\"}","species","Callipallene emaciata"]
[1564,"{Animalia,Arthropoda,Pycnogonida,Pantopoda,Callipallenidae}","family","Callipallenidae"]
[510518,"{Animalia,Echinodermata,Echinoidea,Camarodonta}","order","Camarodonta"]
[129211,"{Animalia,Annelida,Polychaeta,Capitellidae,Capitella}","genus","Capitella"]
[129876,"{Animalia,Annelida,Polychaeta,Capitellidae,Capitella,\"Capitella capitata\"}","species","Capitella capitata"]
[129879,"{Animalia,Annelida,Polychaeta,Capitellidae,Capitella,\"Capitella minima\"}","species","Capitella minima"]
[921,"{Animalia,Annelida,Polychaeta,Capitellidae}","family","Capitellidae"]
[146761,"{Animalia,Annelida,Polychaeta,Capitellidae,\"Capitomastus minimus\"}","species","Capitomastus minimus"]
[101430,"{Animalia,Arthropoda,Crustacea,Malacostraca,Amphipoda,Caprellidae,Caprella}","genus","Caprella"]
[101839,"{Animalia,Arthropoda,Crustacea,Malacostraca,Amphipoda,Caprellidae,Caprella,\"Caprella linearis\"}","species","Caprella linearis"]
[146768,"{Animalia,Arthropoda,Crustacea,Malacostraca,Amphipoda,Caprellidae,\"Caprella mutica\"}","species","Caprella mutica"]
[101361,"{Animalia,Arthropoda,Crustacea,Malacostraca,Amphipoda,Caprellidae}","family","Caprellidae"]
[139,"{Animalia,Mollusca,Gastropoda,Littorinimorpha,Capulidae}","family","Capulidae"]
[325175,"{Animalia,Annelida,Polychaeta,Spionida,Spionidae,Carazziella}","genus","Carazziella"]
[557511,"{Animalia,Arthropoda,Crustacea,Malacostraca,Decapoda,Carcinidae}","family","Carcinidae"]
[107381,"{Animalia,Arthropoda,Crustacea,Malacostraca,Decapoda,Carcinidae,\"Carcinus maenas\"}","species","Carcinus maenas"]
[869602,"{Animalia,Mollusca,Bivalvia,Cardiida}","order","Cardiida"]
[229,"{Animalia,Mollusca,Bivalvia,Cardiida,Cardiidae}","family","Cardiidae"]
[382256,"{Animalia,Mollusca,Bivalvia,Carditida}","order","Carditida"]
[137734,"{Animalia,Mollusca,Bivalvia,Cardiida,Cardiidae,Cardium}","genus","Cardium"]
[178527,"{Animalia,Mollusca,Bivalvia,Cardiida,Cardiidae,\"Cardium echinatum\"}","species","Cardium echinatum"]
[876716,"{Animalia,Mollusca,Bivalvia,Cardiida,Cardiidae,Cardium,\"Cardium minutum\"}","species","Cardium minutum"]
[106674,"{Animalia,Arthropoda,Crustacea,Malacostraca,Decapoda,Caridea}","infraorder","Caridea"]
[151365,"{Animalia,Mollusca,Caudofoveata}","class","Caudofoveata"]
[129241,"{Animalia,Annelida,Polychaeta,Terebellida,Cirratulidae,Caulleriella}","genus","Caulleriella"]
[154,"{Animalia,Mollusca,Gastropoda,Cephalaspidea}","order","Cephalaspidea"]
[11707,"{Animalia,Mollusca,Cephalopoda}","class","Cephalopoda"]
[22699,"{Animalia,Cephalorhyncha}","phylum","Cephalorhyncha"]
[137735,"{Animalia,Mollusca,Bivalvia,Cardiida,Cardiidae,Cerastoderma}","genus","Cerastoderma"]
[138998,"{Animalia,Mollusca,Bivalvia,Cardiida,Cardiidae,Cerastoderma,\"Cerastoderma edule\"}","species","Cerastoderma edule"]
[109421,"{Chromista,Myzozoa,Dinophyceae,Gonyaulacales,Ceratiaceae}","family","Ceratiaceae"]
[109506,"{Chromista,Myzozoa,Dinophyceae,Gonyaulacales,Ceratiaceae,Ceratium}","genus","Ceratium"]
[122471,"{Animalia,Nemertea,Pilidiophora,Heteronemertea,Lineidae,\"Cerebratulus fuscus\"}","species","Cerebratulus fuscus"]
[1361,"{Animalia,Cnidaria,Anthozoa,Ceriantharia}","subclass","Ceriantharia"]
[370511,"{Animalia,Chordata,Vertebrata,Mammalia,Cetartiodactyla}","order","Cetartiodactyla"]
[139106,"{Animalia,Mollusca,Caudofoveata,Chaetodermatida,Chaetodermatidae,\"Chaetoderma nitidulum\"}","species","Chaetoderma nitidulum"]
[2088,"{Animalia,Mollusca,Caudofoveata,Chaetodermatida}","order","Chaetodermatida"]
[2089,"{Animalia,Mollusca,Caudofoveata,Chaetodermatida,Chaetodermatidae}","family","Chaetodermatidae"]
[2081,"{Animalia,Chaetognatha}","phylum","Chaetognatha"]
[130610,"{Animalia,Annelida,Polychaeta,Phyllodocida,Phyllodocidae,\"Chaetoparia nilssoni\"}","species","Chaetoparia nilssoni"]
[918,"{Animalia,Annelida,Polychaeta,Chaetopteridae}","family","Chaetopteridae"]
[129914,"{Animalia,Annelida,Polychaeta,Chaetopteridae,\"Chaetopterus variopedatus\"}","species","Chaetopterus variopedatus"]
[129242,"{Animalia,Annelida,Polychaeta,Terebellida,Cirratulidae,Chaetozone}","genus","Chaetozone"]
[129955,"{Animalia,Annelida,Polychaeta,Terebellida,Cirratulidae,\"Chaetozone setosa\"}","species","Chaetozone setosa"]
[141908,"{Animalia,Mollusca,Bivalvia,Venerida,Veneridae,\"Chamelea striatula\"}","species","Chamelea striatula"]
[126086,"{Animalia,Chordata,Actinopterygii,Perciformes,Stichaeidae,Chirolophis}","genus","Chirolophis"]
[127071,"{Animalia,Chordata,Actinopterygii,Perciformes,Stichaeidae,Chirolophis,\"Chirolophis ascanii\"}","species","Chirolophis ascanii"]
[118100,"{Animalia,Arthropoda,Insecta,Diptera,Chironomidae}","family","Chironomidae"]
[130888,"{Animalia,Annelida,Polychaeta,Sabellida,Sabellidae,\"Chone duneri\"}","species","Chone duneri"]
[130890,"{Animalia,Annelida,Polychaeta,Sabellida,Sabellidae,\"Chone filicaudata\"}","species","Chone filicaudata"]
[1821,"{Animalia,Chordata}","phylum","Chordata"]
[7,"{Chromista}","kingdom","Chromista"]
[103488,"{Animalia,Chordata,Ascidiacea,Phlebobranchia,Cionidae,Ciona}","genus","Ciona"]
[103732,"{Animalia,Chordata,Ascidiacea,Phlebobranchia,Cionidae,Ciona,\"Ciona intestinalis\"}","species","Ciona intestinalis"]
[103444,"{Animalia,Chordata,Ascidiacea,Phlebobranchia,Cionidae}","family","Cionidae"]
[919,"{Animalia,Annelida,Polychaeta,Terebellida,Cirratulidae}","family","Cirratulidae"]
[129243,"{Animalia,Annelida,Polychaeta,Terebellida,Cirratulidae,Cirratulus}","genus","Cirratulus"]
[129957,"{Animalia,Annelida,Polychaeta,Terebellida,Cirratulidae,Cirratulus,\"Cirratulus caudatus\"}","species","Cirratulus caudatus"]
[129959,"{Animalia,Annelida,Polychaeta,Terebellida,Cirratulidae,Cirratulus,\"Cirratulus cirratus\"}","species","Cirratulus cirratus"]
[138634,"{Animalia,Mollusca,Bivalvia,Venerida,Veneridae,Clausinella}","genus","Clausinella"]
[141909,"{Animalia,Mollusca,Bivalvia,Venerida,Veneridae,Clausinella,\"Clausinella fasciata\"}","species","Clausinella fasciata"]
[135600,"{Animalia,Arthropoda,Crustacea,Hexanauplia,Siphonostomatoida,Lernaeopodidae,Clavellistes}","genus","Clavellistes"]
[14165,"{Animalia,Annelida,Clitellata}","class","Clitellata"]
[384650,"{Animalia,Chordata,Vertebrata,Mammalia,Cetartiodactyla,Delphinidae,Clymene}","genus","Clymene"]
[130281,"{Animalia,Annelida,Polychaeta,Maldanidae,\"Clymenura borealis\"}","species","Clymenura borealis"]
[123100,"{Animalia,Echinodermata,Echinoidea,Clypeasteroida}","order","Clypeasteroida"]
[1267,"{Animalia,Cnidaria}","phylum","Cnidaria"]
[181373,"{Animalia,Mollusca,Bivalvia,Periplomatidae,\"Cochlodesma praetenue\"}","species","Cochlodesma praetenue"]
[118086,"{Animalia,Arthropoda,Hexapoda,Collembola}","class","Collembola"]
[179654,"{Animalia,Echinodermata,Echinoidea,Camarodonta,Echinometridae,Colobocentrotus}","genus","Colobocentrotus"]
[137704,"{Animalia,Mollusca,Gastropoda,Neogastropoda,Buccinidae,Colus}","genus","Colus"]
[1080,"{Animalia,Arthropoda,Crustacea,Hexanauplia,Copepoda}","subclass","Copepoda"]
[101376,"{Animalia,Arthropoda,Crustacea,Malacostraca,Amphipoda,Corophiidae}","family","Corophiidae"]
[101489,"{Animalia,Arthropoda,Crustacea,Malacostraca,Amphipoda,Corophiidae,Corophium}","genus","Corophium"]
[129984,"{Animalia,Annelida,Polychaeta,Cossuridae,\"Cossura longocirrata\"}","species","Cossura longocirrata"]
[908,"{Animalia,Annelida,Polychaeta,Cossuridae}","family","Cossuridae"]
[107007,"{Animalia,Arthropoda,Crustacea,Malacostraca,Decapoda,Crangonidae,Crangon}","genus","Crangon"]
[107551,"{Animalia,Arthropoda,Crustacea,Malacostraca,Decapoda,Crangonidae,Crangon,\"Crangon allmanni\"}","species","Crangon allmanni"]
[106782,"{Animalia,Arthropoda,Crustacea,Malacostraca,Decapoda,Crangonidae}","family","Crangonidae"]
[236898,"{Animalia,Arthropoda,Crustacea,Malacostraca,Amphipoda,Corophiidae,Crassicorophium}","genus","Crassicorophium"]
[397383,"{Animalia,Arthropoda,Crustacea,Malacostraca,Amphipoda,Corophiidae,Crassicorophium,\"Crassicorophium crassicorne\"}","species","Crassicorophium crassicorne"]
[140440,"{Animalia,Mollusca,Bivalvia,Mytilida,Mytilidae,\"Crenella decussata\"}","species","Crenella decussata"]
[1066,"{Animalia,Arthropoda,Crustacea}","subphylum","Crustacea"]
[138238,"{Animalia,Mollusca,Gastropoda,Littorinimorpha,Naticidae,Cryptonatica}","genus","Cryptonatica"]
[140525,"{Animalia,Mollusca,Gastropoda,Littorinimorpha,Naticidae,Cryptonatica,\"Cryptonatica affinis\"}","species","Cryptonatica affinis"]
[135219,"{Animalia,Cnidaria,Cubozoa}","class","Cubozoa"]
[124612,"{Animalia,Echinodermata,Holothuroidea,Dendrochirotida,Cucumariidae,\"Cucumaria frondosa\"}","species","Cucumaria frondosa"]
[123187,"{Animalia,Echinodermata,Holothuroidea,Dendrochirotida,Cucumariidae}","family","Cucumariidae"]
[1137,"{Animalia,Arthropoda,Crustacea,Malacostraca,Cumacea}","order","Cumacea"]
[1101,"{Animalia,Arthropoda,Crustacea,Hexanauplia,Copepoda,Cyclopoida}","order","Cyclopoida"]
[1130,"{Animalia,Arthropoda,Crustacea,Malacostraca,Decapoda}","order","Decapoda"]
[206456,"{Animalia,Mollusca,Bivalvia,Pectinida,Pectinidae,Decatopecten}","genus","Decatopecten"]
[215391,"{Animalia,Mollusca,Bivalvia,Pectinida,Pectinidae,Decatopecten,\"Decatopecten plica\"}","species","Decatopecten plica"]
[236537,"{Animalia,Arthropoda,Crustacea,Malacostraca,Amphipoda,Oedicerotidae,Deflexilodes}","genus","Deflexilodes"]
[423326,"{Animalia,Arthropoda,Crustacea,Malacostraca,Amphipoda,Oedicerotidae,Deflexilodes,\"Deflexilodes tesselatus\"}","species","Deflexilodes tesselatus"]
[423327,"{Animalia,Arthropoda,Crustacea,Malacostraca,Amphipoda,\"Deflexilodes tuberculatus\"}","species","Deflexilodes tuberculatus"]
[347056,"{Animalia,Arthropoda,Crustacea,Hexanauplia,Harpacticoida,Miraciidae,Delavalia}","genus","Delavalia"]
[136980,"{Animalia,Chordata,Vertebrata,Mammalia,Cetartiodactyla,Delphinidae}","family","Delphinidae"]
[123111,"{Animalia,Echinodermata,Holothuroidea,Dendrochirotida}","order","Dendrochirotida"]
[103531,"{Animalia,Chordata,Ascidiacea,Stolidobranchia,Styelidae,Dendrodoa}","genus","Dendrodoa"]
[103882,"{Animalia,Chordata,Ascidiacea,Stolidobranchia,Styelidae,Dendrodoa,\"Dendrodoa grossularia\"}","species","Dendrodoa grossularia"]
[200,"{Animalia,Mollusca,Scaphopoda,Dentaliida}","order","Dentaliida"]
[202,"{Animalia,Mollusca,Scaphopoda,Dentaliida,Dentaliidae}","family","Dentaliidae"]
[140365,"{Animalia,Mollusca,Bivalvia,Galeommatida,Lasaeidae,\"Devonia perrieri\"}","species","Devonia perrieri"]
[101498,"{Animalia,Arthropoda,Crustacea,Malacostraca,Amphipoda,Dexaminidae,Dexamine}","genus","Dexamine"]
[102135,"{Animalia,Arthropoda,Crustacea,Malacostraca,Amphipoda,Dexaminidae,Dexamine,\"Dexamine spinosa\"}","species","Dexamine spinosa"]
[101378,"{Animalia,Arthropoda,Crustacea,Malacostraca,Amphipoda,Dexaminidae}","family","Dexaminidae"]
[139557,"{Animalia,Mollusca,Gastropoda,Cephalaspidea,Diaphanidae,\"Diaphana minuta\"}","species","Diaphana minuta"]
[1750,"{Animalia,Mollusca,Gastropoda,Cephalaspidea,Diaphanidae}","family","Diaphanidae"]
[110380,"{Animalia,Arthropoda,Crustacea,Malacostraca,Cumacea,Diastylidae}","family","Diastylidae"]
[110399,"{Animalia,Arthropoda,Crustacea,Malacostraca,Cumacea,Diastylidae,Diastyloides}","genus","Diastyloides"]
[110497,"{Animalia,Arthropoda,Crustacea,Malacostraca,Cumacea,Diastylidae,Diastyloides,\"Diastyloides serratus\"}","species","Diastyloides serratus"]
[19542,"{Chromista,Myzozoa,Dinophyceae}","class","Dinophyceae"]
[129290,"{Animalia,Annelida,Polychaeta,Terebellida,Flabelligeridae,Diplocirrus}","genus","Diplocirrus"]
[130100,"{Animalia,Annelida,Polychaeta,Terebellida,Flabelligeridae,Diplocirrus,\"Diplocirrus glaucus\"}","species","Diplocirrus glaucus"]
[129611,"{Animalia,Annelida,Polychaeta,Spionida,Spionidae,Dipolydora}","genus","Dipolydora"]
[332755,"{Animalia,Annelida,Polychaeta,Spionida,Spionidae,Dipolydora,\"Dipolydora cardalia\"}","species","Dipolydora cardalia"]
[131116,"{Animalia,Annelida,Polychaeta,Spionida,Spionidae,Dipolydora,\"Dipolydora caulleryi\"}","species","Dipolydora caulleryi"]
[131117,"{Animalia,Annelida,Polychaeta,Spionida,Spionidae,Dipolydora,\"Dipolydora coeca\"}","species","Dipolydora coeca"]
[131118,"{Animalia,Annelida,Polychaeta,Spionida,Spionidae,Dipolydora,\"Dipolydora flava\"}","species","Dipolydora flava"]
[131121,"{Animalia,Annelida,Polychaeta,Spionida,Spionidae,Dipolydora,\"Dipolydora quadrilobata\"}","species","Dipolydora quadrilobata"]
[131124,"{Animalia,Annelida,Polychaeta,Spionida,Spionidae,Dipolydora,\"Dipolydora socialis\"}","species","Dipolydora socialis"]
[118088,"{Animalia,Arthropoda,Insecta,Diptera}","order","Diptera"]
[156480,"{Animalia,Mollusca,Gastropoda,Archaeogastropoda,Docoglossa}","suborder","Docoglossa"]
[129246,"{Animalia,Annelida,Polychaeta,Terebellida,Cirratulidae,Dodecaceria}","genus","Dodecaceria"]
[129967,"{Animalia,Annelida,Polychaeta,Terebellida,Cirratulidae,Dodecaceria,\"Dodecaceria concharum\"}","species","Dodecaceria concharum"]
[971,"{Animalia,Annelida,Polychaeta,Eunicida,Dorvilleidae}","family","Dorvilleidae"]
[138636,"{Animalia,Mollusca,Bivalvia,Venerida,Veneridae,Dosinia}","genus","Dosinia"]
[141911,"{Animalia,Mollusca,Bivalvia,Venerida,Veneridae,\"Dosinia exoleta\"}","species","Dosinia exoleta"]
[141912,"{Animalia,Mollusca,Bivalvia,Venerida,Veneridae,\"Dosinia lupinus\"}","species","Dosinia lupinus"]
[187,"{Animalia,Mollusca,Gastropoda,Nudibranchia,Dotidae}","family","Dotidae"]
[137916,"{Animalia,Mollusca,Gastropoda,Nudibranchia,Dotidae,Doto}","genus","Doto"]
[123132,"{Animalia,Echinodermata,Asteroidea,Spinulosida,Echinasteridae}","family","Echinasteridae"]
[123160,"{Animalia,Echinodermata,Echinoidea,Camarodonta,Echinidae}","family","Echinidae"]
[123426,"{Animalia,Echinodermata,Echinoidea,Spatangoida,Loveniidae,Echinocardium}","genus","Echinocardium"]
[124392,"{Animalia,Echinodermata,Echinoidea,Spatangoida,Loveniidae,Echinocardium,\"Echinocardium cordatum\"}","species","Echinocardium cordatum"]
[123384,"{Animalia,Echinodermata,Echinoidea,Clypeasteroida,Fibulariidae,Echinocyamus}","genus","Echinocyamus"]
[124273,"{Animalia,Echinodermata,Echinoidea,Clypeasteroida,Fibulariidae,Echinocyamus,\"Echinocyamus pusillus\"}","species","Echinocyamus pusillus"]
[1806,"{Animalia,Echinodermata}","phylum","Echinodermata"]
[123082,"{Animalia,Echinodermata,Echinoidea}","class","Echinoidea"]
[179653,"{Animalia,Echinodermata,Echinoidea,Camarodonta,Echinometridae}","family","Echinometridae"]
[148744,"{Animalia,Echinodermata,Echinozoa}","subphylum","Echinozoa"]
[123386,"{Animalia,Echinodermata,Echinoidea,Camarodonta,Echinidae,Echinus}","genus","Echinus"]
[124287,"{Animalia,Echinodermata,Echinoidea,Camarodonta,Echinidae,Echinus,\"Echinus esculentus\"}","species","Echinus esculentus"]
[1269,"{Animalia,Annelida,Polychaeta,Echiura}","order","Echiura"]
[129792,"{Animalia,Annelida,Polychaeta,Terebellida,Ampharetidae,\"Eclysippe vanelli\"}","species","Eclysippe vanelli"]
[123496,"{Animalia,Echinodermata,Holothuroidea,Dendrochirotida,Cucumariidae,Ekmania}","genus","Ekmania"]
[124681,"{Animalia,Echinodermata,Holothuroidea,Dendrochirotida,Cucumariidae,Ekmania,\"Ekmania barthii\"}","species","Ekmania barthii"]
[139959,"{Animalia,Mollusca,Gastropoda,Lepetellida,Fissurellidae,\"Emarginula fissura\"}","species","Emarginula fissura"]
[130738,"{Animalia,Annelida,Polychaeta,Phyllodocida,Polynoidae,\"Enipo kinbergi\"}","species","Enipo kinbergi"]
[138261,"{Animalia,Mollusca,Bivalvia,Nuculida,Nuculidae,Ennucula}","genus","Ennucula"]
[140584,"{Animalia,Mollusca,Bivalvia,Nuculida,Nuculidae,\"Ennucula tenuis\"}","species","Ennucula tenuis"]
[140733,"{Animalia,Mollusca,Bivalvia,Adapedonta,Pharidae,\"Ensis ensis\"}","species","Ensis ensis"]
[102807,"{Animalia,Arthropoda,Crustacea,Malacostraca,Amphipoda,Eriopisidae,\"Eriopisa elongata\"}","species","Eriopisa elongata"]
[719498,"{Animalia,Arthropoda,Crustacea,Malacostraca,Amphipoda,Eriopisidae}","family","Eriopisidae"]
[129443,"{Animalia,Annelida,Polychaeta,Phyllodocida,Phyllodocidae,Eteone}","genus","Eteone"]
[130613,"{Animalia,Annelida,Polychaeta,Phyllodocida,Phyllodocidae,Eteone,\"Eteone flava\"}","species","Eteone flava"]
[130616,"{Animalia,Annelida,Polychaeta,Phyllodocida,Phyllodocidae,\"Eteone longa\"}","species","Eteone longa"]
[106986,"{Animalia,Arthropoda,Crustacea,Malacostraca,Decapoda,Thoridae,Eualus}","genus","Eualus"]
[107506,"{Animalia,Arthropoda,Crustacea,Malacostraca,Decapoda,Thoridae,Eualus,\"Eualus occultus\"}","species","Eualus occultus"]
[107507,"{Animalia,Arthropoda,Crustacea,Malacostraca,Decapoda,Thoridae,\"Eualus pusiolus\"}","species","Eualus pusiolus"]
[129528,"{Animalia,Annelida,Polychaeta,Sabellida,Sabellidae,Euchone}","genus","Euchone"]
[130906,"{Animalia,Annelida,Polychaeta,Sabellida,Sabellidae,\"Euchone papillosa\"}","species","Euchone papillosa"]
[129347,"{Animalia,Annelida,Polychaeta,Maldanidae,Euclymene}","genus","Euclymene"]
[130294,"{Animalia,Annelida,Polychaeta,Maldanidae,Euclymene,\"Euclymene oerstedii\"}","species","Euclymene oerstedii"]
[130295,"{Animalia,Annelida,Polychaeta,Maldanidae,Euclymene,\"Euclymene palermitana\"}","species","Euclymene palermitana"]
[110535,"{Animalia,Arthropoda,Crustacea,Malacostraca,Cumacea,Leuconidae,\"Eudorella truncatula\"}","species","Eudorella truncatula"]
[110536,"{Animalia,Arthropoda,Crustacea,Malacostraca,Cumacea,Leuconidae,\"Eudorellopsis deformis\"}","species","Eudorellopsis deformis"]
[103506,"{Animalia,Chordata,Ascidiacea,Stolidobranchia,Molgulidae,Eugyra}","genus","Eugyra"]
[129445,"{Animalia,Annelida,Polychaeta,Phyllodocida,Phyllodocidae,Eulalia}","genus","Eulalia"]
[130624,"{Animalia,Annelida,Polychaeta,Phyllodocida,Phyllodocidae,Eulalia,\"Eulalia bilineata\"}","species","Eulalia bilineata"]
[130631,"{Animalia,Annelida,Polychaeta,Phyllodocida,Phyllodocidae,Eulalia,\"Eulalia mustela\"}","species","Eulalia mustela"]
[130639,"{Animalia,Annelida,Polychaeta,Phyllodocida,Phyllodocidae,Eulalia,\"Eulalia viridis\"}","species","Eulalia viridis"]
[135,"{Animalia,Mollusca,Gastropoda,Littorinimorpha,Eulimidae}","family","Eulimidae"]
[129446,"{Animalia,Annelida,Polychaeta,Phyllodocida,Phyllodocidae,Eumida}","genus","Eumida"]
[130641,"{Animalia,Annelida,Polychaeta,Phyllodocida,Phyllodocidae,\"Eumida bahusiensis\"}","species","Eumida bahusiensis"]
[130644,"{Animalia,Annelida,Polychaeta,Phyllodocida,Phyllodocidae,\"Eumida sanguinea\"}","species","Eumida sanguinea"]
[129278,"{Animalia,Annelida,Polychaeta,Eunicida,Eunicidae,Eunice}","genus","Eunice"]
[130058,"{Animalia,Annelida,Polychaeta,Eunicida,Eunicidae,Eunice,\"Eunice norvegica\"}","species","Eunice norvegica"]
[130060,"{Animalia,Annelida,Polychaeta,Eunicida,Eunicidae,Eunice,\"Eunice pennata\"}","species","Eunice pennata"]
[895,"{Animalia,Annelida,Polychaeta,Eunicida}","order","Eunicida"]
[966,"{Animalia,Annelida,Polychaeta,Eunicida,Eunicidae}","family","Eunicidae"]
[130745,"{Animalia,Annelida,Polychaeta,Phyllodocida,Polynoidae,\"Eunoe nodosa\"}","species","Eunoe nodosa"]
[1128,"{Animalia,Arthropoda,Crustacea,Malacostraca,Euphausiacea}","order","Euphausiacea"]
[129285,"{Animalia,Annelida,Polychaeta,Amphinomida,Euphrosinidae,Euphrosine}","genus","Euphrosine"]
[130081,"{Animalia,Annelida,Polychaeta,Amphinomida,Euphrosinidae,Euphrosine,\"Euphrosine borealis\"}","species","Euphrosine borealis"]
[961,"{Animalia,Annelida,Polychaeta,Amphinomida,Euphrosinidae}","family","Euphrosinidae"]
[131490,"{Animalia,Annelida,Polychaeta,Terebellida,Terebellidae,\"Eupolymnia nesidensis\"}","species","Eupolymnia nesidensis"]
[138239,"{Animalia,Mollusca,Gastropoda,Littorinimorpha,Naticidae,Euspira}","genus","Euspira"]
[140528,"{Animalia,Mollusca,Gastropoda,Littorinimorpha,Naticidae,Euspira,\"Euspira catena\"}","species","Euspira catena"]
[140533,"{Animalia,Mollusca,Gastropoda,Littorinimorpha,Naticidae,Euspira,\"Euspira montagui\"}","species","Euspira montagui"]
[140536,"{Animalia,Mollusca,Gastropoda,Littorinimorpha,Naticidae,\"Euspira pallida\"}","species","Euspira pallida"]
[131290,"{Animalia,Annelida,Polychaeta,Phyllodocida,Syllidae,\"Eusyllis blomstrandi\"}","species","Eusyllis blomstrandi"]
[129654,"{Animalia,Annelida,Polychaeta,Phyllodocida,Syllidae,Exogone}","genus","Exogone"]
[327985,"{Animalia,Annelida,Polychaeta,Phyllodocida,Syllidae,\"Exogone naidina\"}","species","Exogone naidina"]
[333456,"{Animalia,Annelida,Polychaeta,Phyllodocida,Syllidae,\"Exogone verugera\"}","species","Exogone verugera"]
[146907,"{Animalia,Mollusca,Bivalvia,Cardiida,Tellinidae,\"Fabulina fabula\"}","species","Fabulina fabula"]
[123159,"{Animalia,Echinodermata,Echinoidea,Clypeasteroida,Fibulariidae}","family","Fibulariidae"]
[111,"{Animalia,Mollusca,Gastropoda,Lepetellida,Fissurellidae}","family","Fissurellidae"]
[976,"{Animalia,Annelida,Polychaeta,Terebellida,Flabelligeridae}","family","Flabelligeridae"]
[123086,"{Animalia,Echinodermata,Asteroidea,Forcipulatida}","order","Forcipulatida"]
[125469,"{Animalia,Chordata,Actinopterygii,Gadiformes,Gadidae}","family","Gadidae"]
[10313,"{Animalia,Chordata,Actinopterygii,Gadiformes}","order","Gadiformes"]
[106834,"{Animalia,Arthropoda,Crustacea,Malacostraca,Decapoda,Galatheidae,Galathea}","genus","Galathea"]
[107150,"{Animalia,Arthropoda,Crustacea,Malacostraca,Decapoda,Galatheidae,Galathea,\"Galathea intermedia\"}","species","Galathea intermedia"]
[107152,"{Animalia,Arthropoda,Crustacea,Malacostraca,Decapoda,Galatheidae,Galathea,\"Galathea nexa\"}","species","Galathea nexa"]
[107155,"{Animalia,Arthropoda,Crustacea,Malacostraca,Decapoda,Galatheidae,Galathea,\"Galathea strigosa\"}","species","Galathea strigosa"]
[106733,"{Animalia,Arthropoda,Crustacea,Malacostraca,Decapoda,Galatheidae}","family","Galatheidae"]
[146950,"{Animalia,Annelida,Polychaeta,Sabellida,Oweniidae,\"Galathowenia oculata\"}","species","Galathowenia oculata"]
[1326015,"{Animalia,Mollusca,Bivalvia,Galeommatida}","order","Galeommatida"]
[101382,"{Animalia,Arthropoda,Crustacea,Malacostraca,Amphipoda,Gammarellidae}","family","Gammarellidae"]
[101533,"{Animalia,Arthropoda,Crustacea,Malacostraca,Amphipoda,Gammarellidae,Gammarellus}","genus","Gammarellus"]
[102251,"{Animalia,Arthropoda,Crustacea,Malacostraca,Amphipoda,Gammarellidae,Gammarellus,\"Gammarellus angulosus\"}","species","Gammarellus angulosus"]
[101383,"{Animalia,Arthropoda,Crustacea,Malacostraca,Amphipoda,Gammaridae}","family","Gammaridae"]
[101537,"{Animalia,Arthropoda,Crustacea,Malacostraca,Amphipoda,Gammaridae,Gammarus}","genus","Gammarus"]
[102281,"{Animalia,Arthropoda,Crustacea,Malacostraca,Amphipoda,Gammaridae,\"Gammarus locusta\"}","species","Gammarus locusta"]
[138388,"{Animalia,Mollusca,Bivalvia,Cardiida,Psammobiidae,Gari}","genus","Gari"]
[140868,"{Animalia,Mollusca,Bivalvia,Cardiida,Psammobiidae,Gari,\"Gari costulata\"}","species","Gari costulata"]
[140870,"{Animalia,Mollusca,Bivalvia,Cardiida,Psammobiidae,Gari,\"Gari fervensis\"}","species","Gari fervensis"]
[140873,"{Animalia,Mollusca,Bivalvia,Cardiida,Psammobiidae,Gari,\"Gari tellinella\"}","species","Gari tellinella"]
[101,"{Animalia,Mollusca,Gastropoda}","class","Gastropoda"]
[129488,"{Animalia,Annelida,Polychaeta,Phyllodocida,Polynoidae,Gattyana}","genus","Gattyana"]
[130749,"{Animalia,Annelida,Polychaeta,Phyllodocida,Polynoidae,\"Gattyana cirrhosa\"}","species","Gattyana cirrhosa"]
[141799,"{Animalia,Mollusca,Gastropoda,Trochida,Trochidae,\"Gibbula tumida\"}","species","Gibbula tumida"]
[129296,"{Animalia,Annelida,Polychaeta,Phyllodocida,Glyceridae,Glycera}","genus","Glycera"]
[130118,"{Animalia,Annelida,Polychaeta,Phyllodocida,Glyceridae,\"Glycera capitata\"}","species","Glycera capitata"]
[130123,"{Animalia,Annelida,Polychaeta,Phyllodocida,Glyceridae,\"Glycera lapidum\"}","species","Glycera lapidum"]
[952,"{Animalia,Annelida,Polychaeta,Phyllodocida,Glyceridae}","family","Glyceridae"]
[118437,"{Animalia,Arthropoda,Crustacea,Malacostraca,Isopoda,Gnathiidae,Gnathia}","genus","Gnathia"]
[118990,"{Animalia,Arthropoda,Crustacea,Malacostraca,Isopoda,Gnathiidae,Gnathia,\"Gnathia dentata\"}","species","Gnathia dentata"]
[118278,"{Animalia,Arthropoda,Crustacea,Malacostraca,Isopoda,Gnathiidae}","family","Gnathiidae"]
[1828,"{Animalia,Chordata,Vertebrata,Gnathostomata}","superclass","Gnathostomata"]
[136021,"{Animalia,Sipuncula,Sipunculidea,Golfingiida,Golfingiidae,Golfingia}","genus","Golfingia"]
[136050,"{Animalia,Sipuncula,Sipunculidea,Golfingiida,Golfingiidae,\"Golfingia (Golfingia) vulgaris\"}","species","Golfingia (Golfingia) vulgaris"]
[410724,"{Animalia,Annelida,Polychaeta,Phyllodocida,Goniadidae,\"Golfingia (Golfingia) vulgaris vulgaris\"}","subspecies","Golfingia (Golfingia) vulgaris vulgaris"]
[424332,"{Animalia,Sipuncula,Sipunculidea,Golfingiida,Golfingiidae,Golfingia,\"Golfingia vulgaris\"}","species","Golfingia vulgaris"]
[1385,"{Animalia,Sipuncula,Sipunculidea,Golfingiida}","order","Golfingiida"]
[2032,"{Animalia,Sipuncula,Sipunculidea,Golfingiida,Golfingiidae}","family","Golfingiidae"]
[130140,"{Animalia,Annelida,Polychaeta,Phyllodocida,Goniadidae,\"Goniada maculata\"}","species","Goniada maculata"]
[130143,"{Animalia,Annelida,Polychaeta,Phyllodocida,Goniadidae,\"Goniadella bobrezkii\"}","species","Goniadella bobrezkii"]
[953,"{Animalia,Annelida,Polychaeta,Phyllodocida,Goniadidae}","family","Goniadidae"]
[109391,"{Chromista,Myzozoa,Dinophyceae,Gonyaulacales}","order","Gonyaulacales"]
[1263710,"{Animalia,Cephalorhyncha,Priapulida,Halicryptomorpha,Halicryptidae}","family","Halicryptidae"]
[1263791,"{Animalia,Cephalorhyncha,Priapulida,Halicryptomorpha}","order","Halicryptomorpha"]
[101156,"{Animalia,Cephalorhyncha,Priapulida,Halicryptomorpha,Halicryptidae,\"Halicryptus spinulosus\"}","species","Halicryptus spinulosus"]
[2118,"{Animalia,Annelida,Clitellata,Haplotaxida}","order","Haplotaxida"]
[129491,"{Animalia,Annelida,Polychaeta,Phyllodocida,Polynoidae,Harmothoe}","genus","Harmothoe"]
[130762,"{Animalia,Annelida,Polychaeta,Phyllodocida,Polynoidae,Harmothoe,\"Harmothoe extenuata\"}","species","Harmothoe extenuata"]
[130763,"{Animalia,Annelida,Polychaeta,Phyllodocida,Polynoidae,Harmothoe,\"Harmothoe fragilis\"}","species","Harmothoe fragilis"]
[571832,"{Animalia,Annelida,Polychaeta,Phyllodocida,Polynoidae,Harmothoe,\"Harmothoe glabra\"}","species","Harmothoe glabra"]
[130769,"{Animalia,Annelida,Polychaeta,Phyllodocida,Polynoidae,Harmothoe,\"Harmothoe imbricata\"}","species","Harmothoe imbricata"]
[130770,"{Animalia,Annelida,Polychaeta,Phyllodocida,Polynoidae,Harmothoe,\"Harmothoe impar\"}","species","Harmothoe impar"]
[1102,"{Animalia,Arthropoda,Crustacea,Hexanauplia,Harpacticoida}","order","Harpacticoida"]
[101716,"{Animalia,Arthropoda,Crustacea,Malacostraca,Amphipoda,Phoxocephalidae,Harpinia}","genus","Harpinia"]
[102960,"{Animalia,Arthropoda,Crustacea,Malacostraca,Amphipoda,Phoxocephalidae,Harpinia,\"Harpinia antennaria\"}","species","Harpinia antennaria"]
[123276,"{Animalia,Echinodermata,Asteroidea,Spinulosida,Echinasteridae,Henricia}","genus","Henricia"]
[720758,"{Animalia,Mollusca,Gastropoda,Cephalaspidea,Philinidae,Hermania}","genus","Hermania"]
[867492,"{Animalia,Mollusca,Gastropoda,Cephalaspidea,Philinidae,Hermania,\"Hermania scabra\"}","species","Hermania scabra"]
[946,"{Animalia,Annelida,Polychaeta,Phyllodocida,Hesionidae}","family","Hesionidae"]
[129214,"{Animalia,Annelida,Polychaeta,Capitellidae,Heteromastus}","genus","Heteromastus"]
[129884,"{Animalia,Annelida,Polychaeta,Capitellidae,\"Heteromastus filiformis\"}","species","Heteromastus filiformis"]
[122305,"{Animalia,Nemertea,Pilidiophora,Heteronemertea}","order","Heteronemertea"]
[1340,"{Animalia,Cnidaria,Anthozoa,Hexacorallia}","subclass","Hexacorallia"]
[889925,"{Animalia,Arthropoda,Crustacea,Hexanauplia}","class","Hexanauplia"]
[1278,"{Animalia,Arthropoda,Hexapoda}","subphylum","Hexapoda"]
[140103,"{Animalia,Mollusca,Bivalvia,Adapedonta,Hiatellidae,\"Hiatella arctica\"}","species","Hiatella arctica"]
[251,"{Animalia,Mollusca,Bivalvia,Adapedonta,Hiatellidae}","family","Hiatellidae"]
[391641,"{Animalia,Annelida,Polychaeta,Eunicida,Lumbrineridae,Hilbigneris}","genus","Hilbigneris"]
[607402,"{Animalia,Annelida,Polychaeta,Eunicida,Lumbrineridae,Hilbigneris,\"Hilbigneris gracilis\"}","species","Hilbigneris gracilis"]
[2041,"{Animalia,Annelida,Clitellata,Hirudinea}","subclass","Hirudinea"]
[123083,"{Animalia,Echinodermata,Holothuroidea}","class","Holothuroidea"]
[106903,"{Animalia,Arthropoda,Crustacea,Malacostraca,Decapoda,Oregoniidae,Hyas}","genus","Hyas"]
[107322,"{Animalia,Arthropoda,Crustacea,Malacostraca,Decapoda,Oregoniidae,\"Hyas araneus\"}","species","Hyas araneus"]
[107323,"{Animalia,Arthropoda,Crustacea,Malacostraca,Decapoda,Oregoniidae,\"Hyas coarctatus\"}","species","Hyas coarctatus"]
[117644,"{Animalia,Cnidaria,Hydrozoa,Anthoathecata,Hydractiniidae,\"Hydractinia echinata\"}","species","Hydractinia echinata"]
[1601,"{Animalia,Cnidaria,Hydrozoa,Anthoathecata,Hydractiniidae}","family","Hydractiniidae"]
[138081,"{Animalia,Mollusca,Gastropoda,Littorinimorpha,Hydrobiidae,Hydrobia}","genus","Hydrobia"]
[120,"{Animalia,Mollusca,Gastropoda,Littorinimorpha,Hydrobiidae}","family","Hydrobiidae"]
[129566,"{Animalia,Annelida,Polychaeta,Sabellida,Serpulidae,Hydroides}","genus","Hydroides"]
[131009,"{Animalia,Annelida,Polychaeta,Sabellida,Serpulidae,\"Hydroides norvegica\"}","species","Hydroides norvegica"]
[19494,"{Animalia,Cnidaria,Hydrozoa,Hydroidolina}","subclass","Hydroidolina"]
[1337,"{Animalia,Cnidaria,Hydrozoa}","class","Hydrozoa"]
[152250,"{Animalia,Annelida,Polychaeta,Phyllodocida,Phyllodocidae,\"Hypereteone foliosa\"}","species","Hypereteone foliosa"]
[118454,"{Animalia,Arthropoda,Crustacea,Malacostraca,Isopoda,Idoteidae,Idotea}","genus","Idotea"]
[119043,"{Animalia,Arthropoda,Crustacea,Malacostraca,Isopoda,Idoteidae,Idotea,\"Idotea emarginata\"}","species","Idotea emarginata"]
[119047,"{Animalia,Arthropoda,Crustacea,Malacostraca,Isopoda,Idoteidae,Idotea,\"Idotea metallica\"}","species","Idotea metallica"]
[119050,"{Animalia,Arthropoda,Crustacea,Malacostraca,Isopoda,Idoteidae,\"Idotea pelagica\"}","species","Idotea pelagica"]
[118283,"{Animalia,Arthropoda,Crustacea,Malacostraca,Isopoda,Idoteidae}","family","Idoteidae"]
[1307,"{Animalia,Arthropoda,Insecta}","class","Insecta"]
[138110,"{Animalia,Mollusca,Gastropoda,Lepetidae,Iothia}","genus","Iothia"]
[140186,"{Animalia,Mollusca,Gastropoda,Lepetidae,Iothia,\"Iothia fulva\"}","species","Iothia fulva"]
[101554,"{Animalia,Arthropoda,Crustacea,Malacostraca,Amphipoda,Iphimediidae,Iphimedia}","genus","Iphimedia"]
[102347,"{Animalia,Arthropoda,Crustacea,Malacostraca,Amphipoda,Iphimediidae,\"Iphimedia obesa\"}","species","Iphimedia obesa"]
[101387,"{Animalia,Arthropoda,Crustacea,Malacostraca,Amphipoda,Iphimediidae}","family","Iphimediidae"]
[101389,"{Animalia,Arthropoda,Crustacea,Malacostraca,Amphipoda,Ischyroceridae}","family","Ischyroceridae"]
[491706,"{Animalia,Arthropoda,Crustacea,Malacostraca,Amphipoda,Ischyroceridae,\"Ischyrocerus minutus\"}","species","Ischyrocerus minutus"]
[1131,"{Animalia,Arthropoda,Crustacea,Malacostraca,Isopoda}","order","Isopoda"]
[118364,"{Animalia,Arthropoda,Crustacea,Malacostraca,Isopoda,Janiridae,Jaera}","genus","Jaera"]
[204427,"{Animalia,Arthropoda,Crustacea,Malacostraca,Amphipoda,Aoridae,Janice}","genus","Janice"]
[118732,"{Animalia,Arthropoda,Crustacea,Malacostraca,Isopoda,Janiridae,\"Janira maculosa\"}","species","Janira maculosa"]
[118258,"{Animalia,Arthropoda,Crustacea,Malacostraca,Isopoda,Janiridae}","family","Janiridae"]
[101571,"{Animalia,Arthropoda,Crustacea,Malacostraca,Amphipoda,Ischyroceridae,Jassa}","genus","Jassa"]
[102431,"{Animalia,Arthropoda,Crustacea,Malacostraca,Amphipoda,Ischyroceridae,Jassa,\"Jassa falcata\"}","species","Jassa falcata"]
[102437,"{Animalia,Arthropoda,Crustacea,Malacostraca,Amphipoda,Ischyroceridae,Jassa,\"Jassa pusilla\"}","species","Jassa pusilla"]
[769731,"{Animalia,Arthropoda,Ostracoda,Juvenix}","genus","Juvenix"]
[130164,"{Animalia,Annelida,Polychaeta,Phyllodocida,Hesionidae,\"Kefersteinia cirrhata\"}","species","Kefersteinia cirrhata"]
[138095,"{Animalia,Mollusca,Bivalvia,Galeommatida,Lasaeidae,Kellia}","genus","Kellia"]
[345281,"{Animalia,Mollusca,Bivalvia,Galeommatida,Lasaeidae,\"Kurtiella bidentata\"}","species","Kurtiella bidentata"]
[123448,"{Animalia,Echinodermata,Holothuroidea,Labidoplax}","genus","Labidoplax"]
[124455,"{Animalia,Echinodermata,Holothuroidea,Apodida,Synaptidae,\"Labidoplax buskii\"}","species","Labidoplax buskii"]
[138099,"{Animalia,Mollusca,Gastropoda,Littorinimorpha,Littorinidae,Lacuna}","genus","Lacuna"]
[140168,"{Animalia,Mollusca,Gastropoda,Littorinimorpha,Littorinidae,\"Lacuna pallidula\"}","species","Lacuna pallidula"]
[140170,"{Animalia,Mollusca,Gastropoda,Littorinimorpha,Littorinidae,\"Lacuna vincta\"}","species","Lacuna vincta"]
[152367,"{Animalia,Annelida,Polychaeta,Terebellida,Pectinariidae,\"Lagis koreni\"}","species","Lagis koreni"]
[1033423,"{Animalia,Annelida,Polychaeta,Terebellida,Flabelligeridae,\"Lamispina falcata\"}","species","Lamispina falcata"]
[131494,"{Animalia,Annelida,Polychaeta,Terebellida,Terebellidae,\"Lanassa venusta\"}","species","Lanassa venusta"]
[131495,"{Animalia,Annelida,Polychaeta,Terebellida,Terebellidae,\"Lanice conchilega\"}","species","Lanice conchilega"]
[129613,"{Animalia,Annelida,Polychaeta,Spionida,Spionidae,Laonice}","genus","Laonice"]
[131127,"{Animalia,Annelida,Polychaeta,Spionida,Spionidae,Laonice,\"Laonice bahusiensis\"}","species","Laonice bahusiensis"]
[328642,"{Animalia,Annelida,Polychaeta,Spionida,Spionidae,Laonice,\"Laonice norgensis\"}","species","Laonice norgensis"]
[328643,"{Animalia,Annelida,Polychaeta,Spionida,Spionidae,Laonice,\"Laonice nuchala\"}","species","Laonice nuchala"]
[598794,"{Animalia,Annelida,Polychaeta,Spionida,Spionidae,Laonice,\"Laonice parvabranchiata\"}","species","Laonice parvabranchiata"]
[129534,"{Animalia,Annelida,Polychaeta,Sabellida,Sabellidae,Laonome}","genus","Laonome"]
[254745,"{Animalia,Annelida,Polychaeta,Sabellida,Sabellidae,Laonome,\"Laonome kroyeri\"}","species","Laonome kroyeri"]
[222,"{Animalia,Mollusca,Bivalvia,Galeommatida,Lasaeidae}","family","Lasaeidae"]
[146991,"{Animalia,Annelida,Polychaeta,Maldanidae,Leiochone}","genus","Leiochone"]
[106048,"{Animalia,Arthropoda,Crustacea,Hexanauplia,Lepadiformes,Lepadidae}","family","Lepadidae"]
[534761,"{Animalia,Arthropoda,Crustacea,Hexanauplia,Lepadiformes}","order","Lepadiformes"]
[106087,"{Animalia,Arthropoda,Crustacea,Hexanauplia,Lepadiformes,Lepadidae,Lepas}","genus","Lepas"]
[1052447,"{Animalia,Mollusca,Gastropoda,Lepetellida}","order","Lepetellida"]
[1733,"{Animalia,Mollusca,Gastropoda,Lepetidae}","family","Lepetidae"]
[130801,"{Animalia,Annelida,Polychaeta,Phyllodocida,Polynoidae,\"Lepidonotus squamatus\"}","species","Lepidonotus squamatus"]
[58,"{Animalia,Mollusca,Polyplacophora,Lepidopleurida}","order","Lepidopleurida"]
[101470,"{Animalia,Arthropoda,Crustacea,Malacostraca,Amphipoda,Corophiidae,Leptocheirus}","genus","Leptocheirus"]
[138117,"{Animalia,Mollusca,Polyplacophora,Lepidopleurida,Leptochitonidae,Leptochiton}","genus","Leptochiton"]
[140199,"{Animalia,Mollusca,Polyplacophora,Lepidopleurida,Leptochitonidae,Leptochiton,\"Leptochiton asellus\"}","species","Leptochiton asellus"]
[59,"{Animalia,Mollusca,Polyplacophora,Lepidopleurida,Leptochitonidae}","family","Leptochitonidae"]
[120052,"{Animalia,Arthropoda,Crustacea,Malacostraca,Mysida,Mysidae,\"Leptomysis gracilis\"}","species","Leptomysis gracilis"]
[146996,"{Animalia,Arthropoda,Crustacea,Malacostraca,Leptostraca}","order","Leptostraca"]
[123449,"{Animalia,Echinodermata,Holothuroidea,Apodida,Synaptidae,Leptosynapta}","genus","Leptosynapta"]
[124465,"{Animalia,Echinodermata,Holothuroidea,Apodida,Synaptidae,\"Leptosynapta inhaerens\"}","species","Leptosynapta inhaerens"]
[124467,"{Animalia,Echinodermata,Holothuroidea,Apodida,Synaptidae,\"Leptosynapta minuta\"}","species","Leptosynapta minuta"]
[1317502,"{Animalia,Echinodermata,Holothuroidea,Apodida,Synaptidae,Leptosynaptinae}","subfamily","Leptosynaptinae"]
[135525,"{Animalia,Arthropoda,Crustacea,Hexanauplia,Siphonostomatoida,Lernaeopodidae}","family","Lernaeopodidae"]
[110382,"{Animalia,Arthropoda,Crustacea,Malacostraca,Cumacea,Leuconidae}","family","Leuconidae"]
[130578,"{Animalia,Annelida,Polychaeta,Paraonidae,\"Levinsenia gracilis\"}","species","Levinsenia gracilis"]
[126117,"{Animalia,Chordata,Actinopterygii,Pleuronectiformes,Pleuronectidae,Limanda}","genus","Limanda"]
[127139,"{Animalia,Chordata,Actinopterygii,Pleuronectiformes,Pleuronectidae,Limanda,\"Limanda limanda\"}","species","Limanda limanda"]
[138127,"{Animalia,Mollusca,Bivalvia,\"Limida \",Limidae,Limatula}","genus","Limatula"]
[140242,"{Animalia,Mollusca,Bivalvia,\"Limida \",Limidae,\"Limatula subauriculata\"}","species","Limatula subauriculata"]
[880017,"{Animalia,Mollusca,Bivalvia,Cardiida,Tellinidae,\"Limecola balthica\"}","species","Limecola balthica"]
[1777,"{Animalia,Mollusca,Bivalvia,\"Limida \"}","order","Limida "]
[1778,"{Animalia,Mollusca,Bivalvia,\"Limida \",Limidae}","family","Limidae"]
[122314,"{Animalia,Nemertea,Pilidiophora,Heteronemertea,Lineidae}","family","Lineidae"]
[106925,"{Animalia,Arthropoda,Crustacea,Malacostraca,Decapoda,Polybiidae,Liocarcinus}","genus","Liocarcinus"]
[107387,"{Animalia,Arthropoda,Crustacea,Malacostraca,Decapoda,Polybiidae,Liocarcinus,\"Liocarcinus depurator\"}","species","Liocarcinus depurator"]
[107388,"{Animalia,Arthropoda,Crustacea,Malacostraca,Decapoda,Polybiidae,\"Liocarcinus holsatus\"}","species","Liocarcinus holsatus"]
[107393,"{Animalia,Arthropoda,Crustacea,Malacostraca,Decapoda,\"Liocarcinus pusillus\"}","species","Liocarcinus pusillus"]
[333843,"{Animalia,Annelida,Polychaeta,Scalibregmatidae,\"Lipobranchius jeffreysii\"}","species","Lipobranchius jeffreysii"]
[138135,"{Animalia,Mollusca,Gastropoda,Littorinimorpha,Littorinidae,Littorina}","genus","Littorina"]
[119,"{Animalia,Mollusca,Gastropoda,Littorinimorpha,Littorinidae}","family","Littorinidae"]
[382213,"{Animalia,Mollusca,Gastropoda,Littorinimorpha}","order","Littorinimorpha"]
[7173,"{Animalia,Mollusca,Gastropoda,Lottiidae}","family","Lottiidae"]
[123175,"{Animalia,Echinodermata,Echinoidea,Spatangoida,Loveniidae}","family","Loveniidae"]
[489106,"{Animalia,Mollusca,Bivalvia,Lucinida}","order","Lucinida"]
[218,"{Animalia,Mollusca,Bivalvia,Lucinida,Lucinidae}","family","Lucinidae"]
[140283,"{Animalia,Mollusca,Bivalvia,Lucinida,Lucinidae,\"Lucinoma borealis\"}","species","Lucinoma borealis"]
[129350,"{Animalia,Annelida,Polychaeta,Maldanidae,Lumbriclymene}","genus","Lumbriclymene"]
[967,"{Animalia,Annelida,Polychaeta,Eunicida,Lumbrineridae}","family","Lumbrineridae"]
[129337,"{Animalia,Annelida,Polychaeta,Eunicida,Lumbrineridae,Lumbrineris}","genus","Lumbrineris"]
[153850,"{Animalia,Mollusca,Gastropoda,Littorinimorpha,Naticidae,\"Lunatia pallida\"}","species","Lunatia pallida"]
[1055690,"{Animalia,Arthropoda,Crustacea,Malacostraca,Amphipoda,Lysianassida}","infraorder","Lysianassida"]
[101395,"{Animalia,Arthropoda,Crustacea,Malacostraca,Amphipoda,Lysianassidae}","family","Lysianassidae"]
[131500,"{Animalia,Annelida,Polychaeta,Terebellida,Terebellidae,\"Lysilla loveni\"}","species","Lysilla loveni"]
[138531,"{Animalia,Mollusca,Bivalvia,Cardiida,Tellinidae,Macoma}","genus","Macoma"]
[141580,"{Animalia,Mollusca,Bivalvia,Cardiida,Tellinidae,\"Macoma calcarea\"}","species","Macoma calcarea"]
[230,"{Animalia,Mollusca,Bivalvia,Venerida,Mactridae}","family","Mactridae"]
[106760,"{Animalia,Arthropoda,Crustacea,Malacostraca,Decapoda,Majidae}","family","Majidae"]
[129614,"{Animalia,Annelida,Polychaeta,Spionida,Spionidae,Malacoceros}","genus","Malacoceros"]
[131131,"{Animalia,Annelida,Polychaeta,Spionida,Spionidae,Malacoceros,\"Malacoceros fuliginosus\"}","species","Malacoceros fuliginosus"]
[156232,"{Animalia,Annelida,Polychaeta,Spionida,Spionidae,Malacoceros,\"Malacoceros jirkovi\"}","species","Malacoceros jirkovi"]
[131134,"{Animalia,Annelida,Polychaeta,Spionida,Spionidae,Malacoceros,\"Malacoceros vulgaris\"}","species","Malacoceros vulgaris"]
[1071,"{Animalia,Arthropoda,Crustacea,Malacostraca}","class","Malacostraca"]
[923,"{Animalia,Annelida,Polychaeta,Maldanidae}","family","Maldanidae"]
[147006,"{Animalia,Annelida,Polychaeta,Phyllodocida,Polynoidae,Malmgrenia}","genus","Malmgrenia"]
[152276,"{Animalia,Annelida,Polychaeta,Phyllodocida,Polynoidae,Malmgrenia,\"Malmgrenia arenicolae\"}","species","Malmgrenia arenicolae"]
[155194,"{Animalia,Annelida,Polychaeta,Phyllodocida,Polynoidae,\"Malmgrenia lunulata\"}","species","Malmgrenia lunulata"]
[147007,"{Animalia,Annelida,Polychaeta,Phyllodocida,Polynoidae,Malmgrenia,\"Malmgrenia mcintoshi\"}","species","Malmgrenia mcintoshi"]
[129499,"{Animalia,Annelida,Polychaeta,Phyllodocida,Polynoidae,Malmgreniella}","genus","Malmgreniella"]
[1837,"{Animalia,Chordata,Vertebrata,Mammalia}","class","Mammalia"]
[153853,"{Animalia,Mollusca,Gastropoda,Neogastropoda,Mangeliidae}","family","Mangeliidae"]
[138592,"{Animalia,Mollusca,Gastropoda,Trochida,Margaritidae,Margarites}","genus","Margarites"]
[141821,"{Animalia,Mollusca,Gastropoda,Trochida,Margaritidae,Margarites,\"Margarites helicinus\"}","species","Margarites helicinus"]
[714634,"{Animalia,Mollusca,Gastropoda,Trochida,Margaritidae}","family","Margaritidae"]
[129892,"{Animalia,Annelida,Polychaeta,Capitellidae,\"Mediomastus fragilis\"}","species","Mediomastus fragilis"]
[137978,"{Animalia,Mollusca,Gastropoda,Littorinimorpha,Eulimidae,Melanella}","genus","Melanella"]
[139849,"{Animalia,Mollusca,Gastropoda,Littorinimorpha,Eulimidae,Melanella,\"Melanella lubrica\"}","species","Melanella lubrica"]
[126437,"{Animalia,Chordata,Actinopterygii,Gadiformes,Gadidae,\"Melanogrammus aeglefinus\"}","species","Melanogrammus aeglefinus"]
[129168,"{Animalia,Annelida,Polychaeta,Terebellida,Ampharetidae,Melinna}","genus","Melinna"]
[103116,"{Animalia,Arthropoda,Crustacea,Malacostraca,Amphipoda,Stenothoidae,\"Metopa alderi\"}","species","Metopa alderi"]
[129313,"{Animalia,Annelida,Polychaeta,Phyllodocida,Hesionidae,Microphthalmus}","genus","Microphthalmus"]
[130168,"{Animalia,Annelida,Polychaeta,Phyllodocida,Hesionidae,Microphthalmus,\"Microphthalmus aberrans\"}","species","Microphthalmus aberrans"]
[130174,"{Animalia,Annelida,Polychaeta,Phyllodocida,Hesionidae,\"Microphthalmus sczelkowii\"}","species","Microphthalmus sczelkowii"]
[115163,"{Animalia,Arthropoda,Crustacea,Hexanauplia,Harpacticoida,Miraciidae}","family","Miraciidae"]
[140461,"{Animalia,Mollusca,Bivalvia,Mytilida,Mytilidae,\"Modiolula phaseolina\"}","species","Modiolula phaseolina"]
[140467,"{Animalia,Mollusca,Bivalvia,Mytilida,Mytilidae,\"Modiolus modiolus\"}","species","Modiolus modiolus"]
[147022,"{Animalia,Mollusca,Bivalvia,Cardiida,Tellinidae,\"Moerella pygmaea\"}","species","Moerella pygmaea"]
[103509,"{Animalia,Chordata,Ascidiacea,Stolidobranchia,Molgulidae,Molgula}","genus","Molgula"]
[103448,"{Animalia,Chordata,Ascidiacea,Stolidobranchia,Molgulidae}","family","Molgulidae"]
[51,"{Animalia,Mollusca}","phylum","Mollusca"]
[101694,"{Animalia,Arthropoda,Crustacea,Malacostraca,Amphipoda,Oedicerotidae,Monoculodes}","genus","Monoculodes"]
[138185,"{Animalia,Mollusca,Bivalvia,Galeommatida,Lasaeidae,Montacuta}","genus","Montacuta"]
[140377,"{Animalia,Mollusca,Bivalvia,Galeommatida,Lasaeidae,Montacuta,\"Montacuta substriata\"}","species","Montacuta substriata"]
[148,"{Animalia,Mollusca,Gastropoda,Neogastropoda,Muricidae}","family","Muricidae"]
[138225,"{Animalia,Mollusca,Bivalvia,Mytilida,Mytilidae,Musculus}","genus","Musculus"]
[140474,"{Animalia,Mollusca,Bivalvia,Mytilida,Mytilidae,\"Musculus niger\"}","species","Musculus niger"]
[138211,"{Animalia,Mollusca,Bivalvia,Myida,Myidae,Mya}","genus","Mya"]
[140430,"{Animalia,Mollusca,Bivalvia,Myida,Myidae,Mya,\"Mya arenaria\"}","species","Mya arenaria"]
[140431,"{Animalia,Mollusca,Bivalvia,Myida,Myidae,Mya,\"Mya truncata\"}","species","Mya truncata"]
[245,"{Animalia,Mollusca,Bivalvia,Myida}","order","Myida"]
[247,"{Animalia,Mollusca,Bivalvia,Myida,Myidae}","family","Myidae"]
[2104,"{Animalia,Arthropoda,Ostracoda,Myodocopida}","order","Myodocopida"]
[129659,"{Animalia,Annelida,Polychaeta,Phyllodocida,Syllidae,Myrianida}","genus","Myrianida"]
[238194,"{Animalia,Annelida,Polychaeta,Phyllodocida,Syllidae,\"Myrianida edwarsi\"}","species","Myrianida edwarsi"]
[129426,"{Animalia,Annelida,Polychaeta,Sabellida,Oweniidae,Myriochele}","genus","Myriochele"]
[130540,"{Animalia,Annelida,Polychaeta,Sabellida,Oweniidae,\"Myriochele danielsseni\"}","species","Myriochele danielsseni"]
[140380,"{Animalia,Mollusca,Bivalvia,Galeommatida,Lasaeidae,\"Mysella bidentata\"}","species","Mysella bidentata"]
[149668,"{Animalia,Arthropoda,Crustacea,Malacostraca,Mysida}","order","Mysida"]
[2824,"{Animalia,Arthropoda,Crustacea,Malacostraca,Mysidacea}","order","Mysidacea"]
[119822,"{Animalia,Arthropoda,Crustacea,Malacostraca,Mysida,Mysidae}","family","Mysidae"]
[129450,"{Animalia,Annelida,Polychaeta,Phyllodocida,Phyllodocidae,Mystides}","genus","Mystides"]
[210,"{Animalia,Mollusca,Bivalvia,Mytilida}","order","Mytilida"]
[211,"{Animalia,Mollusca,Bivalvia,Mytilida,Mytilidae}","family","Mytilidae"]
[138228,"{Animalia,Mollusca,Bivalvia,Mytilida,Mytilidae,Mytilus}","genus","Mytilus"]
[140480,"{Animalia,Mollusca,Bivalvia,Mytilida,Mytilidae,Mytilus,\"Mytilus edulis\"}","species","Mytilus edulis"]
[146271,"{Animalia,Cnidaria,Myxozoa}","class","Myxozoa"]
[450030,"{Chromista,Myzozoa}","phylum","Myzozoa"]
[2039,"{Animalia,Annelida,Clitellata,Haplotaxida,Naididae}","family","Naididae"]
[129419,"{Animalia,Annelida,Polychaeta,Orbiniidae,Naineris}","genus","Naineris"]
[130517,"{Animalia,Annelida,Polychaeta,Orbiniidae,Naineris,\"Naineris quadricuspida\"}","species","Naineris quadricuspida"]
[151,"{Animalia,Mollusca,Gastropoda,Neogastropoda,Nassariidae}","family","Nassariidae"]
[181484,"{Animalia,Arthropoda,Crustacea,Malacostraca,Decapoda,Natantia}","suborder","Natantia"]
[145,"{Animalia,Mollusca,Gastropoda,Littorinimorpha,Naticidae}","family","Naticidae"]
[129378,"{Animalia,Annelida,Polychaeta,Phyllodocida,Nereididae,Neanthes}","genus","Neanthes"]
[130387,"{Animalia,Annelida,Polychaeta,Phyllodocida,Nereididae,\"Neanthes fucata\"}","species","Neanthes fucata"]
[513898,"{Animalia,Arthropoda,Crustacea,Malacostraca,Leptostraca,Nebaliidae,\"Nebalia abyssicola\"}","species","Nebalia abyssicola"]
[147032,"{Animalia,Arthropoda,Crustacea,Malacostraca,Leptostraca,Nebaliidae,\"Nebalia bipes\"}","species","Nebalia bipes"]
[147029,"{Animalia,Arthropoda,Crustacea,Malacostraca,Leptostraca,Nebaliidae}","family","Nebaliidae"]
[799,"{Animalia,Nematoda}","phylum","Nematoda"]
[152391,"{Animalia,Nemertea}","phylum","Nemertea"]
[1053,"{Animalia,Nemertina}","phylum","Nemertina"]
[129702,"{Animalia,Annelida,Polychaeta,Terebellida,Terebellidae,Neoamphitrite}","genus","Neoamphitrite"]
[131504,"{Animalia,Annelida,Polychaeta,Terebellida,Terebellidae,Neoamphitrite,\"Neoamphitrite figulus\"}","species","Neoamphitrite figulus"]
[146,"{Animalia,Mollusca,Gastropoda,Neogastropoda}","order","Neogastropoda"]
[743513,"{Animalia,Annelida,Polychaeta,Phyllodocida,Hesionidae,Neogyptis}","genus","Neogyptis"]
[743514,"{Animalia,Annelida,Polychaeta,Phyllodocida,Hesionidae,Neogyptis,\"Neogyptis rosea\"}","species","Neogyptis rosea"]
[136022,"{Animalia,Sipuncula,Sipunculidea,Golfingiida,Golfingiidae,Nephasoma}","genus","Nephasoma"]
[136051,"{Animalia,Sipuncula,Sipunculidea,Golfingiida,Golfingiidae,Nephasoma,\"Nephasoma (Nephasoma) abyssorum\"}","species","Nephasoma (Nephasoma) abyssorum"]
[136060,"{Animalia,Sipuncula,Sipunculidea,Golfingiida,Golfingiidae,\"Nephasoma (Nephasoma) minutum\"}","species","Nephasoma (Nephasoma) minutum"]
[424390,"{Animalia,Sipuncula,Sipunculidea,Golfingiida,Golfingiidae,\"Nephasoma minuta\"}","species","Nephasoma minuta"]
[106741,"{Animalia,Arthropoda,Crustacea,Malacostraca,Decapoda,Nephropidae}","family","Nephropidae"]
[106863,"{Animalia,Arthropoda,Crustacea,Malacostraca,Decapoda,Nephropidae,Nephrops}","genus","Nephrops"]
[107254,"{Animalia,Arthropoda,Crustacea,Malacostraca,Decapoda,Nephropidae,Nephrops,\"Nephrops norvegicus\"}","species","Nephrops norvegicus"]
[956,"{Animalia,Annelida,Polychaeta,Phyllodocida,Nephtyidae}","family","Nephtyidae"]
[129370,"{Animalia,Annelida,Polychaeta,Phyllodocida,Nephtyidae,Nephtys}","genus","Nephtys"]
[130355,"{Animalia,Annelida,Polychaeta,Phyllodocida,Nephtyidae,Nephtys,\"Nephtys caeca\"}","species","Nephtys caeca"]
[130356,"{Animalia,Annelida,Polychaeta,Phyllodocida,Nephtyidae,Nephtys,\"Nephtys ciliata\"}","species","Nephtys ciliata"]
[130357,"{Animalia,Annelida,Polychaeta,Phyllodocida,Nephtyidae,Nephtys,\"Nephtys cirrosa\"}","species","Nephtys cirrosa"]
[130359,"{Animalia,Annelida,Polychaeta,Phyllodocida,Nephtyidae,Nephtys,\"Nephtys hombergii\"}","species","Nephtys hombergii"]
[130363,"{Animalia,Annelida,Polychaeta,Phyllodocida,Nephtyidae,Nephtys,\"Nephtys kersivalensis\"}","species","Nephtys kersivalensis"]
[130364,"{Animalia,Annelida,Polychaeta,Phyllodocida,Nephtyidae,Nephtys,\"Nephtys longosetosa\"}","species","Nephtys longosetosa"]
[130365,"{Animalia,Annelida,Polychaeta,Phyllodocida,Nephtyidae,Nephtys,\"Nephtys paradoxa\"}","species","Nephtys paradoxa"]
[130352,"{Animalia,Annelida,Polychaeta,Phyllodocida,Nephtyidae,Nephtys,\"Nephtys pente\"}","species","Nephtys pente"]
[22496,"{Animalia,Annelida,Polychaeta,Phyllodocida,Nereididae}","family","Nereididae"]
[130185,"{Animalia,Annelida,Polychaeta,Phyllodocida,Hesionidae,\"Nereimyra punctata\"}","species","Nereimyra punctata"]
[129379,"{Animalia,Annelida,Polychaeta,Phyllodocida,Nereididae,Nereis}","genus","Nereis"]
[130404,"{Animalia,Annelida,Polychaeta,Phyllodocida,Nereididae,Nereis,\"Nereis pelagica\"}","species","Nereis pelagica"]
[130407,"{Animalia,Annelida,Polychaeta,Phyllodocida,Nereididae,Nereis,\"Nereis zonata\"}","species","Nereis zonata"]
[129703,"{Animalia,Annelida,Polychaeta,Terebellida,Terebellidae,Nicolea}","genus","Nicolea"]
[131507,"{Animalia,Annelida,Polychaeta,Terebellida,Terebellidae,Nicolea,\"Nicolea venustula\"}","species","Nicolea venustula"]
[131508,"{Animalia,Annelida,Polychaeta,Terebellida,Terebellidae,Nicolea,\"Nicolea zostericola\"}","species","Nicolea zostericola"]
[129357,"{Animalia,Annelida,Polychaeta,Maldanidae,Nicomache}","genus","Nicomache"]
[329801,"{Animalia,Annelida,Polychaeta,Maldanidae,Nicomache,\"Nicomache (Loxochona) trispinata\"}","species","Nicomache (Loxochona) trispinata"]
[130467,"{Animalia,Annelida,Polychaeta,Eunicida,Onuphidae,\"Nothria conchylega\"}","species","Nothria conchylega"]
[129898,"{Animalia,Annelida,Polychaeta,Capitellidae,\"Notomastus latericeus\"}","species","Notomastus latericeus"]
[130661,"{Animalia,Annelida,Polychaeta,Phyllodocida,Phyllodocidae,\"Notophyllum foliosum\"}","species","Notophyllum foliosum"]
[488966,"{Animalia,Arthropoda,Crustacea,Malacostraca,Amphipoda,Atylidae,\"Nototropis swammerdamei\"}","species","Nototropis swammerdamei"]
[138262,"{Animalia,Mollusca,Bivalvia,Nuculida,Nuculidae,Nucula}","genus","Nucula"]
[140589,"{Animalia,Mollusca,Bivalvia,Nuculida,Nuculidae,Nucula,\"Nucula nitidosa\"}","species","Nucula nitidosa"]
[140590,"{Animalia,Mollusca,Bivalvia,Nuculida,Nuculidae,Nucula,\"Nucula nucleus\"}","species","Nucula nucleus"]
[140592,"{Animalia,Mollusca,Bivalvia,Nuculida,Nuculidae,Nucula,\"Nucula sulcata\"}","species","Nucula sulcata"]
[138259,"{Animalia,Mollusca,Bivalvia,Protobranchia,Nuculanida,Nuculanidae,Nuculana}","genus","Nuculana"]
[140577,"{Animalia,Mollusca,Bivalvia,Protobranchia,Nuculanida,Nuculanidae,Nuculana,\"Nuculana minuta\"}","species","Nuculana minuta"]
[203,"{Animalia,Mollusca,Bivalvia,Protobranchia,Nuculanida}","order","Nuculanida"]
[205,"{Animalia,Mollusca,Bivalvia,Protobranchia,Nuculanida,Nuculanidae}","family","Nuculanidae"]
[382247,"{Animalia,Mollusca,Bivalvia,Nuculida}","order","Nuculida"]
[204,"{Animalia,Mollusca,Bivalvia,Nuculida,Nuculidae}","family","Nuculidae"]
[1762,"{Animalia,Mollusca,Gastropoda,Nudibranchia}","order","Nudibranchia"]
[150520,"{Animalia,Arthropoda,Pycnogonida,Pantopoda,Nymphonidae,\"Nymphon brevirostre\"}","species","Nymphon brevirostre"]
[1566,"{Animalia,Arthropoda,Pycnogonida,Pantopoda,Nymphonidae}","family","Nymphonidae"]
[177027,"{Animalia,Arthropoda,Crustacea,Malacostraca,Amphipoda,Ochlesidae}","family","Ochlesidae"]
[345465,"{Chromista,Ochrophyta}","phylum","Ochrophyta"]
[102861,"{Animalia,Arthropoda,Crustacea,Malacostraca,Amphipoda,Ochlesidae,\"Odius carinatus\"}","species","Odius carinatus"]
[101400,"{Animalia,Arthropoda,Crustacea,Malacostraca,Amphipoda,Oedicerotidae}","family","Oedicerotidae"]
[137826,"{Animalia,Mollusca,Gastropoda,Neogastropoda,Mangeliidae,Oenopota}","genus","Oenopota"]
[139317,"{Animalia,Mollusca,Gastropoda,Neogastropoda,Mangeliidae,\"Oenopota elegans\"}","species","Oenopota elegans"]
[2036,"{Animalia,Annelida,Clitellata,Oligochaeta}","subclass","Oligochaeta"]
[138451,"{Animalia,Mollusca,Gastropoda,Littorinimorpha,Rissoidae,Onoba}","genus","Onoba"]
[141320,"{Animalia,Mollusca,Gastropoda,Littorinimorpha,Rissoidae,\"Onoba semicostata\"}","species","Onoba semicostata"]
[965,"{Animalia,Annelida,Polychaeta,Eunicida,Onuphidae}","family","Onuphidae"]
[129413,"{Animalia,Annelida,Polychaeta,Opheliidae,Ophelia}","genus","Ophelia"]
[924,"{Animalia,Annelida,Polychaeta,Opheliidae}","family","Opheliidae"]
[129414,"{Animalia,Annelida,Polychaeta,Opheliidae,Ophelina}","genus","Ophelina"]
[130500,"{Animalia,Annelida,Polychaeta,Opheliidae,\"Ophelina acuminata\"}","species","Ophelina acuminata"]
[123207,"{Animalia,Echinodermata,Ophiuroidea,Amphilepidida,Ophiactidae}","family","Ophiactidae"]
[123620,"{Animalia,Echinodermata,Ophiuroidea,Amphilepidida,Ophiactidae,Ophiactis}","genus","Ophiactis"]
[125110,"{Animalia,Echinodermata,Ophiuroidea,Amphilepidida,Ophiactidae,Ophiactis,\"Ophiactis balli\"}","species","Ophiactis balli"]
[123561,"{Animalia,Echinodermata,Ophiuroidea,Ophiurida,Ophiuridae,Ophiocten}","genus","Ophiocten"]
[124850,"{Animalia,Echinodermata,Ophiuroidea,Ophiurida,Ophiuridae,Ophiocten,\"Ophiocten affinis\"}","species","Ophiocten affinis"]
[1148552,"{Animalia,Echinodermata,Ophiuroidea,Amphilepidida,Ophiopholidae}","family","Ophiopholidae"]
[125125,"{Animalia,Echinodermata,Ophiuroidea,Amphilepidida,Ophiopholidae,\"Ophiopholis aculeata\"}","species","Ophiopholis aculeata"]
[125131,"{Animalia,Echinodermata,Ophiuroidea,Amphilepidida,Ophiotrichidae,\"Ophiothrix fragilis\"}","species","Ophiothrix fragilis"]
[123208,"{Animalia,Echinodermata,Ophiuroidea,Amphilepidida,Ophiotrichidae}","family","Ophiotrichidae"]
[123574,"{Animalia,Echinodermata,Ophiuroidea,Ophiurida,Ophiuridae,Ophiura}","genus","Ophiura"]
[124913,"{Animalia,Echinodermata,Ophiuroidea,Ophiurida,Ophiuridae,\"Ophiura albida\"}","species","Ophiura albida"]
[124929,"{Animalia,Echinodermata,Ophiuroidea,Ophiurida,Ophiuridae,\"Ophiura ophiura\"}","species","Ophiura ophiura"]
[123117,"{Animalia,Echinodermata,Ophiuroidea,Ophiurida}","order","Ophiurida"]
[123200,"{Animalia,Echinodermata,Ophiuroidea,Ophiurida,Ophiuridae}","family","Ophiuridae"]
[123084,"{Animalia,Echinodermata,Ophiuroidea}","class","Ophiuroidea"]
[129266,"{Animalia,Annelida,Polychaeta,Eunicida,Dorvilleidae,Ophryotrocha}","genus","Ophryotrocha"]
[130025,"{Animalia,Annelida,Polychaeta,Eunicida,Dorvilleidae,Ophryotrocha,\"Ophryotrocha hartmanni\"}","species","Ophryotrocha hartmanni"]
[129420,"{Animalia,Annelida,Polychaeta,Orbiniidae,Orbinia}","genus","Orbinia"]
[130522,"{Animalia,Annelida,Polychaeta,Orbiniidae,Orbinia,\"Orbinia latreillii\"}","species","Orbinia latreillii"]
[902,"{Animalia,Annelida,Polychaeta,Orbiniidae}","family","Orbiniidae"]
[368557,"{Animalia,Arthropoda,Crustacea,Malacostraca,Decapoda,Oregoniidae}","family","Oregoniidae"]
[1078,"{Animalia,Arthropoda,Ostracoda}","class","Ostracoda"]
[129427,"{Animalia,Annelida,Polychaeta,Sabellida,Oweniidae,Owenia}","genus","Owenia"]
[130544,"{Animalia,Annelida,Polychaeta,Sabellida,Oweniidae,\"Owenia fusiformis\"}","species","Owenia fusiformis"]
[975,"{Animalia,Annelida,Polychaeta,Sabellida,Oweniidae}","family","Oweniidae"]
[710680,"{Animalia,Annelida,Polychaeta,Phyllodocida,Hesionidae,\"Oxydromus flexuosus\"}","species","Oxydromus flexuosus"]
[106738,"{Animalia,Arthropoda,Crustacea,Malacostraca,Decapoda,Paguridae}","family","Paguridae"]
[106854,"{Animalia,Arthropoda,Crustacea,Malacostraca,Decapoda,Paguridae,Pagurus}","genus","Pagurus"]
[107232,"{Animalia,Arthropoda,Crustacea,Malacostraca,Decapoda,Paguridae,\"Pagurus bernhardus\"}","species","Pagurus bernhardus"]
[107240,"{Animalia,Arthropoda,Crustacea,Malacostraca,Decapoda,Paguridae,\"Pagurus pubescens\"}","species","Pagurus pubescens"]
[138322,"{Animalia,Mollusca,Bivalvia,Pectinida,Pectinidae,Palliolum}","genus","Palliolum"]
[140710,"{Animalia,Mollusca,Bivalvia,Pectinida,Pectinidae,Palliolum,\"Palliolum tigerinum\"}","species","Palliolum tigerinum"]
[106789,"{Animalia,Arthropoda,Crustacea,Malacostraca,Decapoda,Pandalidae}","family","Pandalidae"]
[107647,"{Animalia,Arthropoda,Crustacea,Malacostraca,Decapoda,Pandalidae,\"Pandalina brevirostris\"}","species","Pandalina brevirostris"]
[107651,"{Animalia,Arthropoda,Crustacea,Malacostraca,Decapoda,Pandalidae,\"Pandalus montagui\"}","species","Pandalus montagui"]
[1358,"{Animalia,Arthropoda,Pycnogonida,Pantopoda}","order","Pantopoda"]
[138643,"{Animalia,Mollusca,Bivalvia,Venerida,Veneridae,Paphia}","genus","Paphia"]
[507796,"{Animalia,Mollusca,Bivalvia,Venerida,Veneridae,Paphia,\"Paphia polita\"}","species","Paphia polita"]
[129433,"{Animalia,Annelida,Polychaeta,Paraonidae,Paradoneis}","genus","Paradoneis"]
[130579,"{Animalia,Annelida,Polychaeta,Paraonidae,Paradoneis,\"Paradoneis armata\"}","species","Paradoneis armata"]
[130581,"{Animalia,Annelida,Polychaeta,Paraonidae,\"Paradoneis eliasoni\"}","species","Paradoneis eliasoni"]
[130585,"{Animalia,Annelida,Polychaeta,Paraonidae,\"Paradoneis lyra\"}","species","Paradoneis lyra"]
[129837,"{Animalia,Annelida,Polychaeta,Amphinomida,Amphinomidae,\"Paramphinome jeffreysii\"}","species","Paramphinome jeffreysii"]
[903,"{Animalia,Annelida,Polychaeta,Paraonidae}","family","Paraonidae"]
[146932,"{Animalia,Annelida,Polychaeta,Paraonidae,\"Paraonis fulgens\"}","species","Paraonis fulgens"]
[102986,"{Animalia,Arthropoda,Crustacea,Malacostraca,Amphipoda,Phoxocephalidae,\"Paraphoxus oculatus\"}","species","Paraphoxus oculatus"]
[101710,"{Animalia,Arthropoda,Crustacea,Malacostraca,Amphipoda,Pardaliscidae,Pardalisca}","genus","Pardalisca"]
[102945,"{Animalia,Arthropoda,Crustacea,Malacostraca,Amphipoda,Pardaliscidae,Pardalisca,\"Pardalisca abyssi\"}","species","Pardalisca abyssi"]
[101401,"{Animalia,Arthropoda,Crustacea,Malacostraca,Amphipoda,Pardaliscidae}","family","Pardaliscidae"]
[757970,"{Animalia,Annelida,Polychaeta,Phyllodocida,Syllidae,\"Parexogone hebes\"}","species","Parexogone hebes"]
[130037,"{Animalia,Annelida,Polychaeta,Eunicida,Dorvilleidae,\"Parougia eliasoni\"}","species","Parougia eliasoni"]
[137739,"{Animalia,Mollusca,Bivalvia,Cardiida,Cardiidae,Parvicardium}","genus","Parvicardium"]
[138312,"{Animalia,Mollusca,Gastropoda,Patellidae,Patella}","genus","Patella"]
[147459,"{Animalia,Mollusca,Gastropoda,Patellidae,Patella,\"Patella pellucida\"}","species","Patella pellucida"]
[113,"{Animalia,Mollusca,Gastropoda,Patellidae}","family","Patellidae"]
[382158,"{Animalia,Mollusca,Gastropoda,Patellogastropoda}","subclass","Patellogastropoda"]
[1297882,"{Animalia,Annelida,Polychaeta,Eunicida,Eunicidae,Paucibranchia}","genus","Paucibranchia"]
[1297885,"{Animalia,Annelida,Polychaeta,Eunicida,Eunicidae,Paucibranchia,\"Paucibranchia bellii\"}","species","Paucibranchia bellii"]
[138323,"{Animalia,Mollusca,Bivalvia,Pectinida,Pectinidae,Pecten}","genus","Pecten"]
[140712,"{Animalia,Mollusca,Bivalvia,Pectinida,Pectinidae,Pecten,\"Pecten maximus\"}","species","Pecten maximus"]
[129437,"{Animalia,Annelida,Polychaeta,Terebellida,Pectinariidae,Pectinaria}","genus","Pectinaria"]
[130590,"{Animalia,Annelida,Polychaeta,Terebellida,Pectinariidae,Pectinaria,\"Pectinaria (Amphictene) auricoma\"}","species","Pectinaria (Amphictene) auricoma"]
[334417,"{Animalia,Annelida,Polychaeta,Terebellida,Pectinariidae,Pectinaria,\"Pectinaria belgica\"}","species","Pectinaria belgica"]
[234099,"{Animalia,Annelida,Polychaeta,Terebellida,Pectinariidae,Pectinaria,\"Pectinaria koreni\"}","species","Pectinaria koreni"]
[980,"{Animalia,Annelida,Polychaeta,Terebellida,Pectinariidae}","family","Pectinariidae"]
[387324,"{Animalia,Mollusca,Bivalvia,Pectinida}","order","Pectinida"]
[213,"{Animalia,Mollusca,Bivalvia,Pectinida,Pectinidae}","family","Pectinidae"]
[1367,"{Animalia,Cnidaria,Anthozoa,Pennatulacea}","order","Pennatulacea"]
[11014,"{Animalia,Chordata,Actinopterygii,Perciformes}","order","Perciformes"]
[1786,"{Animalia,Mollusca,Bivalvia,Periplomatidae}","family","Periplomatidae"]
[130319,"{Animalia,Annelida,Polychaeta,Maldanidae,\"Petaloproctus borealis\"}","species","Petaloproctus borealis"]
[130320,"{Animalia,Annelida,Polychaeta,Maldanidae,\"Petaloproctus tenuis\"}","species","Petaloproctus tenuis"]
[236677,"{Animalia,Annelida,Polychaeta,Phyllodocida,Polynoidae,Pettibonesia}","genus","Pettibonesia"]
[236678,"{Animalia,Annelida,Polychaeta,Phyllodocida,Polynoidae,Pettibonesia,\"Pettibonesia furcosetosa\"}","species","Pettibonesia furcosetosa"]
[830,"{Chromista,Ochrophyta,Phaeophyceae}","class","Phaeophyceae"]
[23091,"{Animalia,Mollusca,Bivalvia,Adapedonta,Pharidae}","family","Pharidae"]
[136025,"{Animalia,Sipuncula,Sipunculidea,Golfingiida,Phascolionidae,Phascolion}","genus","Phascolion"]
[175043,"{Animalia,Sipuncula,Sipunculidea,Golfingiida,Phascolionidae,Phascolion,\"Phascolion (Phascolion) strombus\"}","species","Phascolion (Phascolion) strombus"]
[410749,"{Animalia,Sipuncula,Sipunculidea,Golfingiida,Phascolionidae,\"Phascolion (Phascolion) strombus strombus\"}","subspecies","Phascolion (Phascolion) strombus strombus"]
[1647,"{Animalia,Sipuncula,Sipunculidea,Golfingiida,Phascolionidae}","family","Phascolionidae"]
[138335,"{Animalia,Mollusca,Bivalvia,Adapedonta,Pharidae,Phaxas}","genus","Phaxas"]
[140737,"{Animalia,Mollusca,Bivalvia,Adapedonta,Pharidae,Phaxas,\"Phaxas pellucidus\"}","species","Phaxas pellucidus"]
[129293,"{Animalia,Annelida,Polychaeta,Terebellida,Flabelligeridae,Pherusa}","genus","Pherusa"]
[130110,"{Animalia,Annelida,Polychaeta,Terebellida,Flabelligeridae,Pherusa,\"Pherusa flabellata\"}","species","Pherusa flabellata"]
[130113,"{Animalia,Annelida,Polychaeta,Terebellida,Flabelligeridae,Pherusa,\"Pherusa plumosa\"}","species","Pherusa plumosa"]
[138339,"{Animalia,Mollusca,Gastropoda,Cephalaspidea,Philinidae,Philine}","genus","Philine"]
[140744,"{Animalia,Mollusca,Gastropoda,Cephalaspidea,Philinidae,\"Philine aperta\"}","species","Philine aperta"]
[161,"{Animalia,Mollusca,Gastropoda,Cephalaspidea,Philinidae}","family","Philinidae"]
[107557,"{Animalia,Arthropoda,Crustacea,Malacostraca,Decapoda,Crangonidae,\"Philocheras bispinosus\"}","species","Philocheras bispinosus"]
[127719,"{Animalia,Arthropoda,Ostracoda,Myodocopida,Philomediadae,\"Philomedes globosus\"}","species","Philomedes globosus"]
[127483,"{Animalia,Arthropoda,Ostracoda,Myodocopida,Philomediadae}","family","Philomediadae"]
[103435,"{Animalia,Chordata,Ascidiacea,Phlebobranchia}","order","Phlebobranchia"]
[129439,"{Animalia,Annelida,Polychaeta,Phyllodocida,Pholoidae,Pholoe}","genus","Pholoe"]
[130601,"{Animalia,Annelida,Polychaeta,Phyllodocida,Pholoidae,Pholoe,\"Pholoe inornata\"}","species","Pholoe inornata"]
[130603,"{Animalia,Annelida,Polychaeta,Phyllodocida,Pholoidae,Pholoe,\"Pholoe minuta\"}","species","Pholoe minuta"]
[941,"{Animalia,Annelida,Polychaeta,Phyllodocida,Pholoidae}","family","Pholoidae"]
[129440,"{Animalia,Annelida,Polychaeta,Phyllodocida,Sigalionidae,Pholoides}","genus","Pholoides"]
[1789,"{Animalia,Phoronida}","phylum","Phoronida"]
[148378,"{Animalia,Phoronida,Phoronidae}","family","Phoronidae"]
[128545,"{Animalia,Phoronida,Phoronidae,Phoronis}","genus","Phoronis"]
[148558,"{Animalia,Arthropoda,Crustacea,Malacostraca,Amphipoda,Photidae}","family","Photidae"]
[14469,"{Animalia,Arthropoda,Pycnogonida,Pantopoda,Phoxichilidiidae}","family","Phoxichilidiidae"]
[134594,"{Animalia,Arthropoda,Pycnogonida,Pantopoda,Phoxichilidiidae,Phoxichilidium}","genus","Phoxichilidium"]
[134741,"{Animalia,Arthropoda,Pycnogonida,Pantopoda,Phoxichilidiidae,Phoxichilidium,\"Phoxichilidium femoratum\"}","species","Phoxichilidium femoratum"]
[101403,"{Animalia,Arthropoda,Crustacea,Malacostraca,Amphipoda,Phoxocephalidae}","family","Phoxocephalidae"]
[102989,"{Animalia,Arthropoda,Crustacea,Malacostraca,Amphipoda,Phoxocephalidae,\"Phoxocephalus holbolli\"}","species","Phoxocephalus holbolli"]
[101864,"{Animalia,Annelida,Polychaeta,Capitellidae,\"Phtisica marina\"}","species","Phtisica marina"]
[129455,"{Animalia,Annelida,Polychaeta,Phyllodocida,Phyllodocidae,Phyllodoce}","genus","Phyllodoce"]
[334506,"{Animalia,Annelida,Polychaeta,Phyllodocida,Phyllodocidae,\"Phyllodoce groenlandica\"}","species","Phyllodoce groenlandica"]
[334510,"{Animalia,Annelida,Polychaeta,Phyllodocida,Phyllodocidae,\"Phyllodoce maculata\"}","species","Phyllodoce maculata"]
[334512,"{Animalia,Annelida,Polychaeta,Phyllodocida,Phyllodocidae,\"Phyllodoce mucosa\"}","species","Phyllodoce mucosa"]
[892,"{Animalia,Annelida,Polychaeta,Phyllodocida}","order","Phyllodocida"]
[931,"{Animalia,Annelida,Polychaeta,Phyllodocida,Phyllodocidae}","family","Phyllodocidae"]
[123188,"{Animalia,Echinodermata,Holothuroidea,Dendrochirotida,Phyllophoridae}","family","Phyllophoridae"]
[1320351,"{Animalia,Nemertea,Pilidiophora}","class","Pilidiophora"]
[11676,"{Animalia,Chordata,Vertebrata,Pisces}","superclass","Pisces"]
[129469,"{Animalia,Annelida,Polychaeta,Phyllodocida,Sigalionidae,Pisione}","genus","Pisione"]
[130707,"{Animalia,Annelida,Polychaeta,Phyllodocida,Sigalionidae,Pisione,\"Pisione remota\"}","species","Pisione remota"]
[793,"{Animalia,Platyhelminthes}","phylum","Platyhelminthes"]
[125579,"{Animalia,Chordata,Actinopterygii,Pleuronectiformes,Pleuronectidae}","family","Pleuronectidae"]
[10331,"{Animalia,Chordata,Actinopterygii,Pleuronectiformes}","order","Pleuronectiformes"]
[137653,"{Animalia,Mollusca,Bivalvia,Pectinida,Anomiidae,Pododesmus}","genus","Pododesmus"]
[138751,"{Animalia,Mollusca,Bivalvia,Pectinida,Anomiidae,Pododesmus,\"Pododesmus patelliformis\"}","species","Pododesmus patelliformis"]
[916,"{Animalia,Annelida,Polychaeta,Spionida,Poecilochaetidae}","family","Poecilochaetidae"]
[130711,"{Animalia,Annelida,Polychaeta,Spionida,Poecilochaetidae,\"Poecilochaetus serpens\"}","species","Poecilochaetus serpens"]
[246149,"{Animalia,Mollusca,Bivalvia,Venerida,Veneridae,Polititapes}","genus","Polititapes"]
[246150,"{Animalia,Mollusca,Bivalvia,Venerida,Veneridae,\"Polititapes aureus\"}","species","Polititapes aureus"]
[745846,"{Animalia,Mollusca,Bivalvia,Venerida,Veneridae,Polititapes,\"Polititapes rhomboides\"}","species","Polititapes rhomboides"]
[557512,"{Animalia,Arthropoda,Crustacea,Malacostraca,Decapoda,Polybiidae}","family","Polybiidae"]
[154304,"{Animalia,Arthropoda,Crustacea,Malacostraca,Decapoda,Polybiidae,\"Polybius (Polybius) holsatus\"}","species","Polybius (Polybius) holsatus"]
[103538,"{Animalia,Chordata,Ascidiacea,Stolidobranchia,Styelidae,Polycarpa}","genus","Polycarpa"]
[103896,"{Animalia,Chordata,Ascidiacea,Stolidobranchia,Styelidae,Polycarpa,\"Polycarpa arnbackae\"}","species","Polycarpa arnbackae"]
[883,"{Animalia,Annelida,Polychaeta}","class","Polychaeta"]
[129710,"{Animalia,Annelida,Polychaeta,Terebellida,Terebellidae,Polycirrus}","genus","Polycirrus"]
[131523,"{Animalia,Annelida,Polychaeta,Terebellida,Terebellidae,Polycirrus,\"Polycirrus arcticus\"}","species","Polycirrus arcticus"]
[131531,"{Animalia,Annelida,Polychaeta,Terebellida,Terebellidae,Polycirrus,\"Polycirrus medusa\"}","species","Polycirrus medusa"]
[196385,"{Animalia,Annelida,Polychaeta,Terebellida,Terebellidae,Polycirrus,\"Polycirrus norvegicus\"}","species","Polycirrus norvegicus"]
[131534,"{Animalia,Annelida,Polychaeta,Terebellida,Terebellidae,Polycirrus,\"Polycirrus plumosus\"}","species","Polycirrus plumosus"]
[103441,"{Animalia,Chordata,Ascidiacea,Aplousobranchia,\"Polyclinidae Milne\"}","family","Polyclinidae Milne"]
[129619,"{Animalia,Annelida,Polychaeta,Spionida,Spionidae,Polydora}","genus","Polydora"]
[131141,"{Animalia,Annelida,Polychaeta,Spionida,Spionidae,\"Polydora ciliata\"}","species","Polydora ciliata"]
[129506,"{Animalia,Annelida,Polychaeta,Phyllodocida,Polynoidae,Polynoe}","genus","Polynoe"]
[130830,"{Animalia,Annelida,Polychaeta,Phyllodocida,Polynoidae,Polynoe,\"Polynoe scolopendrina\"}","species","Polynoe scolopendrina"]
[939,"{Animalia,Annelida,Polychaeta,Phyllodocida,Polynoidae}","family","Polynoidae"]
[130977,"{Animalia,Annelida,Polychaeta,Scalibregmatidae,\"Polyphysia crassa\"}","species","Polyphysia crassa"]
[55,"{Animalia,Mollusca,Polyplacophora}","class","Polyplacophora"]
[131027,"{Animalia,Annelida,Polychaeta,Sabellida,Serpulidae,\"Pomatoceros triqueter\"}","species","Pomatoceros triqueter"]
[101702,"{Animalia,Arthropoda,Crustacea,Malacostraca,Amphipoda,Oedicerotidae,Pontocrates}","genus","Pontocrates"]
[102916,"{Animalia,Arthropoda,Crustacea,Malacostraca,Amphipoda,Oedicerotidae,Pontocrates,\"Pontocrates altamarinus\"}","species","Pontocrates altamarinus"]
[102917,"{Animalia,Arthropoda,Crustacea,Malacostraca,Amphipoda,Oedicerotidae,Pontocrates,\"Pontocrates arcticus\"}","species","Pontocrates arcticus"]
[103079,"{Animalia,Arthropoda,Crustacea,Malacostraca,Amphipoda,Pontoporeiidae,\"Pontoporeia femorata\"}","species","Pontoporeia femorata"]
[101406,"{Animalia,Arthropoda,Crustacea,Malacostraca,Amphipoda,Pontoporeiidae}","family","Pontoporeiidae"]
[558,"{Animalia,Porifera}","phylum","Porifera"]
[129544,"{Animalia,Annelida,Polychaeta,Sabellida,Sabellidae,Potamilla}","genus","Potamilla"]
[130954,"{Animalia,Annelida,Polychaeta,Sabellida,Sabellidae,Potamilla,\"Potamilla neglecta\"}","species","Potamilla neglecta"]
[129360,"{Animalia,Annelida,Polychaeta,Maldanidae,Praxillella}","genus","Praxillella"]
[130322,"{Animalia,Annelida,Polychaeta,Maldanidae,Praxillella,\"Praxillella affinis\"}","species","Praxillella affinis"]
[130326,"{Animalia,Annelida,Polychaeta,Maldanidae,Praxillella,\"Praxillella praetermissa\"}","species","Praxillella praetermissa"]
[101063,"{Animalia,Cephalorhyncha,Priapulida}","class","Priapulida"]
[101078,"{Animalia,Cephalorhyncha,Priapulida,Priapulomorpha,Priapulidae}","family","Priapulidae"]
[1263790,"{Animalia,Cephalorhyncha,Priapulida,Priapulomorpha}","order","Priapulomorpha"]
[101095,"{Animalia,Cephalorhyncha,Priapulida,Priapulomorpha,Priapulidae,Priapulus}","genus","Priapulus"]
[101160,"{Animalia,Cephalorhyncha,Priapulida,Priapulomorpha,Priapulidae,\"Priapulus caudatus\"}","species","Priapulus caudatus"]
[129620,"{Animalia,Annelida,Polychaeta,Spionida,Spionidae,Prionospio}","genus","Prionospio"]
[131151,"{Animalia,Annelida,Polychaeta,Spionida,Spionidae,Prionospio,\"Prionospio banyulensis\"}","species","Prionospio banyulensis"]
[131160,"{Animalia,Annelida,Polychaeta,Spionida,Spionidae,Prionospio,\"Prionospio multibranchiata\"}","species","Prionospio multibranchiata"]
[107054,"{Animalia,Arthropoda,Crustacea,Malacostraca,Decapoda,Processidae,Processa}","genus","Processa"]
[106791,"{Animalia,Arthropoda,Crustacea,Malacostraca,Decapoda,Processidae}","family","Processidae"]
[607413,"{Animalia,Mollusca,Bivalvia,Nuculida,Nuculidae,Pronucula}","genus","Pronucula"]
[607414,"{Animalia,Mollusca,Bivalvia,Nuculida,Nuculidae,Pronucula,\"Pronucula tenuis\"}","species","Pronucula tenuis"]
[156983,"{Animalia,Mollusca,Bivalvia,Pectinida,Propeamussiidae}","family","Propeamussiidae"]
[142027,"{Animalia,Platyhelminthes,Proseriata}","order","Proseriata"]
[102,"{Animalia,Mollusca,Gastropoda,Prosobranchia}","subclass","Prosobranchia"]
[106,"{Animalia,Mollusca,Bivalvia,Protobranchia}","subclass","Protobranchia"]
[102443,"{Animalia,Arthropoda,Crustacea,Malacostraca,Amphipoda,Corophiidae,\"Protomedeia fasciata\"}","species","Protomedeia fasciata"]
[152248,"{Animalia,Annelida,Polychaeta,Phyllodocida,Hesionidae,Psamathe}","genus","Psamathe"]
[152249,"{Animalia,Annelida,Polychaeta,Phyllodocida,Hesionidae,\"Psamathe fusca\"}","species","Psamathe fusca"]
[237,"{Animalia,Mollusca,Bivalvia,Cardiida,Psammobiidae}","family","Psammobiidae"]
[129621,"{Animalia,Annelida,Polychaeta,Spionida,Spionidae,Pseudopolydora}","genus","Pseudopolydora"]
[131166,"{Animalia,Annelida,Polychaeta,Spionida,Spionidae,Pseudopolydora,\"Pseudopolydora antennata\"}","species","Pseudopolydora antennata"]
[131169,"{Animalia,Annelida,Polychaeta,Spionida,Spionidae,\"Pseudopolydora pulchra\"}","species","Pseudopolydora pulchra"]
[123189,"{Animalia,Echinodermata,Holothuroidea,Dendrochirotida,Psolidae}","family","Psolidae"]
[146121,"{Animalia,Echinodermata,Holothuroidea,Dendrochirotida,Psolidae,Psolus}","genus","Psolus"]
[124710,"{Animalia,Echinodermata,Holothuroidea,Dendrochirotida,Psolidae,\"Psolus phantapus\"}","species","Psolus phantapus"]
[124713,"{Animalia,Echinodermata,Holothuroidea,Dendrochirotida,Psolidae,Psolus,\"Psolus squamatus\"}","species","Psolus squamatus"]
[1302,"{Animalia,Arthropoda,Pycnogonida}","class","Pycnogonida"]
[129622,"{Animalia,Annelida,Polychaeta,Spionida,Spionidae,Pygospio}","genus","Pygospio"]
[131170,"{Animalia,Annelida,Polychaeta,Spionida,Spionidae,\"Pygospio elegans\"}","species","Pygospio elegans"]
[103449,"{Animalia,Chordata,Ascidiacea,Stolidobranchia,Pyuridae}","family","Pyuridae"]
[139371,"{Animalia,Mollusca,Gastropoda,Neogastropoda,Raphitomidae,\"Raphitoma linearis\"}","species","Raphitoma linearis"]
[153879,"{Animalia,Mollusca,Gastropoda,Neogastropoda,Raphitomidae}","family","Raphitomidae"]
[138432,"{Animalia,Mollusca,Gastropoda,Cephalaspidea,Retusidae,Retusa}","genus","Retusa"]
[141134,"{Animalia,Mollusca,Gastropoda,Cephalaspidea,Retusidae,Retusa,\"Retusa obtusa\"}","species","Retusa obtusa"]
[156,"{Animalia,Mollusca,Gastropoda,Cephalaspidea,Retusidae}","family","Retusidae"]
[1109,"{Animalia,Arthropoda,Crustacea,Hexanauplia,Rhizocephala}","superorder","Rhizocephala"]
[129363,"{Animalia,Annelida,Polychaeta,Maldanidae,Rhodine}","genus","Rhodine"]
[130330,"{Animalia,Annelida,Polychaeta,Maldanidae,Rhodine,\"Rhodine gracilior\"}","species","Rhodine gracilior"]
[130331,"{Animalia,Annelida,Polychaeta,Maldanidae,Rhodine,\"Rhodine loveni\"}","species","Rhodine loveni"]
[123,"{Animalia,Mollusca,Gastropoda,Littorinimorpha,Rissoidae}","family","Rissoidae"]
[14260,"{Animalia,Rotifera}","phylum","Rotifera"]
[129549,"{Animalia,Annelida,Polychaeta,Sabellida,Sabellidae,Sabella}","genus","Sabella"]
[130967,"{Animalia,Annelida,Polychaeta,Sabellida,Sabellidae,\"Sabella pavonina\"}","species","Sabella pavonina"]
[129520,"{Animalia,Annelida,Polychaeta,Sabellariidae,Sabellaria}","genus","Sabellaria"]
[979,"{Animalia,Annelida,Polychaeta,Sabellariidae}","family","Sabellariidae"]
[901,"{Animalia,Annelida,Polychaeta,Sabellida}","order","Sabellida"]
[985,"{Animalia,Annelida,Polychaeta,Sabellida,Sabellidae}","family","Sabellidae"]
[107012,"{Animalia,Arthropoda,Crustacea,Malacostraca,Decapoda,Crangonidae,Sabinea}","genus","Sabinea"]
[107567,"{Animalia,Arthropoda,Crustacea,Malacostraca,Decapoda,Crangonidae,Sabinea,\"Sabinea septemcarinata\"}","species","Sabinea septemcarinata"]
[143725,"{Chromista,Ochrophyta,Phaeophyceae,Sargassaceae}","family","Sargassaceae"]
[144132,"{Chromista,Ochrophyta,Phaeophyceae,Sargassaceae,Sargassum}","genus","Sargassum"]
[130980,"{Animalia,Annelida,Polychaeta,Scalibregmatidae,\"Scalibregma inflatum\"}","species","Scalibregma inflatum"]
[925,"{Animalia,Annelida,Polychaeta,Scalibregmatidae}","family","Scalibregmatidae"]
[137871,"{Animalia,Mollusca,Gastropoda,Cephalaspidea,Scaphandridae,Scaphander}","genus","Scaphander"]
[139488,"{Animalia,Mollusca,Gastropoda,Cephalaspidea,Scaphandridae,Scaphander,\"Scaphander lignarius\"}","species","Scaphander lignarius"]
[158,"{Animalia,Mollusca,Gastropoda,Cephalaspidea,Scaphandridae}","family","Scaphandridae"]
[104,"{Animalia,Mollusca,Scaphopoda}","class","Scaphopoda"]
[331688,"{Animalia,Annelida,Polychaeta,Eunicida,Dorvilleidae,\"Schistomeringos eliasoni\"}","species","Schistomeringos eliasoni"]
[120204,"{Animalia,Arthropoda,Crustacea,Malacostraca,Mysida,Mysidae,\"Schistomysis ornata\"}","species","Schistomysis ornata"]
[123176,"{Animalia,Echinodermata,Echinoidea,Spatangoida,Schizasteridae}","family","Schizasteridae"]
[157561,"{Animalia,Annelida,Polychaeta,Spionida,Spionidae,\"Scolelepis (Parascolelepis) tridentata\"}","species","Scolelepis (Parascolelepis) tridentata"]
[157566,"{Animalia,Annelida,Polychaeta,Spionida,Spionidae,\"Scolelepis (Scolelepis) squamata\"}","species","Scolelepis (Scolelepis) squamata"]
[129425,"{Animalia,Annelida,Polychaeta,Orbiniidae,Scoloplos}","genus","Scoloplos"]
[130537,"{Animalia,Annelida,Polychaeta,Orbiniidae,Scoloplos,\"Scoloplos armiger\"}","species","Scoloplos armiger"]
[1870,"{Animalia,Mollusca,Bivalvia,Cardiida,Semelidae}","family","Semelidae"]
[1781,"{Animalia,Mollusca,Bivalvia,Cardiida,Semelidae}","family","Semelidae"]
[988,"{Animalia,Annelida,Polychaeta,Sabellida,Serpulidae}","family","Serpulidae"]
[106033,"{Animalia,Arthropoda,Crustacea,Hexanauplia,Sessilia}","order","Sessilia"]
[943,"{Animalia,Annelida,Polychaeta,Phyllodocida,Sigalionidae}","family","Sigalionidae"]
[130690,"{Animalia,Annelida,Polychaeta,Phyllodocida,Phyllodocidae,\"Sige fusigera\"}","species","Sige fusigera"]
[147153,"{Animalia,Mollusca,Bivalvia,Pectinida,Propeamussiidae,Similipecten}","genus","Similipecten"]
[147154,"{Animalia,Mollusca,Bivalvia,Pectinida,Propeamussiidae,\"Similipecten similis\"}","species","Similipecten similis"]
[1104,"{Animalia,Arthropoda,Crustacea,Hexanauplia,Siphonostomatoida}","order","Siphonostomatoida"]
[1268,"{Animalia,Sipuncula}","phylum","Sipuncula"]
[1648,"{Animalia,Sipuncula,Sipunculidea,Golfingiida,Sipunculidae}","family","Sipunculidae"]
[1296,"{Animalia,Sipuncula,Sipunculidea}","class","Sipunculidea"]
[233,"{Animalia,Mollusca,Bivalvia,Adapedonta,Solenidae}","family","Solenidae"]
[123177,"{Animalia,Echinodermata,Echinoidea,Spatangoida,Spatangidae}","family","Spatangidae"]
[123106,"{Animalia,Echinodermata,Echinoidea,Spatangoida}","order","Spatangoida"]
[123430,"{Animalia,Echinodermata,Echinoidea,Spatangoida,Spatangidae,Spatangus}","genus","Spatangus"]
[124418,"{Animalia,Echinodermata,Echinoidea,Spatangoida,Spatangidae,Spatangus,\"Spatangus purpureus\"}","species","Spatangus purpureus"]
[957,"{Animalia,Annelida,Polychaeta,Phyllodocida,Sphaerodoridae}","family","Sphaerodoridae"]
[155127,"{Animalia,Annelida,Polychaeta,Phyllodocida,Sphaerodoridae,\"Sphaerodoridium minutum\"}","species","Sphaerodoridium minutum"]
[129601,"{Animalia,Annelida,Polychaeta,Phyllodocida,Sphaerodoridae,Sphaerodoropsis}","genus","Sphaerodoropsis"]
[131089,"{Animalia,Annelida,Polychaeta,Phyllodocida,Sphaerodoridae,Sphaerodoropsis,\"Sphaerodoropsis baltica\"}","species","Sphaerodoropsis baltica"]
[131100,"{Animalia,Annelida,Polychaeta,Phyllodocida,Sphaerodoridae,\"Sphaerodorum gracilis\"}","species","Sphaerodorum gracilis"]
[129677,"{Animalia,Annelida,Polychaeta,Phyllodocida,Syllidae,Sphaerosyllis}","genus","Sphaerosyllis"]
[123089,"{Animalia,Echinodermata,Asteroidea,Spinulosida}","order","Spinulosida"]
[131183,"{Animalia,Annelida,Polychaeta,Spionida,Spionidae,\"Spio filicornis\"}","species","Spio filicornis"]
[889,"{Animalia,Annelida,Polychaeta,Spionida}","order","Spionida"]
[913,"{Animalia,Annelida,Polychaeta,Spionida,Spionidae}","family","Spionidae"]
[131187,"{Animalia,Annelida,Polychaeta,Spionida,Spionidae,\"Spiophanes bombyx\"}","species","Spiophanes bombyx"]
[131188,"{Animalia,Annelida,Polychaeta,Spionida,Spionidae,\"Spiophanes kroyeri\"}","species","Spiophanes kroyeri"]
[129582,"{Animalia,Annelida,Polychaeta,Sabellida,Serpulidae,Spirobranchus}","genus","Spirobranchus"]
[555935,"{Animalia,Annelida,Polychaeta,Sabellida,Serpulidae,\"Spirobranchus triqueter\"}","species","Spirobranchus triqueter"]
[1021266,"{Animalia,Annelida,Polychaeta,Sabellida,Spirorbidae}","family","Spirorbidae"]
[989,"{Animalia,Annelida,Polychaeta,Sabellida,Serpulidae,Spirorbinae}","subfamily","Spirorbinae"]
[138159,"{Animalia,Mollusca,Bivalvia,Venerida,Mactridae,Spisula}","genus","Spisula"]
[140300,"{Animalia,Mollusca,Bivalvia,Venerida,Mactridae,Spisula,\"Spisula elliptica\"}","species","Spisula elliptica"]
[140301,"{Animalia,Mollusca,Bivalvia,Venerida,Mactridae,Spisula,\"Spisula solida\"}","species","Spisula solida"]
[140302,"{Animalia,Mollusca,Bivalvia,Venerida,Mactridae,Spisula,\"Spisula subtruncata\"}","species","Spisula subtruncata"]
[137024,"{Animalia,Chordata,Vertebrata,Mammalia,Cetartiodactyla,Delphinidae,Stenella}","genus","Stenella"]
[101770,"{Animalia,Arthropoda,Crustacea,Malacostraca,Amphipoda,Stenothoidae,Stenothoe}","genus","Stenothoe"]
[103169,"{Animalia,Arthropoda,Crustacea,Malacostraca,Amphipoda,Stenothoidae,Stenothoe,\"Stenothoe monoculoides\"}","species","Stenothoe monoculoides"]
[101409,"{Animalia,Arthropoda,Crustacea,Malacostraca,Amphipoda,Stenothoidae}","family","Stenothoidae"]
[974,"{Animalia,Annelida,Polychaeta,Terebellida,Sternaspidae}","family","Sternaspidae"]
[131241,"{Animalia,Annelida,Polychaeta,Terebellida,Sternaspidae,\"Sternaspis fossor\"}","species","Sternaspis fossor"]
[131242,"{Animalia,Annelida,Polychaeta,Terebellida,Sternaspidae,\"Sternaspis scutata\"}","species","Sternaspis scutata"]
[1039839,"{Animalia,Mollusca,Gastropoda,Trochida,Trochidae,\"Steromphala cineraria\"}","species","Steromphala cineraria"]
[129595,"{Animalia,Annelida,Polychaeta,Phyllodocida,Sigalionidae,Sthenelais}","genus","Sthenelais"]
[131077,"{Animalia,Annelida,Polychaeta,Phyllodocida,Sigalionidae,\"Sthenelais limicola\"}","species","Sthenelais limicola"]
[125566,"{Animalia,Chordata,Actinopterygii,Perciformes,Stichaeidae}","family","Stichaeidae"]
[103436,"{Animalia,Chordata,Ascidiacea,Stolidobranchia}","order","Stolidobranchia"]
[131538,"{Animalia,Annelida,Polychaeta,Terebellida,Terebellidae,\"Streblosoma bairdi\"}","species","Streblosoma bairdi"]
[131540,"{Animalia,Annelida,Polychaeta,Terebellida,Terebellidae,\"Streblosoma intestinale\"}","species","Streblosoma intestinale"]
[123161,"{Animalia,Echinodermata,Echinoidea,Camarodonta,Strongylocentrotidae}","family","Strongylocentrotidae"]
[123390,"{Animalia,Echinodermata,Echinoidea,Camarodonta,Strongylocentrotidae,Strongylocentrotus}","genus","Strongylocentrotus"]
[124321,"{Animalia,Echinodermata,Echinoidea,Camarodonta,Strongylocentrotidae,Strongylocentrotus,\"Strongylocentrotus droebachiensis\"}","species","Strongylocentrotus droebachiensis"]
[103450,"{Animalia,Chordata,Ascidiacea,Stolidobranchia,Styelidae}","family","Styelidae"]
[948,"{Animalia,Annelida,Polychaeta,Phyllodocida,Syllidae}","family","Syllidae"]
[129679,"{Animalia,Annelida,Polychaeta,Phyllodocida,Syllidae,Syllides}","genus","Syllides"]
[131403,"{Animalia,Annelida,Polychaeta,Phyllodocida,Syllidae,Syllides,\"Syllides articulocirratus\"}","species","Syllides articulocirratus"]
[129680,"{Animalia,Annelida,Polychaeta,Phyllodocida,Syllidae,Syllis}","genus","Syllis"]
[131415,"{Animalia,Annelida,Polychaeta,Phyllodocida,Syllidae,Syllis,\"Syllis armillaris\"}","species","Syllis armillaris"]
[157583,"{Animalia,Annelida,Polychaeta,Phyllodocida,Syllidae,Syllis,\"Syllis cornuta\"}","species","Syllis cornuta"]
[131435,"{Animalia,Annelida,Polychaeta,Phyllodocida,Syllidae,Syllis,\"Syllis gracilis\"}","species","Syllis gracilis"]
[131436,"{Animalia,Annelida,Polychaeta,Phyllodocida,Syllidae,Syllis,\"Syllis hyalina\"}","species","Syllis hyalina"]
[131452,"{Animalia,Annelida,Polychaeta,Phyllodocida,Syllidae,Syllis,\"Syllis prolifera\"}","species","Syllis prolifera"]
[131458,"{Animalia,Annelida,Polychaeta,Phyllodocida,Syllidae,Syllis,\"Syllis variegata\"}","species","Syllis variegata"]
[123182,"{Animalia,Echinodermata,Holothuroidea,Apodida,Synaptidae}","family","Synaptidae"]
[103479,"{Animalia,Chordata,Ascidiacea,Aplousobranchia,\"Polyclinidae Milne\",Synoicum}","genus","Synoicum"]
[149333,"{Chromista,Ochrophyta,Bacillariophyceae,Tabellariales,Tabellariaceae,Tabellaria}","genus","Tabellaria"]
[149332,"{Chromista,Ochrophyta,Bacillariophyceae,Tabellariales,Tabellariaceae}","family","Tabellariaceae"]
[149331,"{Chromista,Ochrophyta,Bacillariophyceae,Tabellariales}","order","Tabellariales"]
[1133,"{Animalia,Arthropoda,Crustacea,Malacostraca,Tanaidacea}","order","Tanaidacea"]
[138142,"{Animalia,Mollusca,Gastropoda,Lottiidae,Tectura}","genus","Tectura"]
[153552,"{Animalia,Mollusca,Gastropoda,Lottiidae,Tectura,\"Tectura virginea\"}","species","Tectura virginea"]
[146952,"{Animalia,Mollusca,Bivalvia,Galeommatida,Lasaeidae,\"Tellimya ferruginosa\"}","species","Tellimya ferruginosa"]
[235,"{Animalia,Mollusca,Bivalvia,Cardiida,Tellinidae}","family","Tellinidae"]
[900,"{Animalia,Annelida,Polychaeta,Terebellida}","order","Terebellida"]
[982,"{Animalia,Annelida,Polychaeta,Terebellida,Terebellidae}","family","Terebellidae"]
[129717,"{Animalia,Annelida,Polychaeta,Terebellida,Trichobranchidae,Terebellides}","genus","Terebellides"]
[131573,"{Animalia,Annelida,Polychaeta,Terebellida,Trichobranchidae,\"Terebellides stroemii\"}","species","Terebellides stroemii"]
[152292,"{Animalia,Annelida,Polychaeta,Terebellida,Terebellomorpha}","suborder","Terebellomorpha"]
[234207,"{Animalia,Mollusca,Gastropoda,Lottiidae,Testudinalia}","genus","Testudinalia"]
[234208,"{Animalia,Mollusca,Gastropoda,Lottiidae,Testudinalia,\"Testudinalia testudinalis\"}","species","Testudinalia testudinalis"]
[196167,"{Animalia,Cnidaria,Anthozoa,Actiniaria,Thalassianthidae}","family","Thalassianthidae"]
[129249,"{Animalia,Annelida,Polychaeta,Terebellida,Cirratulidae,Tharyx}","genus","Tharyx"]
[129714,"{Animalia,Annelida,Polychaeta,Terebellida,Terebellidae,Thelepus}","genus","Thelepus"]
[131543,"{Animalia,Annelida,Polychaeta,Terebellida,Terebellidae,\"Thelepus cincinnatus\"}","species","Thelepus cincinnatus"]
[181510,"{Animalia,Annelida,Polychaeta,Terebellida,Flabelligeridae,\"Therochaeta flabellata\"}","species","Therochaeta flabellata"]
[339492,"{Animalia,Annelida,Polychaeta,Opheliidae,\"Thoracophelia flabellifera\"}","species","Thoracophelia flabellifera"]
[883967,"{Animalia,Arthropoda,Crustacea,Malacostraca,Decapoda,Thoridae}","family","Thoridae"]
[138549,"{Animalia,Mollusca,Bivalvia,Thraciidae,Thracia}","genus","Thracia"]
[141648,"{Animalia,Mollusca,Bivalvia,Thraciidae,Thracia,\"Thracia myopsis\"}","species","Thracia myopsis"]
[152378,"{Animalia,Mollusca,Bivalvia,Thraciidae,\"Thracia phaseolina\"}","species","Thracia phaseolina"]
[256,"{Animalia,Mollusca,Bivalvia,Thraciidae}","family","Thraciidae"]
[138552,"{Animalia,Mollusca,Bivalvia,Lucinida,Thyasiridae,Thyasira}","genus","Thyasira"]
[141662,"{Animalia,Mollusca,Bivalvia,Lucinida,Thyasiridae,Thyasira,\"Thyasira flexuosa\"}","species","Thyasira flexuosa"]
[141663,"{Animalia,Mollusca,Bivalvia,Lucinida,Thyasiridae,Thyasira,\"Thyasira gouldi\"}","species","Thyasira gouldi"]
[219,"{Animalia,Mollusca,Bivalvia,Lucinida,Thyasiridae}","family","Thyasiridae"]
[146116,"{Animalia,Echinodermata,Holothuroidea,Dendrochirotida,Phyllophoridae,Thyone}","genus","Thyone"]
[124670,"{Animalia,Echinodermata,Holothuroidea,Dendrochirotida,Phyllophoridae,\"Thyone fusus\"}","species","Thyone fusus"]
[124671,"{Animalia,Echinodermata,Holothuroidea,Dendrochirotida,Phyllophoridae,Thyone,\"Thyone gadeana\"}","species","Thyone gadeana"]
[141929,"{Animalia,Mollusca,Bivalvia,Venerida,Veneridae,\"Timoclea ovata\"}","species","Timoclea ovata"]
[101658,"{Animalia,Arthropoda,Crustacea,Malacostraca,Amphipoda,Uristidae,Tmetonyx}","genus","Tmetonyx"]
[102742,"{Animalia,Arthropoda,Crustacea,Malacostraca,Amphipoda,Uristidae,Tmetonyx,\"Tmetonyx similis\"}","species","Tmetonyx similis"]
[130512,"{Animalia,Annelida,Polychaeta,Travisiidae,\"Travisia forbesii\"}","species","Travisia forbesii"]
[322534,"{Animalia,Annelida,Polychaeta,Travisiidae}","family","Travisiidae"]
[983,"{Animalia,Annelida,Polychaeta,Terebellida,Trichobranchidae}","family","Trichobranchidae"]
[131574,"{Animalia,Annelida,Polychaeta,Terebellida,Trichobranchidae,\"Trichobranchus glacialis\"}","species","Trichobranchus glacialis"]
[131575,"{Animalia,Annelida,Polychaeta,Terebellida,Trichobranchidae,\"Trichobranchus roseus\"}","species","Trichobranchus roseus"]
[246140,"{Animalia,Mollusca,Gastropoda,Neogastropoda,Nassariidae,Tritia}","genus","Tritia"]
[876825,"{Animalia,Mollusca,Gastropoda,Neogastropoda,Nassariidae,Tritia,\"Tritia incrassata\"}","species","Tritia incrassata"]
[141741,"{Animalia,Mollusca,Gastropoda,Littorinimorpha,Triviidae,\"Trivia arctica\"}","species","Trivia arctica"]
[144,"{Animalia,Mollusca,Gastropoda,Littorinimorpha,Triviidae}","family","Triviidae"]
[1052448,"{Animalia,Mollusca,Gastropoda,Trochida}","order","Trochida"]
[443,"{Animalia,Mollusca,Gastropoda,Trochida,Trochidae}","family","Trochidae"]
[131576,"{Animalia,Annelida,Polychaeta,Spionida,Trochochaetidae,\"Trochochaeta multisetosa\"}","species","Trochochaeta multisetosa"]
[915,"{Animalia,Annelida,Polychaeta,Spionida,Trochochaetidae}","family","Trochochaetidae"]
[137713,"{Animalia,Mollusca,Gastropoda,Neogastropoda,Buccinidae,Troschelia}","genus","Troschelia"]
[138930,"{Animalia,Mollusca,Gastropoda,Neogastropoda,Buccinidae,Troschelia,\"Troschelia berniciensis\"}","species","Troschelia berniciensis"]
[176955,"{Animalia,Arthropoda,Crustacea,Malacostraca,Amphipoda,Tryphosidae}","family","Tryphosidae"]
[102779,"{Animalia,Arthropoda,Crustacea,Malacostraca,Amphipoda,Tryphosidae,\"Tryphosites longipes\"}","species","Tryphosites longipes"]
[146420,"{Animalia,Chordata,Tunicata}","subphylum","Tunicata"]
[794,"{Animalia,Platyhelminthes,Turbellaria}","class","Turbellaria"]
[156681,"{Animalia,Annelida,Polychaeta,Phyllodocida,Syllidae,\"Typosyllis armillaris\"}","species","Typosyllis armillaris"]
[101474,"{Animalia,Arthropoda,Crustacea,Malacostraca,Amphipoda,Unciolidae,Unciola}","genus","Unciola"]
[102061,"{Animalia,Arthropoda,Crustacea,Malacostraca,Amphipoda,Unciolidae,Unciola,\"Unciola planipes\"}","species","Unciola planipes"]
[248352,"{Animalia,Arthropoda,Crustacea,Malacostraca,Amphipoda,Unciolidae}","family","Unciolidae"]
[176808,"{Animalia,Arthropoda,Crustacea,Malacostraca,Amphipoda,Uristidae}","family","Uristidae"]
[138631,"{Animalia,Mollusca,Gastropoda,Littorinimorpha,Velutinidae,Velutina}","genus","Velutina"]
[141905,"{Animalia,Mollusca,Gastropoda,Littorinimorpha,Velutinidae,Velutina,\"Velutina velutina\"}","species","Velutina velutina"]
[143,"{Animalia,Mollusca,Gastropoda,Littorinimorpha,Velutinidae}","family","Velutinidae"]
[217,"{Animalia,Mollusca,Bivalvia,Venerida}","order","Venerida"]
[243,"{Animalia,Mollusca,Bivalvia,Venerida,Veneridae}","family","Veneridae"]
[138647,"{Animalia,Mollusca,Bivalvia,Venerida,Veneridae,Venerupis}","genus","Venerupis"]
[181364,"{Animalia,Mollusca,Bivalvia,Venerida,Veneridae,Venerupis,\"Venerupis corrugata\"}","species","Venerupis corrugata"]
[138648,"{Animalia,Mollusca,Bivalvia,Venerida,Veneridae,Venus}","genus","Venus"]
[326071,"{Animalia,Annelida,Polychaeta,Phyllodocida,Aphroditidae,Vermis}","genus","Vermis"]
[106257,"{Animalia,Arthropoda,Crustacea,Hexanauplia,Sessilia,Verrucidae,\"Verruca stroemia\"}","species","Verruca stroemia"]
[106066,"{Animalia,Arthropoda,Crustacea,Hexanauplia,Sessilia,Verrucidae}","family","Verrucidae"]
[146419,"{Animalia,Chordata,Vertebrata}","subphylum","Vertebrata"]
[128539,"{Animalia,Cnidaria,Anthozoa,Pennatulacea,Virgulariidae,\"Virgularia mirabilis\"}","species","Virgularia mirabilis"]
[128488,"{Animalia,Cnidaria,Anthozoa,Pennatulacea,Virgulariidae}","family","Virgulariidae"]
[102932,"{Animalia,Arthropoda,Crustacea,Malacostraca,Amphipoda,Oedicerotidae,\"Westwoodilla caecula\"}","species","Westwoodilla caecula"]

{"sheet":"version","index":11,"n_rows":2,"n_cols":1,"rows_kept":2,"cut":false,"hidden":false,"merged":[]}
["version av inntøppingar skjali"]
["v1.0"]